Organisation Name,Organisation Code,Effective Date,Directorate  Where Expenditure Incurred,Supplier Name,Payment Date,Transaction Number,Gross Amount,Purpose of Spend,Merchant Category,Card Transaction
WALSALL COUNCIL,HTTP://OPENDATACOMMUNITIES.ORG/ID/METROPOLITAN-DISTRICT-COUNCIL/WALSALL,30/09/2017,CHILDRENS SERVICES,REGISTRATION SERVICES,03/07/2017,H59620170704AUUPODHFK-1,-10.00,LOOKED AFTER CHILDRENS SOCIAL -MISC FEES AND EXPENSES,OTHER RECREATION SERVICES,GPC
WALSALL COUNCIL,HTTP://OPENDATACOMMUNITIES.ORG/ID/METROPOLITAN-DISTRICT-COUNCIL/WALSALL,30/09/2017,CHILDRENS SERVICES,ASDA SUPERSTORE,03/07/2017,H59620170704BCQYTIPSM-1,9.74,BLOXWICH CHILDCARE SERVICES-FOOD AND BEVERAGES-PROVISIONS,GROCERY STORES AND SUPERMARKETS,GPC
WALSALL COUNCIL,HTTP://OPENDATACOMMUNITIES.ORG/ID/METROPOLITAN-DISTRICT-COUNCIL/WALSALL,30/09/2017,CHANGE & GOVERNANCE,ARTHUR BRETT CATER,03/07/2017,H59620170704CFBPMHAHW-1,95.29,CA BUSILL JONES PRIMARY SCHOOL-FRUIT & VEGETABLES OTHER-PROVI,MISCELLANEOUS FOOD STORES & CONVENIENCE STORES,GPC
WALSALL COUNCIL,HTTP://OPENDATACOMMUNITIES.ORG/ID/METROPOLITAN-DISTRICT-COUNCIL/WALSALL,30/09/2017,ECONOMY & ENVIRONMENT,LONDON MIDLAND TIC,03/07/2017,H59620170704CLSRAERTV-1,18.50,YEI ESF FUNDING-MISCELLANEOUS SUPPLIES,PASSENGER RAILWAYS,GPC
WALSALL COUNCIL,HTTP://OPENDATACOMMUNITIES.ORG/ID/METROPOLITAN-DISTRICT-COUNCIL/WALSALL,30/09/2017,ECONOMY & ENVIRONMENT,LONDON MIDLAND TIC,03/07/2017,H59620170704CLSRAERTV-2,18.50,YEI (IMPACT) PROGRAMME-MISCELLANEOUS SUPPLIES,PASSENGER RAILWAYS,GPC
WALSALL COUNCIL,HTTP://OPENDATACOMMUNITIES.ORG/ID/METROPOLITAN-DISTRICT-COUNCIL/WALSALL,30/09/2017,CHILDRENS SERVICES,GRO HM PASSPORT OFFICE,03/07/2017,H59620170704CMKAEGMNP-1,9.25,LOOKED AFTER CHILDRENS SOCIAL -MISC FEES AND EXPENSES,GOVERNMENT SERVICES,GPC
WALSALL COUNCIL,HTTP://OPENDATACOMMUNITIES.ORG/ID/METROPOLITAN-DISTRICT-COUNCIL/WALSALL,30/09/2017,ECONOMY & ENVIRONMENT,FACEBK 29TU4DSME2,03/07/2017,H59620170704DJCNHBKYM-1,25.00,FOREST ARTS CENTRE-FEES & LICENCES-SERVICES,ADVERTISING SERVICES,GPC
WALSALL COUNCIL,HTTP://OPENDATACOMMUNITIES.ORG/ID/METROPOLITAN-DISTRICT-COUNCIL/WALSALL,30/09/2017,CHILDRENS SERVICES,POUNDLAND LTD,03/07/2017,H59620170704DUCJQEYJE-1,6.00,FOOD TECHNOLOGY-GENERAL MATERIALS,DISCOUNT STORES,GPC
WALSALL COUNCIL,HTTP://OPENDATACOMMUNITIES.ORG/ID/METROPOLITAN-DISTRICT-COUNCIL/WALSALL,30/09/2017,ECONOMY & ENVIRONMENT,FACEBK 6YC6GBN582,03/07/2017,H59620170704EEOITLJYU-1,5.00,INSPIRED GENERATIONS (CSAF)-PUBLICITY & ADVERTISING (NOT S,ADVERTISING SERVICES,GPC
WALSALL COUNCIL,HTTP://OPENDATACOMMUNITIES.ORG/ID/METROPOLITAN-DISTRICT-COUNCIL/WALSALL,30/09/2017,CHANGE & GOVERNANCE,TWITTER ONLINE ADS,03/07/2017,H59620170704ESRJPBQKL-1,15.00,SCHOOL HR TRANSACTIONAL TEAM-ADVERTISING STAFF VACANCIES,ADVERTISING SERVICES,GPC
WALSALL COUNCIL,HTTP://OPENDATACOMMUNITIES.ORG/ID/METROPOLITAN-DISTRICT-COUNCIL/WALSALL,30/09/2017,ECONOMY & ENVIRONMENT,SWIMMING TEACHERS ASSO,03/07/2017,H59620170704FKAVRWOMM-1,337.06,BLOXWICH LEISURE CENTRE-MAINTENANCE-FURNITURE & EQUIPM,OTHER RECREATION SERVICES,GPC
WALSALL COUNCIL,HTTP://OPENDATACOMMUNITIES.ORG/ID/METROPOLITAN-DISTRICT-COUNCIL/WALSALL,30/09/2017,CHILDRENS SERVICES,WILKO RETAIL LIMIT,03/07/2017,H59620170704HDOKJPWOW-1,20.00,TRANSITION AND LEAVING CARE-SUPPORT UNDER SECTION 23 OF TH,HOUSEHOLD APPLIANCE STORES,GPC
WALSALL COUNCIL,HTTP://OPENDATACOMMUNITIES.ORG/ID/METROPOLITAN-DISTRICT-COUNCIL/WALSALL,30/09/2017,CHILDRENS SERVICES,ARGOS WALSALL CROW,03/07/2017,H59620170704HGKLOCUTY-1,129.97,TRANSITION AND LEAVING CARE-SUPPORT UNDER SECTION 23 OF TH,DISCOUNT STORES,GPC
WALSALL COUNCIL,HTTP://OPENDATACOMMUNITIES.ORG/ID/METROPOLITAN-DISTRICT-COUNCIL/WALSALL,30/09/2017,ECONOMY & ENVIRONMENT,BANNER GROUP LTD,03/07/2017,H59620170704HLGMESHPF-1,116.60,BROWNHILLS LIBRARY-STATIONERY & GENERAL SUPPLIES-,"OFFICE, SCHOOL SUPPLY, AND STATIONERY STORES",GPC
WALSALL COUNCIL,HTTP://OPENDATACOMMUNITIES.ORG/ID/METROPOLITAN-DISTRICT-COUNCIL/WALSALL,30/09/2017,ECONOMY & ENVIRONMENT,THE DYSLEXIA SHOP LTD,03/07/2017,H59620170704HUVYYXBAW-1,4.49,YEI ESF FUNDING-MISCELLANEOUS SUPPLIES,"COLLEGES, UNIVERSITIES, PROFESSIONAL SCHOOLS",GPC
WALSALL COUNCIL,HTTP://OPENDATACOMMUNITIES.ORG/ID/METROPOLITAN-DISTRICT-COUNCIL/WALSALL,30/09/2017,ECONOMY & ENVIRONMENT,THE DYSLEXIA SHOP LTD,03/07/2017,H59620170704HUVYYXBAW-2,4.50,YEI (IMPACT) PROGRAMME-MISCELLANEOUS SUPPLIES,"COLLEGES, UNIVERSITIES, PROFESSIONAL SCHOOLS",GPC
WALSALL COUNCIL,HTTP://OPENDATACOMMUNITIES.ORG/ID/METROPOLITAN-DISTRICT-COUNCIL/WALSALL,30/09/2017,ECONOMY & ENVIRONMENT,FRAMES,03/07/2017,H59620170704IECHPSVVC-1,56.00,NAG - TEMPORARY EXHIBITIONS-VISUAL ARTS,"ARTIST SUPPLY STORES, CRAFT SHOPS",GPC
WALSALL COUNCIL,HTTP://OPENDATACOMMUNITIES.ORG/ID/METROPOLITAN-DISTRICT-COUNCIL/WALSALL,30/09/2017,CHANGE & GOVERNANCE,ARTHUR BRETT CATER,03/07/2017,H59620170704IVVOUWING-1,46.16,CA TOWN HALL RESTAURANT - CATE-FRUIT & VEGETABLES OTHER-PROVI,MISCELLANEOUS FOOD STORES & CONVENIENCE STORES,GPC
WALSALL COUNCIL,HTTP://OPENDATACOMMUNITIES.ORG/ID/METROPOLITAN-DISTRICT-COUNCIL/WALSALL,30/09/2017,CHANGE & GOVERNANCE,TRAVEL WEST MIDLAN,03/07/2017,H59620170704IWMNCMYSB-1,54.50,WALSALL CRISIS SUPPORT SCHEME-OFFICER/STAFF-PUBLIC TRANSPORT,BUS LINES,GPC
WALSALL COUNCIL,HTTP://OPENDATACOMMUNITIES.ORG/ID/METROPOLITAN-DISTRICT-COUNCIL/WALSALL,30/09/2017,ECONOMY & ENVIRONMENT,BANNER GROUP LTD,03/07/2017,H59620170704JBOJYYUDS-1,138.24,CENTRALISED STATIONARY-STATIONERY & GENERAL SUPPLIES-,"OFFICE, SCHOOL SUPPLY, AND STATIONERY STORES",GPC
WALSALL COUNCIL,HTTP://OPENDATACOMMUNITIES.ORG/ID/METROPOLITAN-DISTRICT-COUNCIL/WALSALL,30/09/2017,CHILDRENS SERVICES,LEARNING PLUS,03/07/2017,H59620170704JDUKIRBZU-1,17.99,ELMWOOD SCHOOL-EXTERNAL TRAINING,OTHER SCHOOLS AND EDUCATIONAL SERVICES,GPC
WALSALL COUNCIL,HTTP://OPENDATACOMMUNITIES.ORG/ID/METROPOLITAN-DISTRICT-COUNCIL/WALSALL,30/09/2017,CHANGE & GOVERNANCE,FACEBK ZD6SCDWBP2,03/07/2017,H59620170704JFDVBGEKU-1,88.11,SCHOOL HR TRANSACTIONAL TEAM-ADVERTISING STAFF VACANCIES,ADVERTISING SERVICES,GPC
WALSALL COUNCIL,HTTP://OPENDATACOMMUNITIES.ORG/ID/METROPOLITAN-DISTRICT-COUNCIL/WALSALL,30/09/2017,CHILDRENS SERVICES,ASDA SUPERSTORE,03/07/2017,H59620170704JJYTSUGDD-1,16.00,PARENTING TEAM-FOOD AND BEVERAGES-PROVISIONS,GROCERY STORES AND SUPERMARKETS,GPC
WALSALL COUNCIL,HTTP://OPENDATACOMMUNITIES.ORG/ID/METROPOLITAN-DISTRICT-COUNCIL/WALSALL,30/09/2017,CHILDRENS SERVICES,BANNER GROUP LTD,03/07/2017,H59620170704JMYEHDITO-1,144.86,PELSALL EDC-STATIONERY & GENERAL SUPPLIES-,"OFFICE, SCHOOL SUPPLY, AND STATIONERY STORES",GPC
WALSALL COUNCIL,HTTP://OPENDATACOMMUNITIES.ORG/ID/METROPOLITAN-DISTRICT-COUNCIL/WALSALL,30/09/2017,ECONOMY & ENVIRONMENT,VILLAGE HOTEL MANCHESTER,03/07/2017,H59620170704JTDDMYNED-1,103.50,ACTIVE ENGLAND-HOTEL ACCOMMODATION-EMPLOYEES,"HOTELS, MOTELS, RESORTS",GPC
WALSALL COUNCIL,HTTP://OPENDATACOMMUNITIES.ORG/ID/METROPOLITAN-DISTRICT-COUNCIL/WALSALL,30/09/2017,CHILDRENS SERVICES,VIRGIN TRAINS,03/07/2017,H59620170704KBLVNIXKC-1,7.60,TRADED WORKFORCE DEVELOPMENT-OFFICER/STAFF-PUBLIC TRANSPORT,PASSENGER RAILWAYS,GPC
WALSALL COUNCIL,HTTP://OPENDATACOMMUNITIES.ORG/ID/METROPOLITAN-DISTRICT-COUNCIL/WALSALL,30/09/2017,CHANGE & GOVERNANCE,BRITANNIA,03/07/2017,H59620170704LVYCHPRYE-1,300.00,BED & BREAKFAST PAYMENTS-BED & BREAKFAST PAYMENTS,"HOTELS, MOTELS, RESORTS",GPC
WALSALL COUNCIL,HTTP://OPENDATACOMMUNITIES.ORG/ID/METROPOLITAN-DISTRICT-COUNCIL/WALSALL,30/09/2017,ECONOMY & ENVIRONMENT,OCTOBER GALLERY,03/07/2017,H59620170704MEMNUFBFS-1,90.00,NEW ART GALLERY - ADMIN-HOTEL ACCOMMODATION-EMPLOYEES,"ORGANIZATIONS, CHARITABLE AND SOCIAL SERVICE",GPC
WALSALL COUNCIL,HTTP://OPENDATACOMMUNITIES.ORG/ID/METROPOLITAN-DISTRICT-COUNCIL/WALSALL,30/09/2017,CHILDRENS SERVICES,WILKO RETAIL LIMIT,03/07/2017,H59620170704MEUPOJVYW-1,166.50,TRANSITION AND LEAVING CARE-SUPPORT UNDER SECTION 23 OF TH,HOUSEHOLD APPLIANCE STORES,GPC
WALSALL COUNCIL,HTTP://OPENDATACOMMUNITIES.ORG/ID/METROPOLITAN-DISTRICT-COUNCIL/WALSALL,30/09/2017,CHANGE & GOVERNANCE,ARTHUR BRETT CATER,03/07/2017,H59620170704MFXSIQGLR-1,57.15,CA RUSHALL JMI SCHOOL-FRUIT & VEGETABLES OTHER-PROVI,MISCELLANEOUS FOOD STORES & CONVENIENCE STORES,GPC
WALSALL COUNCIL,HTTP://OPENDATACOMMUNITIES.ORG/ID/METROPOLITAN-DISTRICT-COUNCIL/WALSALL,30/09/2017,CHANGE & GOVERNANCE,AMAZON.CO.UK,03/07/2017,H59620170704MKOSCRDLB-1,20.64,MAYORS SECRETARIAT-STATIONERY & GENERAL SUPPLIES-,MISCELLANEOUS AND SPECIALTY RETAIL STORES,GPC
WALSALL COUNCIL,HTTP://OPENDATACOMMUNITIES.ORG/ID/METROPOLITAN-DISTRICT-COUNCIL/WALSALL,30/09/2017,ECONOMY & ENVIRONMENT,VILLAGE HOTEL MANCHESTER,03/07/2017,H59620170704NEBBFNEXV-1,111.00,ACTIVE ENGLAND-HOTEL ACCOMMODATION-EMPLOYEES,"HOTELS, MOTELS, RESORTS",GPC
WALSALL COUNCIL,HTTP://OPENDATACOMMUNITIES.ORG/ID/METROPOLITAN-DISTRICT-COUNCIL/WALSALL,30/09/2017,ECONOMY & ENVIRONMENT,L/S ENGINEERS LTD,03/07/2017,H59620170704NIUQADDZM-1,34.20,ARBORETUM-GENERAL MATERIALS,"ARCHITECTURAL, ENGINEERING, AND SURVEYING SERVICES",GPC
WALSALL COUNCIL,HTTP://OPENDATACOMMUNITIES.ORG/ID/METROPOLITAN-DISTRICT-COUNCIL/WALSALL,30/09/2017,CHILDRENS SERVICES,AMAZON UK MARKETPLACE,03/07/2017,H59620170704NWMBICXTD-1,5.28,CHILD PROTECTION & REVIEW SERV-MISCELLANEOUS SUPPLIES,MISCELLANEOUS AND SPECIALTY RETAIL STORES,GPC
WALSALL COUNCIL,HTTP://OPENDATACOMMUNITIES.ORG/ID/METROPOLITAN-DISTRICT-COUNCIL/WALSALL,30/09/2017,CHILDRENS SERVICES,TESCO STORES 6161,03/07/2017,H59620170704NXSXETUCB-1,15.42,FOOD TECHNOLOGY-GENERAL MATERIALS,GROCERY STORES AND SUPERMARKETS,GPC
WALSALL COUNCIL,HTTP://OPENDATACOMMUNITIES.ORG/ID/METROPOLITAN-DISTRICT-COUNCIL/WALSALL,30/09/2017,CHANGE & GOVERNANCE,SHOWCASE DUDLEY,03/07/2017,H59620170704NYQZDWIJB-1,27.30,YOUNG PERSONS HOMELESS SERVICE-GENERAL PROVISIONS-PROVISIONS,MOTION PICTURE THEATERS,GPC
WALSALL COUNCIL,HTTP://OPENDATACOMMUNITIES.ORG/ID/METROPOLITAN-DISTRICT-COUNCIL/WALSALL,30/09/2017,CHANGE & GOVERNANCE,MCDONALDS,03/07/2017,H59620170704OZGWJINNH-1,18.26,YOUNG PERSONS HOMELESS SERVICE-GENERAL PROVISIONS-PROVISIONS,QUICK PAYMENT SERVICE-FAST-FOOD RESTAURANTS,GPC
WALSALL COUNCIL,HTTP://OPENDATACOMMUNITIES.ORG/ID/METROPOLITAN-DISTRICT-COUNCIL/WALSALL,30/09/2017,ECONOMY & ENVIRONMENT,L/S ENGINEERS LTD,03/07/2017,H59620170704PIMMISHHB-1,27.60,INFRASTRUCTURE MAINTENANCE-GENERAL MATERIALS,"ARCHITECTURAL, ENGINEERING, AND SURVEYING SERVICES",GPC
WALSALL COUNCIL,HTTP://OPENDATACOMMUNITIES.ORG/ID/METROPOLITAN-DISTRICT-COUNCIL/WALSALL,30/09/2017,CHILDRENS SERVICES,POUNDLAND LTD 1055,03/07/2017,H59620170704PKYYCFONQ-1,16.00,CURRICULUM STATIONERY-GENERAL MATERIALS,DISCOUNT STORES,GPC
WALSALL COUNCIL,HTTP://OPENDATACOMMUNITIES.ORG/ID/METROPOLITAN-DISTRICT-COUNCIL/WALSALL,30/09/2017,SOCIAL CARE & INCLUSION,ASDA HOME SHOPPING,03/07/2017,H59620170704PVMPGHHPL-1,4.98,FALLINGS HEATH-FOOD AND BEVERAGES-PROVISIONS,GROCERY STORES AND SUPERMARKETS,GPC
WALSALL COUNCIL,HTTP://OPENDATACOMMUNITIES.ORG/ID/METROPOLITAN-DISTRICT-COUNCIL/WALSALL,30/09/2017,SOCIAL CARE & INCLUSION,ASDA HOME SHOPPING,03/07/2017,H59620170704PVMPGHHPL-2,54.84,FALLINGS HEATH-FOOD AND BEVERAGES-PROVISIONS,GROCERY STORES AND SUPERMARKETS,GPC
WALSALL COUNCIL,HTTP://OPENDATACOMMUNITIES.ORG/ID/METROPOLITAN-DISTRICT-COUNCIL/WALSALL,30/09/2017,CHANGE & GOVERNANCE,ARTHUR BRETT CATER,03/07/2017,H59620170704QGDJOMPDW-1,80.26,CA LEIGHSWOOD PRIMARY SCHOOL-FRUIT & VEGETABLES OTHER-PROVI,MISCELLANEOUS FOOD STORES & CONVENIENCE STORES,GPC
WALSALL COUNCIL,HTTP://OPENDATACOMMUNITIES.ORG/ID/METROPOLITAN-DISTRICT-COUNCIL/WALSALL,30/09/2017,ECONOMY & ENVIRONMENT,DVLA DRIVER ONLINE,03/07/2017,H59620170704QSRCCHJZK-1,17.00,YEI (IMPACT) PROGRAMME-MISCELLANEOUS SUPPLIES,GOVERNMENT SERVICES,GPC
WALSALL COUNCIL,HTTP://OPENDATACOMMUNITIES.ORG/ID/METROPOLITAN-DISTRICT-COUNCIL/WALSALL,30/09/2017,ECONOMY & ENVIRONMENT,DVLA DRIVER ONLINE,03/07/2017,H59620170704QSRCCHJZK-2,17.00,YEI ESF FUNDING-MISCELLANEOUS SUPPLIES,GOVERNMENT SERVICES,GPC
WALSALL COUNCIL,HTTP://OPENDATACOMMUNITIES.ORG/ID/METROPOLITAN-DISTRICT-COUNCIL/WALSALL,30/09/2017,CHANGE & GOVERNANCE,ARTHUR BRETT CATER,03/07/2017,H59620170704RCIWVZYEV-1,14.50,CA BARCROFT D/C-FRUIT & VEGETABLES OTHER-PROVI,MISCELLANEOUS FOOD STORES & CONVENIENCE STORES,GPC
WALSALL COUNCIL,HTTP://OPENDATACOMMUNITIES.ORG/ID/METROPOLITAN-DISTRICT-COUNCIL/WALSALL,30/09/2017,ECONOMY & ENVIRONMENT,BANNER GROUP LTD,03/07/2017,H59620170704RLLMQYUYV-1,116.93,LIBRARY OPERATIONS CENTRAL-STATIONERY & GENERAL SUPPLIES-,"OFFICE, SCHOOL SUPPLY, AND STATIONERY STORES",GPC
WALSALL COUNCIL,HTTP://OPENDATACOMMUNITIES.ORG/ID/METROPOLITAN-DISTRICT-COUNCIL/WALSALL,30/09/2017,ECONOMY & ENVIRONMENT,MNA LTD CARDCHARGE,03/07/2017,H59620170704RRHGWWMHB-1,84.24,DEVELOPMENT MANAGEMENT-PERIODICALS/MAGAZINES/NEWSPAPE,NEWS DEALERS AND NEWSSTANDS,GPC
WALSALL COUNCIL,HTTP://OPENDATACOMMUNITIES.ORG/ID/METROPOLITAN-DISTRICT-COUNCIL/WALSALL,30/09/2017,ECONOMY & ENVIRONMENT,FACEBK KZEXNDWJR2,03/07/2017,H59620170704TMKHJQFEW-1,0.81,WALSALL OUTDOOR ADVENTURE CENT-PUBLICITY & ADVERTISING (NOT S,ADVERTISING SERVICES,GPC
WALSALL COUNCIL,HTTP://OPENDATACOMMUNITIES.ORG/ID/METROPOLITAN-DISTRICT-COUNCIL/WALSALL,30/09/2017,CHANGE & GOVERNANCE,ARTHUR BRETT CATER,03/07/2017,H59620170704TXQSHDKDF-1,23.87,CA ST JOHNS C.E. PRIMARY SCHOO-FRUIT & VEGETABLES OTHER-PROVI,MISCELLANEOUS FOOD STORES & CONVENIENCE STORES,GPC
WALSALL COUNCIL,HTTP://OPENDATACOMMUNITIES.ORG/ID/METROPOLITAN-DISTRICT-COUNCIL/WALSALL,30/09/2017,CHILDRENS SERVICES,AMAZON UK MARKETPLACE,03/07/2017,H59620170704TYOVHDZHL-1,17.98,TOPIC-LIBRARY BOOKS,BOOK STORES,GPC
WALSALL COUNCIL,HTTP://OPENDATACOMMUNITIES.ORG/ID/METROPOLITAN-DISTRICT-COUNCIL/WALSALL,30/09/2017,CHANGE & GOVERNANCE,SHOWCASE DUDLEY,03/07/2017,H59620170704UDEIWKLEI-1,22.65,YOUNG PERSONS HOMELESS SERVICE-GENERAL PROVISIONS-PROVISIONS,MOTION PICTURE THEATERS,GPC
WALSALL COUNCIL,HTTP://OPENDATACOMMUNITIES.ORG/ID/METROPOLITAN-DISTRICT-COUNCIL/WALSALL,30/09/2017,ECONOMY & ENVIRONMENT,TESCO DIRECT,03/07/2017,H59620170704UKWZMRTCC-1,29.00,YEI ESF FUNDING-MISCELLANEOUS SUPPLIES,MISCELLANEOUS AND SPECIALTY RETAIL STORES,GPC
WALSALL COUNCIL,HTTP://OPENDATACOMMUNITIES.ORG/ID/METROPOLITAN-DISTRICT-COUNCIL/WALSALL,30/09/2017,ECONOMY & ENVIRONMENT,TESCO DIRECT,03/07/2017,H59620170704UKWZMRTCC-2,29.00,YEI (IMPACT) PROGRAMME-MISCELLANEOUS SUPPLIES,MISCELLANEOUS AND SPECIALTY RETAIL STORES,GPC
WALSALL COUNCIL,HTTP://OPENDATACOMMUNITIES.ORG/ID/METROPOLITAN-DISTRICT-COUNCIL/WALSALL,30/09/2017,CHILDRENS SERVICES,WWW.ARGOS.CO.UK,03/07/2017,H59620170704UNMYOKRHR-1,236.94,LOOKED AFTER CHILDRENS SOCIAL -SUPPORT UNDER SECTION 23 OF TH,DISCOUNT STORES,GPC
WALSALL COUNCIL,HTTP://OPENDATACOMMUNITIES.ORG/ID/METROPOLITAN-DISTRICT-COUNCIL/WALSALL,30/09/2017,CHANGE & GOVERNANCE,PETERBOROUGH CITY COUN,03/07/2017,H59620170704URHXMWMET-1,4.00,REVENUES-OTHER-TRAVEL ALLOWANCES,AUTOMOBILE PARKING LOTS AND GARAGES,GPC
WALSALL COUNCIL,HTTP://OPENDATACOMMUNITIES.ORG/ID/METROPOLITAN-DISTRICT-COUNCIL/WALSALL,30/09/2017,CHILDRENS SERVICES,TESCO STORES 6161,03/07/2017,H59620170704VHLXDIJGK-1,48.00,CURRICULUM STATIONERY-FOOD AND BEVERAGES-PROVISIONS,GROCERY STORES AND SUPERMARKETS,GPC
WALSALL COUNCIL,HTTP://OPENDATACOMMUNITIES.ORG/ID/METROPOLITAN-DISTRICT-COUNCIL/WALSALL,30/09/2017,CHILDRENS SERVICES,LIDL UK,03/07/2017,H59620170704VKBETDOWQ-1,59.16,SPINDLETREE-FOOD AND BEVERAGES-PROVISIONS,GROCERY STORES AND SUPERMARKETS,GPC
WALSALL COUNCIL,HTTP://OPENDATACOMMUNITIES.ORG/ID/METROPOLITAN-DISTRICT-COUNCIL/WALSALL,30/09/2017,CHILDRENS SERVICES,LIDL UK,03/07/2017,H59620170704VKBETDOWQ-2,12.69,SPINDLETREE-FOOD AND BEVERAGES-PROVISIONS,GROCERY STORES AND SUPERMARKETS,GPC
WALSALL COUNCIL,HTTP://OPENDATACOMMUNITIES.ORG/ID/METROPOLITAN-DISTRICT-COUNCIL/WALSALL,30/09/2017,CHILDRENS SERVICES,WM MORRISON FOOD.COM,03/07/2017,H59620170704VTBSSUTKS-1,12.06,BLUEBELLS-FOOD AND BEVERAGES-PROVISIONS,GROCERY STORES AND SUPERMARKETS,GPC
WALSALL COUNCIL,HTTP://OPENDATACOMMUNITIES.ORG/ID/METROPOLITAN-DISTRICT-COUNCIL/WALSALL,30/09/2017,CHILDRENS SERVICES,WM MORRISON FOOD.COM,03/07/2017,H59620170704VTBSSUTKS-2,84.97,BLUEBELLS-FOOD AND BEVERAGES-PROVISIONS,GROCERY STORES AND SUPERMARKETS,GPC
WALSALL COUNCIL,HTTP://OPENDATACOMMUNITIES.ORG/ID/METROPOLITAN-DISTRICT-COUNCIL/WALSALL,30/09/2017,CHILDRENS SERVICES,WHITE HART HOTEL,03/07/2017,H59620170704WHFWAGSKO-1,85.00,LOOKED AFTER CHILDRENS SOCIAL -HOTEL ACCOMMODATION-EMPLOYEES,"HOTELS, MOTELS, RESORTS",GPC
WALSALL COUNCIL,HTTP://OPENDATACOMMUNITIES.ORG/ID/METROPOLITAN-DISTRICT-COUNCIL/WALSALL,30/09/2017,ECONOMY & ENVIRONMENT,BONMARCHE LTD,03/07/2017,H59620170704WHSIVNEVU-1,12.50,YEI ESF FUNDING-MISCELLANEOUS SUPPLIES,WOMENS READY TO WEAR STORES,GPC
WALSALL COUNCIL,HTTP://OPENDATACOMMUNITIES.ORG/ID/METROPOLITAN-DISTRICT-COUNCIL/WALSALL,30/09/2017,ECONOMY & ENVIRONMENT,BONMARCHE LTD,03/07/2017,H59620170704WHSIVNEVU-2,12.50,YEI (IMPACT) PROGRAMME-MISCELLANEOUS SUPPLIES,WOMENS READY TO WEAR STORES,GPC
WALSALL COUNCIL,HTTP://OPENDATACOMMUNITIES.ORG/ID/METROPOLITAN-DISTRICT-COUNCIL/WALSALL,30/09/2017,CHANGE & GOVERNANCE,WWW.SCC.COM,03/07/2017,H59620170704WIUJLEUZE-1,21.41,RECHARGEABLE EQUIPMENT-COMPUTER EQUIPMENT AND SUPPLIE,"COMPUTERS, COMPUTER PERIPHERAL EQUIPMENT, SOFTWARE",GPC
WALSALL COUNCIL,HTTP://OPENDATACOMMUNITIES.ORG/ID/METROPOLITAN-DISTRICT-COUNCIL/WALSALL,30/09/2017,CHILDRENS SERVICES,NATIONAL PAINTBALL,03/07/2017,H59620170704WMSEAQNSC-1,90.00,"43A HILTON ROAD, WILLENHALL-RESIDENTS PERSONAL EXPENSES-AL","BANDS, ORCHESTRAS, AND MISCELLANEOUS ENTERTAINERS",GPC
WALSALL COUNCIL,HTTP://OPENDATACOMMUNITIES.ORG/ID/METROPOLITAN-DISTRICT-COUNCIL/WALSALL,30/09/2017,CHANGE & GOVERNANCE,ARTHUR BRETT CATER,03/07/2017,H59620170704WYQBAUBSD-1,44.88,CA POOL HAYES PRIMARY SCHOOL-FRUIT & VEGETABLES OTHER-PROVI,MISCELLANEOUS FOOD STORES & CONVENIENCE STORES,GPC
WALSALL COUNCIL,HTTP://OPENDATACOMMUNITIES.ORG/ID/METROPOLITAN-DISTRICT-COUNCIL/WALSALL,30/09/2017,CHANGE & GOVERNANCE,ARTHUR BRETT CATER,03/07/2017,H59620170704XBLMERQAN-1,9.29,CA CASTLEFORT JMI SCHOOL-FRUIT & VEGETABLES OTHER-PROVI,MISCELLANEOUS FOOD STORES & CONVENIENCE STORES,GPC
WALSALL COUNCIL,HTTP://OPENDATACOMMUNITIES.ORG/ID/METROPOLITAN-DISTRICT-COUNCIL/WALSALL,30/09/2017,CHANGE & GOVERNANCE,ASDA,03/07/2017,H59620170704XLJBMEPHW-1,69.60,WALSALL CRISIS SUPPORT SCHEME-FOOD AND BEVERAGES-PROVISIONS,GROCERY STORES AND SUPERMARKETS,GPC
WALSALL COUNCIL,HTTP://OPENDATACOMMUNITIES.ORG/ID/METROPOLITAN-DISTRICT-COUNCIL/WALSALL,30/09/2017,ECONOMY & ENVIRONMENT,AMAZON UK MARKETPLACE,03/07/2017,H59620170704XNDHWBGUL-1,82.94,FOREST ARTS CENTRE-STATIONERY & GENERAL SUPPLIES-,MISCELLANEOUS AND SPECIALTY RETAIL STORES,GPC
WALSALL COUNCIL,HTTP://OPENDATACOMMUNITIES.ORG/ID/METROPOLITAN-DISTRICT-COUNCIL/WALSALL,30/09/2017,CHANGE & GOVERNANCE,BRITANNIA WOLVERHA,03/07/2017,H59620170704XQWTQGSMG-1,74.75,BED & BREAKFAST PAYMENTS-BED & BREAKFAST PAYMENTS,"HOTELS, MOTELS, RESORTS",GPC
WALSALL COUNCIL,HTTP://OPENDATACOMMUNITIES.ORG/ID/METROPOLITAN-DISTRICT-COUNCIL/WALSALL,30/09/2017,CHILDRENS SERVICES,RS COMPONENTS,03/07/2017,H59620170704YRNNPSRVS-1,14.59,"REDRUTH ROAD-REPAIRS,ALTERATIONS & MAINTENA",ELECTRICAL PARTS AND EQUIPMENT,GPC
WALSALL COUNCIL,HTTP://OPENDATACOMMUNITIES.ORG/ID/METROPOLITAN-DISTRICT-COUNCIL/WALSALL,30/09/2017,CHILDRENS SERVICES,SIM MAYOU HARDWARE,03/07/2017,H59620170704YUURUCYJT-1,11.99,"PELSALL EDC-CROCKERY,HARDWARE & DISPOSABLE",HARDWARE STORES,GPC
WALSALL COUNCIL,HTTP://OPENDATACOMMUNITIES.ORG/ID/METROPOLITAN-DISTRICT-COUNCIL/WALSALL,30/09/2017,CHILDRENS SERVICES,OFSTED INTERNET,04/07/2017,H59620170705AKAPJPCHU-1,794.00,7 THE LIMES-OTHER AGENCY FEES,GOVERNMENT SERVICES,GPC
WALSALL COUNCIL,HTTP://OPENDATACOMMUNITIES.ORG/ID/METROPOLITAN-DISTRICT-COUNCIL/WALSALL,30/09/2017,CHANGE & GOVERNANCE,BLAKEMORE FOODSERVICE,04/07/2017,H59620170705BHVVGQCVI-1,207.31,CA RADLEYS PRIMARY SCHOOL-DRY FOODS-PROVISIONS,CATERERS,GPC
WALSALL COUNCIL,HTTP://OPENDATACOMMUNITIES.ORG/ID/METROPOLITAN-DISTRICT-COUNCIL/WALSALL,30/09/2017,CHANGE & GOVERNANCE,BLAKEMORE FOODSERVICE,04/07/2017,H59620170705BHVVGQCVI-2,304.63,CA RADLEYS PRIMARY SCHOOL-DRY FOODS-PROVISIONS,CATERERS,GPC
WALSALL COUNCIL,HTTP://OPENDATACOMMUNITIES.ORG/ID/METROPOLITAN-DISTRICT-COUNCIL/WALSALL,30/09/2017,CHANGE & GOVERNANCE,ALLPAY LTD,04/07/2017,H59620170705BIFOXXCYK-1,334.12,HOMELESSNESS PREVENTION STRATE-RENTS-OTHER,"ORGANIZATIONS, CHARITABLE AND SOCIAL SERVICE",GPC
WALSALL COUNCIL,HTTP://OPENDATACOMMUNITIES.ORG/ID/METROPOLITAN-DISTRICT-COUNCIL/WALSALL,30/09/2017,CHANGE & GOVERNANCE,WELSH BROS FOODS LTD,04/07/2017,H59620170705BYUMWCEGN-1,63.02,CA BARCROFT D/C-MEAT-PROVISIONS,FREEZER AND LOCKER MEAT PROVISIONERS,GPC
WALSALL COUNCIL,HTTP://OPENDATACOMMUNITIES.ORG/ID/METROPOLITAN-DISTRICT-COUNCIL/WALSALL,30/09/2017,CHANGE & GOVERNANCE,FOREIGN EXCHANGE FEE,04/07/2017,H59620170705CLPLEDGRJ-1,2.65,ICT INCOME-COMPUTER EQUIPMENT AND SUPPLIE,,GPC
WALSALL COUNCIL,HTTP://OPENDATACOMMUNITIES.ORG/ID/METROPOLITAN-DISTRICT-COUNCIL/WALSALL,30/09/2017,CHANGE & GOVERNANCE,WELSH BROS FOODS LTD,04/07/2017,H59620170705CSVHEJBOH-1,30.70,CA ELMORE GREEN PRIMARY SCHOOL-MEAT-PROVISIONS,FREEZER AND LOCKER MEAT PROVISIONERS,GPC
WALSALL COUNCIL,HTTP://OPENDATACOMMUNITIES.ORG/ID/METROPOLITAN-DISTRICT-COUNCIL/WALSALL,30/09/2017,CHANGE & GOVERNANCE,PARK INN BY RADISSON,04/07/2017,H59620170705CUSIXCXDS-1,248.00,BED & BREAKFAST PAYMENTS-HOTEL ACCOMMODATION-EMPLOYEES,"HOTELS, MOTELS, RESORTS",GPC
WALSALL COUNCIL,HTTP://OPENDATACOMMUNITIES.ORG/ID/METROPOLITAN-DISTRICT-COUNCIL/WALSALL,30/09/2017,CHILDRENS SERVICES,EBOOKERS COM,04/07/2017,H59620170705DFCGTTLON-1,242.50,SAFEGUARDING & FAMILY SUPPORT-OTHER-TRAVEL ALLOWANCES,TRAVEL AGENCIES AND TOUR OPERATORS,GPC
WALSALL COUNCIL,HTTP://OPENDATACOMMUNITIES.ORG/ID/METROPOLITAN-DISTRICT-COUNCIL/WALSALL,30/09/2017,CHILDRENS SERVICES,BANNER GROUP LTD,04/07/2017,H59620170705DKFUVFFSQ-1,57.12,SCHOOL IMPROVEMENT-ACCESS TEAM-STATIONERY & GENERAL SUPPLIES-,"OFFICE, SCHOOL SUPPLY, AND STATIONERY STORES",GPC
WALSALL COUNCIL,HTTP://OPENDATACOMMUNITIES.ORG/ID/METROPOLITAN-DISTRICT-COUNCIL/WALSALL,30/09/2017,CHILDRENS SERVICES,BANNER GROUP LTD,04/07/2017,H59620170705DKFUVFFSQ-2,5.28,EARLY YEARS-STATIONERY & GENERAL SUPPLIES-,"OFFICE, SCHOOL SUPPLY, AND STATIONERY STORES",GPC
WALSALL COUNCIL,HTTP://OPENDATACOMMUNITIES.ORG/ID/METROPOLITAN-DISTRICT-COUNCIL/WALSALL,30/09/2017,CHANGE & GOVERNANCE,BLAKEMORE FOODSERVICE,04/07/2017,H59620170705DNUUOAIWN-1,59.78,CA MOORCROFT WOOD-FROZEN FOODS-PROVISIONS,CATERERS,GPC
WALSALL COUNCIL,HTTP://OPENDATACOMMUNITIES.ORG/ID/METROPOLITAN-DISTRICT-COUNCIL/WALSALL,30/09/2017,CHILDRENS SERVICES,WALSALL COUNCIL,04/07/2017,H59620170705DQRYRSNBG-1,12.00,SAFEGUARDING & FAMILY SUPPORT-REGISTRAR OF BIRTHS/DEATHS/MAR,GOVERNMENT SERVICES,GPC
WALSALL COUNCIL,HTTP://OPENDATACOMMUNITIES.ORG/ID/METROPOLITAN-DISTRICT-COUNCIL/WALSALL,30/09/2017,ECONOMY & ENVIRONMENT,BANNER GROUP LTD,04/07/2017,H59620170705DSARSHJHU-1,-31.84,CENTRALISED STATIONARY-STATIONERY & GENERAL SUPPLIES-,"OFFICE, SCHOOL SUPPLY, AND STATIONERY STORES",GPC
WALSALL COUNCIL,HTTP://OPENDATACOMMUNITIES.ORG/ID/METROPOLITAN-DISTRICT-COUNCIL/WALSALL,30/09/2017,ECONOMY & ENVIRONMENT,BANNER GROUP LTD,04/07/2017,H59620170705DUELLUWMU-1,5.28,CENTRALISED STATIONARY-STATIONERY & GENERAL SUPPLIES-,"OFFICE, SCHOOL SUPPLY, AND STATIONERY STORES",GPC
WALSALL COUNCIL,HTTP://OPENDATACOMMUNITIES.ORG/ID/METROPOLITAN-DISTRICT-COUNCIL/WALSALL,30/09/2017,CHILDRENS SERVICES,W M MORRISONS.COM,04/07/2017,H59620170705DVONLUTBN-1,9.36,57 LICHFIELD ROAD-FOOD AND BEVERAGES-PROVISIONS,GROCERY STORES AND SUPERMARKETS,GPC
WALSALL COUNCIL,HTTP://OPENDATACOMMUNITIES.ORG/ID/METROPOLITAN-DISTRICT-COUNCIL/WALSALL,30/09/2017,CHILDRENS SERVICES,W M MORRISONS.COM,04/07/2017,H59620170705DVONLUTBN-2,93.67,57 LICHFIELD ROAD-FOOD AND BEVERAGES-PROVISIONS,GROCERY STORES AND SUPERMARKETS,GPC
WALSALL COUNCIL,HTTP://OPENDATACOMMUNITIES.ORG/ID/METROPOLITAN-DISTRICT-COUNCIL/WALSALL,30/09/2017,CHANGE & GOVERNANCE,BLAKEMORE FOODSERVICE,04/07/2017,H59620170705DYHYOIYMJ-1,54.17,CA RUSHALL JMI SCHOOL-DRY FOODS-PROVISIONS,CATERERS,GPC
WALSALL COUNCIL,HTTP://OPENDATACOMMUNITIES.ORG/ID/METROPOLITAN-DISTRICT-COUNCIL/WALSALL,30/09/2017,CHANGE & GOVERNANCE,BLAKEMORE FOODSERVICE,04/07/2017,H59620170705DYHYOIYMJ-2,285.97,CA RUSHALL JMI SCHOOL-DRY FOODS-PROVISIONS,CATERERS,GPC
WALSALL COUNCIL,HTTP://OPENDATACOMMUNITIES.ORG/ID/METROPOLITAN-DISTRICT-COUNCIL/WALSALL,30/09/2017,CHILDRENS SERVICES,WWW.WESTMINSTER-BRIEFI,04/07/2017,H59620170705FBXKGISYG-1,258.00,YOUTH JUSTICE SERVICE-EXTERNAL TRAINING,"SCHOOLS, BUSINESS AND SECRETARIAL",GPC
WALSALL COUNCIL,HTTP://OPENDATACOMMUNITIES.ORG/ID/METROPOLITAN-DISTRICT-COUNCIL/WALSALL,30/09/2017,,DECATHLON,04/07/2017,H59620170705FQAXXLCSL-1,289.65,-FURNITURE & EQUIPMENT,SPORTING GOODS STORES,GPC
WALSALL COUNCIL,HTTP://OPENDATACOMMUNITIES.ORG/ID/METROPOLITAN-DISTRICT-COUNCIL/WALSALL,30/09/2017,CHANGE & GOVERNANCE,BLAKEMORE FOODSERVICE,04/07/2017,H59620170705FUUADVRAO-1,24.01,CA ST JOHNS C.E. PRIMARY SCHOO-FROZEN FOODS-PROVISIONS,CATERERS,GPC
WALSALL COUNCIL,HTTP://OPENDATACOMMUNITIES.ORG/ID/METROPOLITAN-DISTRICT-COUNCIL/WALSALL,30/09/2017,ECONOMY & ENVIRONMENT,WALSALL COUNCIL,04/07/2017,H59620170705FYQUQXMDJ-1,5.00,YEI (IMPACT) PROGRAMME-MISCELLANEOUS SUPPLIES,GOVERNMENT SERVICES,GPC
WALSALL COUNCIL,HTTP://OPENDATACOMMUNITIES.ORG/ID/METROPOLITAN-DISTRICT-COUNCIL/WALSALL,30/09/2017,ECONOMY & ENVIRONMENT,WALSALL COUNCIL,04/07/2017,H59620170705FYQUQXMDJ-2,5.00,YEI ESF FUNDING-MISCELLANEOUS SUPPLIES,GOVERNMENT SERVICES,GPC
WALSALL COUNCIL,HTTP://OPENDATACOMMUNITIES.ORG/ID/METROPOLITAN-DISTRICT-COUNCIL/WALSALL,30/09/2017,CHANGE & GOVERNANCE,WELSH BROS FOODS LTD,04/07/2017,H59620170705GJLFJDVJO-1,177.26,CA ST JOHNS C.E. PRIMARY SCHOO-MEAT-PROVISIONS,FREEZER AND LOCKER MEAT PROVISIONERS,GPC
WALSALL COUNCIL,HTTP://OPENDATACOMMUNITIES.ORG/ID/METROPOLITAN-DISTRICT-COUNCIL/WALSALL,30/09/2017,CHILDRENS SERVICES,METRO INNS WALSALL,04/07/2017,H59620170705GJYDFWEMX-1,269.00,INITIAL RESPONSE SERVICE-HOTEL ACCOMMODATION-EMPLOYEES,"HOTELS, MOTELS, RESORTS",GPC
WALSALL COUNCIL,HTTP://OPENDATACOMMUNITIES.ORG/ID/METROPOLITAN-DISTRICT-COUNCIL/WALSALL,30/09/2017,CHILDRENS SERVICES,TRAINLINE,04/07/2017,H59620170705GMFTUNESZ-1,168.15,57 LICHFIELD ROAD-RESIDENTS PERSONAL EXPENSES-AL,PASSENGER RAILWAYS,GPC
WALSALL COUNCIL,HTTP://OPENDATACOMMUNITIES.ORG/ID/METROPOLITAN-DISTRICT-COUNCIL/WALSALL,30/09/2017,CHANGE & GOVERNANCE,BLAKEMORE FOODSERVICE,04/07/2017,H59620170705GOVGOOGIV-1,76.50,TOWN HALL RESTAURANT BISTRO-DRY FOODS-PROVISIONS,CATERERS,GPC
WALSALL COUNCIL,HTTP://OPENDATACOMMUNITIES.ORG/ID/METROPOLITAN-DISTRICT-COUNCIL/WALSALL,30/09/2017,CHANGE & GOVERNANCE,BLAKEMORE FOODSERVICE,04/07/2017,H59620170705GOVGOOGIV-2,194.33,TOWN HALL RESTAURANT BISTRO-DRY FOODS-PROVISIONS,CATERERS,GPC
WALSALL COUNCIL,HTTP://OPENDATACOMMUNITIES.ORG/ID/METROPOLITAN-DISTRICT-COUNCIL/WALSALL,30/09/2017,CHANGE & GOVERNANCE,BLAKEMORE FOODSERVICE,04/07/2017,H59620170705GUTUKJLXH-1,8.00,CA OLD HALL SPECIAL SCHOOL-FROZEN FOODS-PROVISIONS,CATERERS,GPC
WALSALL COUNCIL,HTTP://OPENDATACOMMUNITIES.ORG/ID/METROPOLITAN-DISTRICT-COUNCIL/WALSALL,30/09/2017,CHANGE & GOVERNANCE,BLAKEMORE FOODSERVICE,04/07/2017,H59620170705GUTUKJLXH-2,67.74,CA OLD HALL SPECIAL SCHOOL-FROZEN FOODS-PROVISIONS,CATERERS,GPC
WALSALL COUNCIL,HTTP://OPENDATACOMMUNITIES.ORG/ID/METROPOLITAN-DISTRICT-COUNCIL/WALSALL,30/09/2017,SOCIAL CARE & INCLUSION,ASDA HOME SHOPPING,04/07/2017,H59620170705GVTENDREY-1,178.29,FALLINGS HEATH-FOOD AND BEVERAGES-PROVISIONS,GROCERY STORES AND SUPERMARKETS,GPC
WALSALL COUNCIL,HTTP://OPENDATACOMMUNITIES.ORG/ID/METROPOLITAN-DISTRICT-COUNCIL/WALSALL,30/09/2017,SOCIAL CARE & INCLUSION,ASDA HOME SHOPPING,04/07/2017,H59620170705GVTENDREY-2,111.60,FALLINGS HEATH-FOOD AND BEVERAGES-PROVISIONS,GROCERY STORES AND SUPERMARKETS,GPC
WALSALL COUNCIL,HTTP://OPENDATACOMMUNITIES.ORG/ID/METROPOLITAN-DISTRICT-COUNCIL/WALSALL,30/09/2017,CHANGE & GOVERNANCE,BULL DOG APPLIANCES LT,04/07/2017,H59620170705HGKIWUQLT-1,474.00,WALSALL CRISIS SUPPORT SCHEME-FURNITURE & EQUIPMENT,HOUSEHOLD APPLIANCE STORES,GPC
WALSALL COUNCIL,HTTP://OPENDATACOMMUNITIES.ORG/ID/METROPOLITAN-DISTRICT-COUNCIL/WALSALL,30/09/2017,CHANGE & GOVERNANCE,J VAN VLIET BIRMINGHAM LT,04/07/2017,H59620170705HMMEJFMOS-1,499.44,AREA PARTNERSHIPS-FURNITURE & EQUIPMENT,MISCELLANEOUS GENERAL MERCHANDISE,GPC
WALSALL COUNCIL,HTTP://OPENDATACOMMUNITIES.ORG/ID/METROPOLITAN-DISTRICT-COUNCIL/WALSALL,30/09/2017,CHANGE & GOVERNANCE,HOME BARGAINS,04/07/2017,H59620170705INNTYGBUQ-1,8.73,AREA PARTNERSHIPS-FURNITURE & EQUIPMENT,HARDWARE STORES,GPC
WALSALL COUNCIL,HTTP://OPENDATACOMMUNITIES.ORG/ID/METROPOLITAN-DISTRICT-COUNCIL/WALSALL,30/09/2017,CHANGE & GOVERNANCE,BLAKEMORE FOODSERVICE,04/07/2017,H59620170705INSDESYMJ-1,49.49,CA BROWNHILLS WEST PRIMARY SCH-DRY FOODS-PROVISIONS,CATERERS,GPC
WALSALL COUNCIL,HTTP://OPENDATACOMMUNITIES.ORG/ID/METROPOLITAN-DISTRICT-COUNCIL/WALSALL,30/09/2017,CHANGE & GOVERNANCE,BLAKEMORE FOODSERVICE,04/07/2017,H59620170705INSDESYMJ-2,73.10,CA BROWNHILLS WEST PRIMARY SCH-DRY FOODS-PROVISIONS,CATERERS,GPC
WALSALL COUNCIL,HTTP://OPENDATACOMMUNITIES.ORG/ID/METROPOLITAN-DISTRICT-COUNCIL/WALSALL,30/09/2017,ECONOMY & ENVIRONMENT,BANNER GROUP LTD,04/07/2017,H59620170705JBWKBGQPD-1,37.92,CENTRALISED STATIONARY-STATIONERY & GENERAL SUPPLIES-,"OFFICE, SCHOOL SUPPLY, AND STATIONERY STORES",GPC
WALSALL COUNCIL,HTTP://OPENDATACOMMUNITIES.ORG/ID/METROPOLITAN-DISTRICT-COUNCIL/WALSALL,30/09/2017,CHANGE & GOVERNANCE,BLAKEMORE FOODSERVICE,04/07/2017,H59620170705JUVABVSLO-1,-24.20,CA MEADOW VIEW JMI PRIMARY SCH-FROZEN FOODS-PROVISIONS,CATERERS,GPC
WALSALL COUNCIL,HTTP://OPENDATACOMMUNITIES.ORG/ID/METROPOLITAN-DISTRICT-COUNCIL/WALSALL,30/09/2017,CHANGE & GOVERNANCE,WELSH BROS FOODS LTD,04/07/2017,H59620170705JWVEGNYWI-1,13.06,CA ELMWOOD SPECIAL SCHOOL-MEAT-PROVISIONS,FREEZER AND LOCKER MEAT PROVISIONERS,GPC
WALSALL COUNCIL,HTTP://OPENDATACOMMUNITIES.ORG/ID/METROPOLITAN-DISTRICT-COUNCIL/WALSALL,30/09/2017,CHANGE & GOVERNANCE,BLAKEMORE FOODSERVICE,04/07/2017,H59620170705JXGCXMKRU-1,-1.96,CA CROFT COMMUNITY PRIMARY SCH-DRY FOODS-PROVISIONS,CATERERS,GPC
WALSALL COUNCIL,HTTP://OPENDATACOMMUNITIES.ORG/ID/METROPOLITAN-DISTRICT-COUNCIL/WALSALL,30/09/2017,CHANGE & GOVERNANCE,WELSH BROS FOODS LTD,04/07/2017,H59620170705JXTTUWNOD-1,77.32,CA RADLEYS PRIMARY SCHOOL-MEAT-PROVISIONS,FREEZER AND LOCKER MEAT PROVISIONERS,GPC
WALSALL COUNCIL,HTTP://OPENDATACOMMUNITIES.ORG/ID/METROPOLITAN-DISTRICT-COUNCIL/WALSALL,30/09/2017,ECONOMY & ENVIRONMENT,BANNER GROUP LTD,04/07/2017,H59620170705KTCIXDCOC-1,19.51,CENTRALISED STATIONARY-STATIONERY & GENERAL SUPPLIES-,"OFFICE, SCHOOL SUPPLY, AND STATIONERY STORES",GPC
WALSALL COUNCIL,HTTP://OPENDATACOMMUNITIES.ORG/ID/METROPOLITAN-DISTRICT-COUNCIL/WALSALL,30/09/2017,CHILDRENS SERVICES,PARENTPAY E-COM R,04/07/2017,H59620170705KUTYYGGTG-1,15.00,57 LICHFIELD ROAD-FOOD AND BEVERAGES-PROVISIONS,"COLLEGES, UNIVERSITIES, PROFESSIONAL SCHOOLS",GPC
WALSALL COUNCIL,HTTP://OPENDATACOMMUNITIES.ORG/ID/METROPOLITAN-DISTRICT-COUNCIL/WALSALL,30/09/2017,ECONOMY & ENVIRONMENT,SCHOOL LIBRARY ASSOCIA,04/07/2017,H59620170705KVIRWZAPY-1,10.50,SCHOOL LIBRARY SUPPORT-LIBRARY BOOKS,OTHER SCHOOLS AND EDUCATIONAL SERVICES,GPC
WALSALL COUNCIL,HTTP://OPENDATACOMMUNITIES.ORG/ID/METROPOLITAN-DISTRICT-COUNCIL/WALSALL,30/09/2017,CHANGE & GOVERNANCE,BLAKEMORE FOODSERVICE,04/07/2017,H59620170705LAXMHXJXP-1,48.02,CA ST JOHNS C.E. PRIMARY SCHOO-FROZEN FOODS-PROVISIONS,CATERERS,GPC
WALSALL COUNCIL,HTTP://OPENDATACOMMUNITIES.ORG/ID/METROPOLITAN-DISTRICT-COUNCIL/WALSALL,30/09/2017,CHANGE & GOVERNANCE,BLAKEMORE FOODSERVICE,04/07/2017,H59620170705LAXMHXJXP-2,246.53,CA ST JOHNS C.E. PRIMARY SCHOO-FROZEN FOODS-PROVISIONS,CATERERS,GPC
WALSALL COUNCIL,HTTP://OPENDATACOMMUNITIES.ORG/ID/METROPOLITAN-DISTRICT-COUNCIL/WALSALL,30/09/2017,CHANGE & GOVERNANCE,BRITISH HEART FOUNDATI,04/07/2017,H59620170705LVOXSPXBF-1,50.00,WALSALL CRISIS SUPPORT SCHEME-CRISIS SUPPORT PAYMENTS,"ORGANIZATIONS, CHARITABLE AND SOCIAL SERVICE",GPC
WALSALL COUNCIL,HTTP://OPENDATACOMMUNITIES.ORG/ID/METROPOLITAN-DISTRICT-COUNCIL/WALSALL,30/09/2017,CHANGE & GOVERNANCE,BRITISH HEART FOUNDATI,04/07/2017,H59620170705LVOXSPXBF-2,25.00,WALSALL CRISIS SUPPORT SCHEME-CRISIS SUPPORT PAYMENTS,"ORGANIZATIONS, CHARITABLE AND SOCIAL SERVICE",GPC
WALSALL COUNCIL,HTTP://OPENDATACOMMUNITIES.ORG/ID/METROPOLITAN-DISTRICT-COUNCIL/WALSALL,30/09/2017,CHANGE & GOVERNANCE,MERCURE WOLVERHAMPTON HOT,04/07/2017,H59620170705LXTOEIXCD-1,226.00,YOUNG PERSONS HOMELESS SERVICE-HOTEL ACCOMMODATION-EMPLOYEES,"HOTELS, MOTELS, RESORTS",GPC
WALSALL COUNCIL,HTTP://OPENDATACOMMUNITIES.ORG/ID/METROPOLITAN-DISTRICT-COUNCIL/WALSALL,30/09/2017,CHANGE & GOVERNANCE,TRAVEL WEST MIDLAN,04/07/2017,H59620170705LXWVVTFII-1,54.50,ACCOMMODATION SERVICES MANAGEM-OFFICER/STAFF-PUBLIC TRANSPORT,BUS LINES,GPC
WALSALL COUNCIL,HTTP://OPENDATACOMMUNITIES.ORG/ID/METROPOLITAN-DISTRICT-COUNCIL/WALSALL,30/09/2017,ECONOMY & ENVIRONMENT,BANNER GROUP LTD,04/07/2017,H59620170705LYNYKTSDT-1,43.42,CENTRALISED STATIONARY-STATIONERY & GENERAL SUPPLIES-,"OFFICE, SCHOOL SUPPLY, AND STATIONERY STORES",GPC
WALSALL COUNCIL,HTTP://OPENDATACOMMUNITIES.ORG/ID/METROPOLITAN-DISTRICT-COUNCIL/WALSALL,30/09/2017,CHANGE & GOVERNANCE,BLAKEMORE FOODSERVICE,04/07/2017,H59620170705MDMDWBGVG-1,-26.81,CA BLUE COAT C OF E PERFORMING-FROZEN FOODS-PROVISIONS,CATERERS,GPC
WALSALL COUNCIL,HTTP://OPENDATACOMMUNITIES.ORG/ID/METROPOLITAN-DISTRICT-COUNCIL/WALSALL,30/09/2017,CHILDRENS SERVICES,SWISS COTTAGE HOTEL,04/07/2017,H59620170705MKIHLBJYU-1,182.75,ELMWOOD SCHOOL-EXTERNAL TRAINING-OTHER,BEST WESTERN HOTELS,GPC
WALSALL COUNCIL,HTTP://OPENDATACOMMUNITIES.ORG/ID/METROPOLITAN-DISTRICT-COUNCIL/WALSALL,30/09/2017,CHANGE & GOVERNANCE,BLAKEMORE FOODSERVICE,04/07/2017,H59620170705MWRMXCAYN-1,577.10,CA ST JOHNS C.E. PRIMARY SCHOO-DRY FOODS-PROVISIONS,CATERERS,GPC
WALSALL COUNCIL,HTTP://OPENDATACOMMUNITIES.ORG/ID/METROPOLITAN-DISTRICT-COUNCIL/WALSALL,30/09/2017,CHILDRENS SERVICES,WWW.PANELWAREHOUSE.COM,04/07/2017,H59620170705NGTZZTHNG-1,71.99,GENERAL RESOURCES & MISC-GENERAL MATERIALS,OTHER BUSINESS SERVICES,GPC
WALSALL COUNCIL,HTTP://OPENDATACOMMUNITIES.ORG/ID/METROPOLITAN-DISTRICT-COUNCIL/WALSALL,30/09/2017,CHANGE & GOVERNANCE,BLAKEMORE FOODSERVICE,04/07/2017,H59620170705NNBVOUBEF-1,182.89,CA COOPER JORDAN CE PRIMARY SC-DRY FOODS-PROVISIONS,CATERERS,GPC
WALSALL COUNCIL,HTTP://OPENDATACOMMUNITIES.ORG/ID/METROPOLITAN-DISTRICT-COUNCIL/WALSALL,30/09/2017,CHANGE & GOVERNANCE,BLAKEMORE FOODSERVICE,04/07/2017,H59620170705NNBVOUBEF-2,54.17,CA COOPER JORDAN CE PRIMARY SC-DRY FOODS-PROVISIONS,CATERERS,GPC
WALSALL COUNCIL,HTTP://OPENDATACOMMUNITIES.ORG/ID/METROPOLITAN-DISTRICT-COUNCIL/WALSALL,30/09/2017,CHANGE & GOVERNANCE,BLAKEMORE FOODSERVICE,04/07/2017,H59620170705NPIDABKUX-1,24.01,CA BARCROFT D/C-FROZEN FOODS-PROVISIONS,CATERERS,GPC
WALSALL COUNCIL,HTTP://OPENDATACOMMUNITIES.ORG/ID/METROPOLITAN-DISTRICT-COUNCIL/WALSALL,30/09/2017,CHANGE & GOVERNANCE,BLAKEMORE FOODSERVICE,04/07/2017,H59620170705NPIDABKUX-2,118.19,CA BARCROFT D/C-FROZEN FOODS-PROVISIONS,CATERERS,GPC
WALSALL COUNCIL,HTTP://OPENDATACOMMUNITIES.ORG/ID/METROPOLITAN-DISTRICT-COUNCIL/WALSALL,30/09/2017,CHILDRENS SERVICES,WM MORRISON 063,04/07/2017,H59620170705NQIIBJWIL-1,19.26,LOCALITY FAMILY SUPPORT-WEST-FOOD AND BEVERAGES-PROVISIONS,GROCERY STORES AND SUPERMARKETS,GPC
WALSALL COUNCIL,HTTP://OPENDATACOMMUNITIES.ORG/ID/METROPOLITAN-DISTRICT-COUNCIL/WALSALL,30/09/2017,CHANGE & GOVERNANCE,WILKO RETAIL LIMIT,04/07/2017,H59620170705NVZTOZTZV-1,0.10,YOUNG PERSONS HOMELESS SERVICE-FURNITURE & EQUIPMENT,HOUSEHOLD APPLIANCE STORES,GPC
WALSALL COUNCIL,HTTP://OPENDATACOMMUNITIES.ORG/ID/METROPOLITAN-DISTRICT-COUNCIL/WALSALL,30/09/2017,CHANGE & GOVERNANCE,WILKO RETAIL LIMIT,04/07/2017,H59620170705NVZTOZTZV-2,17.00,YOUNG PERSONS HOMELESS SERVICE-FURNITURE & EQUIPMENT,HOUSEHOLD APPLIANCE STORES,GPC
WALSALL COUNCIL,HTTP://OPENDATACOMMUNITIES.ORG/ID/METROPOLITAN-DISTRICT-COUNCIL/WALSALL,30/09/2017,ECONOMY & ENVIRONMENT,BANNER GROUP LTD,04/07/2017,H59620170705NXVBBJKQX-1,33.64,CENTRALISED STATIONARY-STATIONERY & GENERAL SUPPLIES-,"OFFICE, SCHOOL SUPPLY, AND STATIONERY STORES",GPC
WALSALL COUNCIL,HTTP://OPENDATACOMMUNITIES.ORG/ID/METROPOLITAN-DISTRICT-COUNCIL/WALSALL,30/09/2017,CHANGE & GOVERNANCE,FACEBK 6C4X9DACP2,04/07/2017,H59620170705OGVFXSNGR-1,11.89,SCHOOL HR TRANSACTIONAL TEAM-ADVERTISING STAFF VACANCIES,ADVERTISING SERVICES,GPC
WALSALL COUNCIL,HTTP://OPENDATACOMMUNITIES.ORG/ID/METROPOLITAN-DISTRICT-COUNCIL/WALSALL,30/09/2017,CHANGE & GOVERNANCE,BLAKEMORE FOODSERVICE,04/07/2017,H59620170705OQZHYKIFW-1,8.00,CA JANE LANE SPECIAL SCHOOL-FROZEN FOODS-PROVISIONS,CATERERS,GPC
WALSALL COUNCIL,HTTP://OPENDATACOMMUNITIES.ORG/ID/METROPOLITAN-DISTRICT-COUNCIL/WALSALL,30/09/2017,CHANGE & GOVERNANCE,BLAKEMORE FOODSERVICE,04/07/2017,H59620170705OQZHYKIFW-2,64.94,CA JANE LANE SPECIAL SCHOOL-FROZEN FOODS-PROVISIONS,CATERERS,GPC
WALSALL COUNCIL,HTTP://OPENDATACOMMUNITIES.ORG/ID/METROPOLITAN-DISTRICT-COUNCIL/WALSALL,30/09/2017,CHILDRENS SERVICES,OFSTED MOTO,04/07/2017,H59620170705OVUNPKWYI-1,50.00,BLOXWICH CHILDCARE SERVICES-PROFESSIONAL FEES AND SERVICES,GOVERNMENT SERVICES,GPC
WALSALL COUNCIL,HTTP://OPENDATACOMMUNITIES.ORG/ID/METROPOLITAN-DISTRICT-COUNCIL/WALSALL,30/09/2017,CHANGE & GOVERNANCE,PARK PLACE SHOE REPAIRS,04/07/2017,H59620170705PHXLFKSZP-1,6.00,ACCOMMODATION SERVICES MANAGEM-CLOTHING & LAUNDRY,"HAT CLEANING SHOPS, SHOE REPAIR SHOPS, SHOE SHINE ",GPC
WALSALL COUNCIL,HTTP://OPENDATACOMMUNITIES.ORG/ID/METROPOLITAN-DISTRICT-COUNCIL/WALSALL,30/09/2017,CHANGE & GOVERNANCE,BLAKEMORE FOODSERVICE,04/07/2017,H59620170705PMZTLFHLO-1,56.03,CA BUSILL JONES PRIMARY SCHOOL-FROZEN FOODS-PROVISIONS,CATERERS,GPC
WALSALL COUNCIL,HTTP://OPENDATACOMMUNITIES.ORG/ID/METROPOLITAN-DISTRICT-COUNCIL/WALSALL,30/09/2017,CHANGE & GOVERNANCE,BLAKEMORE FOODSERVICE,04/07/2017,H59620170705PMZTLFHLO-2,240.54,CA BUSILL JONES PRIMARY SCHOOL-FROZEN FOODS-PROVISIONS,CATERERS,GPC
WALSALL COUNCIL,HTTP://OPENDATACOMMUNITIES.ORG/ID/METROPOLITAN-DISTRICT-COUNCIL/WALSALL,30/09/2017,CHANGE & GOVERNANCE,BLAKEMORE FOODSERVICE,04/07/2017,H59620170705PWMWGFLLX-1,147.00,CA BIRCHILLS CE PRIMARY COMMUN-FROZEN FOODS-PROVISIONS,CATERERS,GPC
WALSALL COUNCIL,HTTP://OPENDATACOMMUNITIES.ORG/ID/METROPOLITAN-DISTRICT-COUNCIL/WALSALL,30/09/2017,CHANGE & GOVERNANCE,BLAKEMORE FOODSERVICE,04/07/2017,H59620170705PYGIDRTQG-1,269.08,CA CROFT COMMUNITY PRIMARY SCH-DRY FOODS-PROVISIONS,CATERERS,GPC
WALSALL COUNCIL,HTTP://OPENDATACOMMUNITIES.ORG/ID/METROPOLITAN-DISTRICT-COUNCIL/WALSALL,30/09/2017,CHANGE & GOVERNANCE,NOBISCO LTD,04/07/2017,H59620170705QDKLOTEIJ-1,141.20,CA BIRCHILLS CE PRIMARY COMMUN-DISPOSABLES-PROVISIONS,"CLEANING AND MAINTENANCE, JANITORIAL SERVICES",GPC
WALSALL COUNCIL,HTTP://OPENDATACOMMUNITIES.ORG/ID/METROPOLITAN-DISTRICT-COUNCIL/WALSALL,30/09/2017,CHANGE & GOVERNANCE,BLAKEMORE FOODSERVICE,04/07/2017,H59620170705QGJPYLABD-1,39.46,CA ST MICHAELS C.E. PRIMARY SC-DRY FOODS-PROVISIONS,CATERERS,GPC
WALSALL COUNCIL,HTTP://OPENDATACOMMUNITIES.ORG/ID/METROPOLITAN-DISTRICT-COUNCIL/WALSALL,30/09/2017,CHANGE & GOVERNANCE,BLAKEMORE FOODSERVICE,04/07/2017,H59620170705QGJPYLABD-2,182.97,CA ST MICHAELS C.E. PRIMARY SC-DRY FOODS-PROVISIONS,CATERERS,GPC
WALSALL COUNCIL,HTTP://OPENDATACOMMUNITIES.ORG/ID/METROPOLITAN-DISTRICT-COUNCIL/WALSALL,30/09/2017,CHANGE & GOVERNANCE,WWW.SCC.COM,04/07/2017,H59620170705QOHLJIMVC-1,2095.13,DATA CENTRES-COMPUTER EQUIPMENT AND SUPPLIE,"COMPUTERS, COMPUTER PERIPHERAL EQUIPMENT, SOFTWARE",GPC
WALSALL COUNCIL,HTTP://OPENDATACOMMUNITIES.ORG/ID/METROPOLITAN-DISTRICT-COUNCIL/WALSALL,30/09/2017,CHILDRENS SERVICES,TRAINLINE,04/07/2017,H59620170705QTEYRHCUI-1,57.32,SAFEGUARDING & FAMILY SUPPORT-OFFICER/STAFF-PUBLIC TRANSPORT,PASSENGER RAILWAYS,GPC
WALSALL COUNCIL,HTTP://OPENDATACOMMUNITIES.ORG/ID/METROPOLITAN-DISTRICT-COUNCIL/WALSALL,30/09/2017,CHANGE & GOVERNANCE,BULL DOG APPLIANCES LT,04/07/2017,H59620170705RCDLINYVK-1,333.00,YOUNG PERSONS HOMELESS SERVICE-FURNITURE & EQUIPMENT,HOUSEHOLD APPLIANCE STORES,GPC
WALSALL COUNCIL,HTTP://OPENDATACOMMUNITIES.ORG/ID/METROPOLITAN-DISTRICT-COUNCIL/WALSALL,30/09/2017,CHANGE & GOVERNANCE,BLAKEMORE FOODSERVICE,04/07/2017,H59620170705SDDIVOBHB-1,53.92,CA CASTLEFORT JMI SCHOOL-FROZEN FOODS-PROVISIONS,CATERERS,GPC
WALSALL COUNCIL,HTTP://OPENDATACOMMUNITIES.ORG/ID/METROPOLITAN-DISTRICT-COUNCIL/WALSALL,30/09/2017,ECONOMY & ENVIRONMENT,BANNER GROUP LTD,04/07/2017,H59620170705SFRMNBQQK-1,7.48,CENTRALISED STATIONARY-STATIONERY & GENERAL SUPPLIES-,"OFFICE, SCHOOL SUPPLY, AND STATIONERY STORES",GPC
WALSALL COUNCIL,HTTP://OPENDATACOMMUNITIES.ORG/ID/METROPOLITAN-DISTRICT-COUNCIL/WALSALL,30/09/2017,ECONOMY & ENVIRONMENT,DARLASTON BUILDERS MER,04/07/2017,H59620170705SNJTQBEJD-1,23.17,INFRASTRUCTURE MAINTENANCE-GENERAL MATERIALS,LUMBER & BUILDING MATERIALS STORES,GPC
WALSALL COUNCIL,HTTP://OPENDATACOMMUNITIES.ORG/ID/METROPOLITAN-DISTRICT-COUNCIL/WALSALL,30/09/2017,CHANGE & GOVERNANCE,BULL DOG APPLIANCES LT,04/07/2017,H59620170705SOIIIEILM-1,252.00,WALSALL CRISIS SUPPORT SCHEME-FURNITURE & EQUIPMENT,HOUSEHOLD APPLIANCE STORES,GPC
WALSALL COUNCIL,HTTP://OPENDATACOMMUNITIES.ORG/ID/METROPOLITAN-DISTRICT-COUNCIL/WALSALL,30/09/2017,CHANGE & GOVERNANCE,BLAKEMORE FOODSERVICE,04/07/2017,H59620170705STPCEUWEN-1,-53.92,CA CASTLEFORT JMI SCHOOL-FROZEN FOODS-PROVISIONS,CATERERS,GPC
WALSALL COUNCIL,HTTP://OPENDATACOMMUNITIES.ORG/ID/METROPOLITAN-DISTRICT-COUNCIL/WALSALL,30/09/2017,CHILDRENS SERVICES,FARMFOODS- BLOXWIC,04/07/2017,H59620170705STWCFSTWN-1,33.08,MARY ELLIOTT SCHOOL-BREAD-GENERAL-PROVISIONS,GROCERY STORES AND SUPERMARKETS,GPC
WALSALL COUNCIL,HTTP://OPENDATACOMMUNITIES.ORG/ID/METROPOLITAN-DISTRICT-COUNCIL/WALSALL,30/09/2017,CHANGE & GOVERNANCE,SAINSBURYS SMKTS,04/07/2017,H59620170705SUBINEIII-1,11.40,YOUNG PERSONS HOMELESS SERVICE-FOOD AND BEVERAGES-PROVISIONS,GROCERY STORES AND SUPERMARKETS,GPC
WALSALL COUNCIL,HTTP://OPENDATACOMMUNITIES.ORG/ID/METROPOLITAN-DISTRICT-COUNCIL/WALSALL,30/09/2017,CHANGE & GOVERNANCE,SAINSBURYS SMKTS,04/07/2017,H59620170705SUBINEIII-2,0.15,YOUNG PERSONS HOMELESS SERVICE-FOOD AND BEVERAGES-PROVISIONS,GROCERY STORES AND SUPERMARKETS,GPC
WALSALL COUNCIL,HTTP://OPENDATACOMMUNITIES.ORG/ID/METROPOLITAN-DISTRICT-COUNCIL/WALSALL,30/09/2017,CHANGE & GOVERNANCE,SAINSBURYS SMKTS,04/07/2017,H59620170705SUBINEIII-3,10.00,YOUNG PERSONS HOMELESS SERVICE-FOOD AND BEVERAGES-PROVISIONS,GROCERY STORES AND SUPERMARKETS,GPC
WALSALL COUNCIL,HTTP://OPENDATACOMMUNITIES.ORG/ID/METROPOLITAN-DISTRICT-COUNCIL/WALSALL,30/09/2017,CHANGE & GOVERNANCE,SAINSBURYS SMKTS,04/07/2017,H59620170705SUBINEIII-4,4.40,YOUNG PERSONS HOMELESS SERVICE-FOOD AND BEVERAGES-PROVISIONS,GROCERY STORES AND SUPERMARKETS,GPC
WALSALL COUNCIL,HTTP://OPENDATACOMMUNITIES.ORG/ID/METROPOLITAN-DISTRICT-COUNCIL/WALSALL,30/09/2017,CHANGE & GOVERNANCE,BULL DOG APPLIANCES LT,04/07/2017,H59620170705SYGMINVPM-1,333.00,WALSALL CRISIS SUPPORT SCHEME-FURNITURE & EQUIPMENT,HOUSEHOLD APPLIANCE STORES,GPC
WALSALL COUNCIL,HTTP://OPENDATACOMMUNITIES.ORG/ID/METROPOLITAN-DISTRICT-COUNCIL/WALSALL,30/09/2017,CHANGE & GOVERNANCE,WELSH BROS FOODS LTD,04/07/2017,H59620170705TFMQBRGMS-1,89.15,CA MOORCROFT WOOD-MEAT-PROVISIONS,FREEZER AND LOCKER MEAT PROVISIONERS,GPC
WALSALL COUNCIL,HTTP://OPENDATACOMMUNITIES.ORG/ID/METROPOLITAN-DISTRICT-COUNCIL/WALSALL,30/09/2017,CHANGE & GOVERNANCE,BLAKEMORE FOODSERVICE,04/07/2017,H59620170705TJTWLFZFJ-1,32.02,CA BEACON PRIMARY SCHOOL-FROZEN FOODS-PROVISIONS,CATERERS,GPC
WALSALL COUNCIL,HTTP://OPENDATACOMMUNITIES.ORG/ID/METROPOLITAN-DISTRICT-COUNCIL/WALSALL,30/09/2017,CHANGE & GOVERNANCE,BLAKEMORE FOODSERVICE,04/07/2017,H59620170705TJTWLFZFJ-2,181.39,CA BEACON PRIMARY SCHOOL-FROZEN FOODS-PROVISIONS,CATERERS,GPC
WALSALL COUNCIL,HTTP://OPENDATACOMMUNITIES.ORG/ID/METROPOLITAN-DISTRICT-COUNCIL/WALSALL,30/09/2017,CHANGE & GOVERNANCE,BULL DOG APPLIANCES LT,04/07/2017,H59620170705TLDNCMMKS-1,474.00,WALSALL CRISIS SUPPORT SCHEME-CRISIS SUPPORT PAYMENTS,HOUSEHOLD APPLIANCE STORES,GPC
WALSALL COUNCIL,HTTP://OPENDATACOMMUNITIES.ORG/ID/METROPOLITAN-DISTRICT-COUNCIL/WALSALL,30/09/2017,ECONOMY & ENVIRONMENT,WWW.VETIMED.CO.UK,04/07/2017,H59620170705TYTISULPH-1,50.90,STREET CLEANSING-GENERAL MATERIALS,PET SHOPS-PET FOOD AND SUPPLIES,GPC
WALSALL COUNCIL,HTTP://OPENDATACOMMUNITIES.ORG/ID/METROPOLITAN-DISTRICT-COUNCIL/WALSALL,30/09/2017,CHANGE & GOVERNANCE,TESCO STORES 6161,04/07/2017,H59620170705UGPOCTXCS-1,4.00,WALSALL CRISIS SUPPORT SCHEME-FOOD AND BEVERAGES-PROVISIONS,GROCERY STORES AND SUPERMARKETS,GPC
WALSALL COUNCIL,HTTP://OPENDATACOMMUNITIES.ORG/ID/METROPOLITAN-DISTRICT-COUNCIL/WALSALL,30/09/2017,CHILDRENS SERVICES,WM MORRISON FOOD.COM,04/07/2017,H59620170705UUOSIFXKD-1,13.02,FOOD TECHNOLOGY-GENERAL MATERIALS,GROCERY STORES AND SUPERMARKETS,GPC
WALSALL COUNCIL,HTTP://OPENDATACOMMUNITIES.ORG/ID/METROPOLITAN-DISTRICT-COUNCIL/WALSALL,30/09/2017,CHILDRENS SERVICES,WM MORRISON FOOD.COM,04/07/2017,H59620170705UUOSIFXKD-2,12.62,FOOD TECHNOLOGY-GENERAL MATERIALS,GROCERY STORES AND SUPERMARKETS,GPC
WALSALL COUNCIL,HTTP://OPENDATACOMMUNITIES.ORG/ID/METROPOLITAN-DISTRICT-COUNCIL/WALSALL,30/09/2017,CHILDRENS SERVICES,WM MORRISON FOOD.COM,04/07/2017,H59620170705UUOSIFXKD-3,2.40,PRIMARY-GENERAL MATERIALS,GROCERY STORES AND SUPERMARKETS,GPC
WALSALL COUNCIL,HTTP://OPENDATACOMMUNITIES.ORG/ID/METROPOLITAN-DISTRICT-COUNCIL/WALSALL,30/09/2017,CHILDRENS SERVICES,WM MORRISON FOOD.COM,04/07/2017,H59620170705UUOSIFXKD-4,13.68,GENERAL-GENERAL MATERIALS,GROCERY STORES AND SUPERMARKETS,GPC
WALSALL COUNCIL,HTTP://OPENDATACOMMUNITIES.ORG/ID/METROPOLITAN-DISTRICT-COUNCIL/WALSALL,30/09/2017,CHANGE & GOVERNANCE,BULL DOG APPLIANCES LT,04/07/2017,H59620170705UYSJNJDQP-1,162.00,WALSALL CRISIS SUPPORT SCHEME-FURNITURE & EQUIPMENT,HOUSEHOLD APPLIANCE STORES,GPC
WALSALL COUNCIL,HTTP://OPENDATACOMMUNITIES.ORG/ID/METROPOLITAN-DISTRICT-COUNCIL/WALSALL,30/09/2017,CHANGE & GOVERNANCE,BULL DOG APPLIANCES LT,04/07/2017,H59620170705VCRXTDMGG-1,474.00,WALSALL CRISIS SUPPORT SCHEME-FURNITURE & EQUIPMENT,HOUSEHOLD APPLIANCE STORES,GPC
WALSALL COUNCIL,HTTP://OPENDATACOMMUNITIES.ORG/ID/METROPOLITAN-DISTRICT-COUNCIL/WALSALL,30/09/2017,CHANGE & GOVERNANCE,BLAKEMORE FOODSERVICE,04/07/2017,H59620170705VUGXBNRMA-1,163.79,CA LINDENS PRIMARY SCHOOL-DRY FOODS-PROVISIONS,CATERERS,GPC
WALSALL COUNCIL,HTTP://OPENDATACOMMUNITIES.ORG/ID/METROPOLITAN-DISTRICT-COUNCIL/WALSALL,30/09/2017,ECONOMY & ENVIRONMENT,BANNER GROUP LTD,04/07/2017,H59620170705VVXRWQRKP-1,7.85,CENTRALISED STATIONARY-STATIONERY & GENERAL SUPPLIES-,"OFFICE, SCHOOL SUPPLY, AND STATIONERY STORES",GPC
WALSALL COUNCIL,HTTP://OPENDATACOMMUNITIES.ORG/ID/METROPOLITAN-DISTRICT-COUNCIL/WALSALL,30/09/2017,CHANGE & GOVERNANCE,BLAKEMORE FOODSERVICE,04/07/2017,H59620170705WAMXOGXTV-1,16.01,CA CROFT COMMUNITY PRIMARY SCH-FROZEN FOODS-PROVISIONS,CATERERS,GPC
WALSALL COUNCIL,HTTP://OPENDATACOMMUNITIES.ORG/ID/METROPOLITAN-DISTRICT-COUNCIL/WALSALL,30/09/2017,CHANGE & GOVERNANCE,BLAKEMORE FOODSERVICE,04/07/2017,H59620170705WAMXOGXTV-2,120.87,CA CROFT COMMUNITY PRIMARY SCH-FROZEN FOODS-PROVISIONS,CATERERS,GPC
WALSALL COUNCIL,HTTP://OPENDATACOMMUNITIES.ORG/ID/METROPOLITAN-DISTRICT-COUNCIL/WALSALL,30/09/2017,CHILDRENS SERVICES,TRAINLINE,04/07/2017,H59620170705WCIVFXYTK-1,216.60,SAFEGUARDING & FAMILY SUPPORT-OTHER-TRAVEL ALLOWANCES,PASSENGER RAILWAYS,GPC
WALSALL COUNCIL,HTTP://OPENDATACOMMUNITIES.ORG/ID/METROPOLITAN-DISTRICT-COUNCIL/WALSALL,30/09/2017,ECONOMY & ENVIRONMENT,ASDA,04/07/2017,H59620170705WCKQRIBZZ-1,52.80,WALSALL TOWN HALL-FOOD AND BEVERAGES-PROVISIONS,GROCERY STORES AND SUPERMARKETS,GPC
WALSALL COUNCIL,HTTP://OPENDATACOMMUNITIES.ORG/ID/METROPOLITAN-DISTRICT-COUNCIL/WALSALL,30/09/2017,CHANGE & GOVERNANCE,BLAKEMORE FOODSERVICE,04/07/2017,H59620170705WGBGBHGIO-1,16.01,CA RADLEYS PRIMARY SCHOOL-FROZEN FOODS-PROVISIONS,CATERERS,GPC
WALSALL COUNCIL,HTTP://OPENDATACOMMUNITIES.ORG/ID/METROPOLITAN-DISTRICT-COUNCIL/WALSALL,30/09/2017,CHANGE & GOVERNANCE,BLAKEMORE FOODSERVICE,04/07/2017,H59620170705WGBGBHGIO-2,167.12,CA RADLEYS PRIMARY SCHOOL-FROZEN FOODS-PROVISIONS,CATERERS,GPC
WALSALL COUNCIL,HTTP://OPENDATACOMMUNITIES.ORG/ID/METROPOLITAN-DISTRICT-COUNCIL/WALSALL,30/09/2017,CHANGE & GOVERNANCE,J & S GENERAL STOR,04/07/2017,H59620170705WGJRMBCPW-1,5.50,ACCOMMODATION SERVICES MANAGEM-FOOD AND BEVERAGES-PROVISIONS,MISCELLANEOUS FOOD STORES & CONVENIENCE STORES,GPC
WALSALL COUNCIL,HTTP://OPENDATACOMMUNITIES.ORG/ID/METROPOLITAN-DISTRICT-COUNCIL/WALSALL,30/09/2017,CHANGE & GOVERNANCE,BLAKEMORE FOODSERVICE,04/07/2017,H59620170705WIOKLYHGX-1,26.81,CA BLUE COAT C OF E PERFORMING-FROZEN FOODS-PROVISIONS,CATERERS,GPC
WALSALL COUNCIL,HTTP://OPENDATACOMMUNITIES.ORG/ID/METROPOLITAN-DISTRICT-COUNCIL/WALSALL,30/09/2017,CHANGE & GOVERNANCE,BLAKEMORE FOODSERVICE,04/07/2017,H59620170705WROMEHSKY-1,32.02,CA FIBBERSLEY PARK PRIMARY SCH-FROZEN FOODS-PROVISIONS,CATERERS,GPC
WALSALL COUNCIL,HTTP://OPENDATACOMMUNITIES.ORG/ID/METROPOLITAN-DISTRICT-COUNCIL/WALSALL,30/09/2017,CHANGE & GOVERNANCE,BLAKEMORE FOODSERVICE,04/07/2017,H59620170705WROMEHSKY-2,208.62,CA FIBBERSLEY PARK PRIMARY SCH-FROZEN FOODS-PROVISIONS,CATERERS,GPC
WALSALL COUNCIL,HTTP://OPENDATACOMMUNITIES.ORG/ID/METROPOLITAN-DISTRICT-COUNCIL/WALSALL,30/09/2017,CHANGE & GOVERNANCE,BLAKEMORE FOODSERVICE,04/07/2017,H59620170705WSPBOJGIW-1,16.01,CA LEIGHSWOOD PRIMARY SCHOOL-FROZEN FOODS-PROVISIONS,CATERERS,GPC
WALSALL COUNCIL,HTTP://OPENDATACOMMUNITIES.ORG/ID/METROPOLITAN-DISTRICT-COUNCIL/WALSALL,30/09/2017,CHANGE & GOVERNANCE,BLAKEMORE FOODSERVICE,04/07/2017,H59620170705WSPBOJGIW-2,76.49,CA LEIGHSWOOD PRIMARY SCHOOL-FROZEN FOODS-PROVISIONS,CATERERS,GPC
WALSALL COUNCIL,HTTP://OPENDATACOMMUNITIES.ORG/ID/METROPOLITAN-DISTRICT-COUNCIL/WALSALL,30/09/2017,CHANGE & GOVERNANCE,BLAKEMORE FOODSERVICE,04/07/2017,H59620170705WZBXGOWAZ-1,103.98,CA OAKWOOD SPECIAL SCHOOL-DRY FOODS-PROVISIONS,CATERERS,GPC
WALSALL COUNCIL,HTTP://OPENDATACOMMUNITIES.ORG/ID/METROPOLITAN-DISTRICT-COUNCIL/WALSALL,30/09/2017,SOCIAL CARE & INCLUSION,ASDA HOME SHOPPING,04/07/2017,H59620170705WZTCTTRYX-1,-3.47,FALLINGS HEATH-FOOD AND BEVERAGES-PROVISIONS,GROCERY STORES AND SUPERMARKETS,GPC
WALSALL COUNCIL,HTTP://OPENDATACOMMUNITIES.ORG/ID/METROPOLITAN-DISTRICT-COUNCIL/WALSALL,30/09/2017,CHILDRENS SERVICES,W M MORRISONS.COM,04/07/2017,H59620170705XBXGDTKGD-1,26.46,BIRCHILLS CHILDCARE SERVICES-FOOD AND BEVERAGES-PROVISIONS,GROCERY STORES AND SUPERMARKETS,GPC
WALSALL COUNCIL,HTTP://OPENDATACOMMUNITIES.ORG/ID/METROPOLITAN-DISTRICT-COUNCIL/WALSALL,30/09/2017,CHILDRENS SERVICES,W M MORRISONS.COM,04/07/2017,H59620170705XBXGDTKGD-2,145.13,BIRCHILLS CHILDCARE SERVICES-FOOD AND BEVERAGES-PROVISIONS,GROCERY STORES AND SUPERMARKETS,GPC
WALSALL COUNCIL,HTTP://OPENDATACOMMUNITIES.ORG/ID/METROPOLITAN-DISTRICT-COUNCIL/WALSALL,30/09/2017,CHANGE & GOVERNANCE,BLAKEMORE FOODSERVICE,04/07/2017,H59620170705XDXTSULVG-1,-3.72,CA BARCROFT D/C-DRY FOODS-PROVISIONS,CATERERS,GPC
WALSALL COUNCIL,HTTP://OPENDATACOMMUNITIES.ORG/ID/METROPOLITAN-DISTRICT-COUNCIL/WALSALL,30/09/2017,CHANGE & GOVERNANCE,WELSH BROS FOODS LTD,04/07/2017,H59620170705XPORPYEYG-1,37.57,CA FIBBERSLEY PARK PRIMARY SCH-MEAT-PROVISIONS,FREEZER AND LOCKER MEAT PROVISIONERS,GPC
WALSALL COUNCIL,HTTP://OPENDATACOMMUNITIES.ORG/ID/METROPOLITAN-DISTRICT-COUNCIL/WALSALL,30/09/2017,CHANGE & GOVERNANCE,WP ENGINE,04/07/2017,H59620170705XWBKOLDDB-1,96.29,ICT INCOME-COMPUTER EQUIPMENT AND SUPPLIE,"COMPUTER PROGRAM, SYSTEM DESIGN",GPC
WALSALL COUNCIL,HTTP://OPENDATACOMMUNITIES.ORG/ID/METROPOLITAN-DISTRICT-COUNCIL/WALSALL,30/09/2017,CHANGE & GOVERNANCE,NOBISCO LTD,04/07/2017,H59620170705XXNJVIXDE-1,50.70,CA OLD HALL SPECIAL SCHOOL-DISPOSABLES-PROVISIONS,"CLEANING AND MAINTENANCE, JANITORIAL SERVICES",GPC
WALSALL COUNCIL,HTTP://OPENDATACOMMUNITIES.ORG/ID/METROPOLITAN-DISTRICT-COUNCIL/WALSALL,30/09/2017,CHANGE & GOVERNANCE,ARTHUR BRETT CATER,04/07/2017,H59620170705YDHWVHVMD-1,58.06,CA BLUE COAT C OF E PERFORMING-FOOD AND BEVERAGES-PROVISIONS,MISCELLANEOUS FOOD STORES & CONVENIENCE STORES,GPC
WALSALL COUNCIL,HTTP://OPENDATACOMMUNITIES.ORG/ID/METROPOLITAN-DISTRICT-COUNCIL/WALSALL,30/09/2017,CHANGE & GOVERNANCE,BLAKEMORE FOODSERVICE,04/07/2017,H59620170705YGJQLFQRM-1,188.64,CA MEADOW VIEW JMI PRIMARY SCH-DRY FOODS-PROVISIONS,CATERERS,GPC
WALSALL COUNCIL,HTTP://OPENDATACOMMUNITIES.ORG/ID/METROPOLITAN-DISTRICT-COUNCIL/WALSALL,30/09/2017,CHANGE & GOVERNANCE,BLAKEMORE FOODSERVICE,04/07/2017,H59620170705YRSGMCBUO-1,103.03,CA CASTLEFORT JMI SCHOOL-DRY FOODS-PROVISIONS,CATERERS,GPC
WALSALL COUNCIL,HTTP://OPENDATACOMMUNITIES.ORG/ID/METROPOLITAN-DISTRICT-COUNCIL/WALSALL,30/09/2017,CHILDRENS SERVICES,EB *KEEPING EARLY YEAR,04/07/2017,H59620170705YWIPFFIFC-1,125.00,LEIGHSWOOD PRIMARY SCHOOL-EXTERNAL TRAINING,OTHER BUSINESS SERVICES,GPC
WALSALL COUNCIL,HTTP://OPENDATACOMMUNITIES.ORG/ID/METROPOLITAN-DISTRICT-COUNCIL/WALSALL,30/09/2017,CHANGE & GOVERNANCE,WELSH BROS FOODS LTD,04/07/2017,H59620170705ZODSNOVDY-1,184.53,CA BUSILL JONES PRIMARY SCHOOL-MEAT-PROVISIONS,FREEZER AND LOCKER MEAT PROVISIONERS,GPC
WALSALL COUNCIL,HTTP://OPENDATACOMMUNITIES.ORG/ID/METROPOLITAN-DISTRICT-COUNCIL/WALSALL,30/09/2017,CHANGE & GOVERNANCE,PARK INN BY RADISSON,04/07/2017,H59620170705ZSBWIQIOK-1,319.00,BED & BREAKFAST PAYMENTS-HOTEL ACCOMMODATION-EMPLOYEES,"HOTELS, MOTELS, RESORTS",GPC
WALSALL COUNCIL,HTTP://OPENDATACOMMUNITIES.ORG/ID/METROPOLITAN-DISTRICT-COUNCIL/WALSALL,30/09/2017,CHILDRENS SERVICES,B&M RETAIL LTD,04/07/2017,H59620170705ZSTHLFXPI-1,4.99,BLOXWICH CHILDCARE SERVICES-GENERAL MATERIALS,DISCOUNT STORES,GPC
WALSALL COUNCIL,HTTP://OPENDATACOMMUNITIES.ORG/ID/METROPOLITAN-DISTRICT-COUNCIL/WALSALL,30/09/2017,CHILDRENS SERVICES,THE PLASTIC PEOPLE,05/07/2017,H59620170706AABCJKRWR-1,36.52,"NEW LEAF PUPIL REFERAL UNIT-REPAIRS,ALTERATIONS & MAINTENA",HOME SUPPLY WAREHOUSE STORES,GPC
WALSALL COUNCIL,HTTP://OPENDATACOMMUNITIES.ORG/ID/METROPOLITAN-DISTRICT-COUNCIL/WALSALL,30/09/2017,CHILDRENS SERVICES,AQUAID FRANCHISING LTD,05/07/2017,H59620170706BDILEOTBP-1,666.00,PELSALL EDC-STAFF MINERAL WATER-EQUIPMENT,OTHER BUSINESS SERVICES,GPC
WALSALL COUNCIL,HTTP://OPENDATACOMMUNITIES.ORG/ID/METROPOLITAN-DISTRICT-COUNCIL/WALSALL,30/09/2017,CHANGE & GOVERNANCE,ARTHUR BRETT CATER,05/07/2017,H59620170706BJABGECRO-1,29.50,CA ST JOHNS C.E. PRIMARY SCHOO-FRUIT & VEGETABLES OTHER-PROVI,MISCELLANEOUS FOOD STORES & CONVENIENCE STORES,GPC
WALSALL COUNCIL,HTTP://OPENDATACOMMUNITIES.ORG/ID/METROPOLITAN-DISTRICT-COUNCIL/WALSALL,30/09/2017,ECONOMY & ENVIRONMENT,BANNER GROUP LTD,05/07/2017,H59620170706BPKUFXCSN-1,377.28,CENTRALISED STATIONARY-STATIONERY & GENERAL SUPPLIES-,"OFFICE, SCHOOL SUPPLY, AND STATIONERY STORES",GPC
WALSALL COUNCIL,HTTP://OPENDATACOMMUNITIES.ORG/ID/METROPOLITAN-DISTRICT-COUNCIL/WALSALL,30/09/2017,ECONOMY & ENVIRONMENT,AMZ*AMAZON US,05/07/2017,H59620170706CGQJFJXLC-1,-26.26,OAK PARK-MISCELLANEOUS SUPPLIES,MISCELLANEOUS AND SPECIALTY RETAIL STORES,GPC
WALSALL COUNCIL,HTTP://OPENDATACOMMUNITIES.ORG/ID/METROPOLITAN-DISTRICT-COUNCIL/WALSALL,30/09/2017,CHANGE & GOVERNANCE,ARTHUR BRETT CATER,05/07/2017,H59620170706CIPNPAESO-1,32.25,CA OLD HALL SPECIAL SCHOOL-FRUIT & VEGETABLES OTHER-PROVI,MISCELLANEOUS FOOD STORES & CONVENIENCE STORES,GPC
WALSALL COUNCIL,HTTP://OPENDATACOMMUNITIES.ORG/ID/METROPOLITAN-DISTRICT-COUNCIL/WALSALL,30/09/2017,CHANGE & GOVERNANCE,ARTHUR BRETT CATER,05/07/2017,H59620170706CSYYHXMEU-1,45.79,CA ST GILES C.E. PRIMARY SCHOO-FRUIT & VEGETABLES OTHER-PROVI,MISCELLANEOUS FOOD STORES & CONVENIENCE STORES,GPC
WALSALL COUNCIL,HTTP://OPENDATACOMMUNITIES.ORG/ID/METROPOLITAN-DISTRICT-COUNCIL/WALSALL,30/09/2017,CHANGE & GOVERNANCE,ARTHUR BRETT CATER,05/07/2017,H59620170706CVJFCCNSO-1,63.87,CA BUSILL JONES PRIMARY SCHOOL-FRUIT & VEGETABLES OTHER-PROVI,MISCELLANEOUS FOOD STORES & CONVENIENCE STORES,GPC
WALSALL COUNCIL,HTTP://OPENDATACOMMUNITIES.ORG/ID/METROPOLITAN-DISTRICT-COUNCIL/WALSALL,30/09/2017,CHILDRENS SERVICES,POST OFFICE COUNTER,05/07/2017,H59620170706DEBQOROAX-1,9.80,PARENTING TEAM-POSTAGES AND COURIER SERVICES,POSTAL SERVICES - GOVERNMENT ONLY,GPC
WALSALL COUNCIL,HTTP://OPENDATACOMMUNITIES.ORG/ID/METROPOLITAN-DISTRICT-COUNCIL/WALSALL,30/09/2017,CHANGE & GOVERNANCE,CHICKEN JOES LTD,05/07/2017,H59620170706DIKRPGOBO-1,46.76,CA MEADOW VIEW JMI PRIMARY SCH-FROZEN FOODS-PROVISIONS,CATERERS,GPC
WALSALL COUNCIL,HTTP://OPENDATACOMMUNITIES.ORG/ID/METROPOLITAN-DISTRICT-COUNCIL/WALSALL,30/09/2017,CHILDRENS SERVICES,GRO HM PASSPORT OFFICE,05/07/2017,H59620170706DIWZMKUIK-1,9.25,SAFEGUARDING & FAMILY SUPPORT-REGISTRAR OF BIRTHS/DEATHS/MAR,GOVERNMENT SERVICES,GPC
WALSALL COUNCIL,HTTP://OPENDATACOMMUNITIES.ORG/ID/METROPOLITAN-DISTRICT-COUNCIL/WALSALL,30/09/2017,CHANGE & GOVERNANCE,ARTHUR BRETT CATER,05/07/2017,H59620170706DLPGLAYDR-1,59.13,CA CASTLEFORT JMI SCHOOL-FRUIT & VEGETABLES OTHER-PROVI,MISCELLANEOUS FOOD STORES & CONVENIENCE STORES,GPC
WALSALL COUNCIL,HTTP://OPENDATACOMMUNITIES.ORG/ID/METROPOLITAN-DISTRICT-COUNCIL/WALSALL,30/09/2017,CHANGE & GOVERNANCE,NOBISCO LTD,05/07/2017,H59620170706DUIHISOVG-1,36.41,CA BIRCHILLS CE PRIMARY COMMUN-DISPOSABLES-PROVISIONS,"CLEANING AND MAINTENANCE, JANITORIAL SERVICES",GPC
WALSALL COUNCIL,HTTP://OPENDATACOMMUNITIES.ORG/ID/METROPOLITAN-DISTRICT-COUNCIL/WALSALL,30/09/2017,CHILDRENS SERVICES,IPS DURHAM CONTACT CTR,05/07/2017,H59620170706EBNBMIIOW-1,72.50,LOOKED AFTER CHILDRENS SOCIAL -MISC FEES AND EXPENSES,GOVERNMENT SERVICES,GPC
WALSALL COUNCIL,HTTP://OPENDATACOMMUNITIES.ORG/ID/METROPOLITAN-DISTRICT-COUNCIL/WALSALL,30/09/2017,CHANGE & GOVERNANCE,TESCO STORES 6161,05/07/2017,H59620170706EFZJEVCEC-1,16.99,YOUNG PERSONS HOMELESS SERVICE-FOOD AND BEVERAGES-PROVISIONS,GROCERY STORES AND SUPERMARKETS,GPC
WALSALL COUNCIL,HTTP://OPENDATACOMMUNITIES.ORG/ID/METROPOLITAN-DISTRICT-COUNCIL/WALSALL,30/09/2017,ECONOMY & ENVIRONMENT,PATROLSTORE.COM,05/07/2017,H59620170706EPEFSISOZ-1,27.99,YEI ESF FUNDING-MISCELLANEOUS SUPPLIES,MISCELLANEOUS ACCESSORY AND APPAREL STORES,GPC
WALSALL COUNCIL,HTTP://OPENDATACOMMUNITIES.ORG/ID/METROPOLITAN-DISTRICT-COUNCIL/WALSALL,30/09/2017,ECONOMY & ENVIRONMENT,PATROLSTORE.COM,05/07/2017,H59620170706EPEFSISOZ-2,27.99,YEI (IMPACT) PROGRAMME-MISCELLANEOUS SUPPLIES,MISCELLANEOUS ACCESSORY AND APPAREL STORES,GPC
WALSALL COUNCIL,HTTP://OPENDATACOMMUNITIES.ORG/ID/METROPOLITAN-DISTRICT-COUNCIL/WALSALL,30/09/2017,CHILDRENS SERVICES,W M MORRISON PLC,05/07/2017,H59620170706EYQNZKSJB-1,12.98,"43A HILTON ROAD, WILLENHALL-FOOD AND BEVERAGES-PROVISIONS",GROCERY STORES AND SUPERMARKETS,GPC
WALSALL COUNCIL,HTTP://OPENDATACOMMUNITIES.ORG/ID/METROPOLITAN-DISTRICT-COUNCIL/WALSALL,30/09/2017,CHILDRENS SERVICES,W M MORRISON PLC,05/07/2017,H59620170706EYQNZKSJB-2,112.78,"43A HILTON ROAD, WILLENHALL-FOOD AND BEVERAGES-PROVISIONS",GROCERY STORES AND SUPERMARKETS,GPC
WALSALL COUNCIL,HTTP://OPENDATACOMMUNITIES.ORG/ID/METROPOLITAN-DISTRICT-COUNCIL/WALSALL,30/09/2017,CHANGE & GOVERNANCE,TESCO STORES 6161,05/07/2017,H59620170706FCZJTVHVM-1,21.50,WALSALL CRISIS SUPPORT SCHEME-CRISIS SUPPORT PAYMENTS,GROCERY STORES AND SUPERMARKETS,GPC
WALSALL COUNCIL,HTTP://OPENDATACOMMUNITIES.ORG/ID/METROPOLITAN-DISTRICT-COUNCIL/WALSALL,30/09/2017,CHANGE & GOVERNANCE,CHICKEN JOES LTD,05/07/2017,H59620170706FDCXLYPNV-1,43.96,CA LEIGHSWOOD PRIMARY SCHOOL-FRUIT & VEGETABLES OTHER-PROVI,CATERERS,GPC
WALSALL COUNCIL,HTTP://OPENDATACOMMUNITIES.ORG/ID/METROPOLITAN-DISTRICT-COUNCIL/WALSALL,30/09/2017,ECONOMY & ENVIRONMENT,DVLA DRIVER ONLINE,05/07/2017,H59620170706FITDWXTRD-1,10.00,YEI ESF FUNDING-MISCELLANEOUS SUPPLIES,GOVERNMENT SERVICES,GPC
WALSALL COUNCIL,HTTP://OPENDATACOMMUNITIES.ORG/ID/METROPOLITAN-DISTRICT-COUNCIL/WALSALL,30/09/2017,ECONOMY & ENVIRONMENT,DVLA DRIVER ONLINE,05/07/2017,H59620170706FITDWXTRD-2,10.00,YEI (IMPACT) PROGRAMME-MISCELLANEOUS SUPPLIES,GOVERNMENT SERVICES,GPC
WALSALL COUNCIL,HTTP://OPENDATACOMMUNITIES.ORG/ID/METROPOLITAN-DISTRICT-COUNCIL/WALSALL,30/09/2017,CHANGE & GOVERNANCE,CHICKEN JOES LTD,05/07/2017,H59620170706FSICMIOCA-1,151.42,CA BUSILL JONES PRIMARY SCHOOL-FROZEN FOODS-PROVISIONS,CATERERS,GPC
WALSALL COUNCIL,HTTP://OPENDATACOMMUNITIES.ORG/ID/METROPOLITAN-DISTRICT-COUNCIL/WALSALL,30/09/2017,ECONOMY & ENVIRONMENT,ASDA SUPERSTORE,05/07/2017,H59620170706GBKNNEPBV-1,7.29,ACTIVE ENGLAND-FOOD AND BEVERAGES-PROVISIONS,GROCERY STORES AND SUPERMARKETS,GPC
WALSALL COUNCIL,HTTP://OPENDATACOMMUNITIES.ORG/ID/METROPOLITAN-DISTRICT-COUNCIL/WALSALL,30/09/2017,ECONOMY & ENVIRONMENT,WWW.TOOLSTATION.COM,05/07/2017,H59620170706GCDWIADXA-1,83.93,YEI ESF FUNDING-PROFESSIONAL FEES AND SERVICES,HARDWARE STORES,GPC
WALSALL COUNCIL,HTTP://OPENDATACOMMUNITIES.ORG/ID/METROPOLITAN-DISTRICT-COUNCIL/WALSALL,30/09/2017,ECONOMY & ENVIRONMENT,WWW.TOOLSTATION.COM,05/07/2017,H59620170706GCDWIADXA-2,83.92,YEI (IMPACT) PROGRAMME-PROFESSIONAL FEES AND SERVICES,HARDWARE STORES,GPC
WALSALL COUNCIL,HTTP://OPENDATACOMMUNITIES.ORG/ID/METROPOLITAN-DISTRICT-COUNCIL/WALSALL,30/09/2017,CHANGE & GOVERNANCE,ARTHUR BRETT CATER,05/07/2017,H59620170706GCFDJHRCL-1,147.29,CA RADLEYS PRIMARY SCHOOL-FRUIT & VEGETABLES OTHER-PROVI,MISCELLANEOUS FOOD STORES & CONVENIENCE STORES,GPC
WALSALL COUNCIL,HTTP://OPENDATACOMMUNITIES.ORG/ID/METROPOLITAN-DISTRICT-COUNCIL/WALSALL,30/09/2017,CHILDRENS SERVICES,AMAZON UK RETAIL,05/07/2017,H59620170706GQKMWDMFO-1,217.57,BUSINESS STUDIES-PUBLICATIONS/REFERENCE BOOKS-S,OTHER DIRECT MARKETING-OTHER DIRECT MARKETERS,GPC
WALSALL COUNCIL,HTTP://OPENDATACOMMUNITIES.ORG/ID/METROPOLITAN-DISTRICT-COUNCIL/WALSALL,30/09/2017,ECONOMY & ENVIRONMENT,WWW.WOODENSUPPLIES.CO.,05/07/2017,H59620170706GULNDLHFT-1,106.96,PHOTOGRAPHY EXHIBITION NO. 2 W-GENERAL MATERIALS,"GLASS, PAINT AND WALLPAPER STORES",GPC
WALSALL COUNCIL,HTTP://OPENDATACOMMUNITIES.ORG/ID/METROPOLITAN-DISTRICT-COUNCIL/WALSALL,30/09/2017,CHANGE & GOVERNANCE,ARTHUR BRETT CATER,05/07/2017,H59620170706GYLOBUIJB-1,129.43,CA BARCROFT D/C-FRUIT & VEGETABLES OTHER-PROVI,MISCELLANEOUS FOOD STORES & CONVENIENCE STORES,GPC
WALSALL COUNCIL,HTTP://OPENDATACOMMUNITIES.ORG/ID/METROPOLITAN-DISTRICT-COUNCIL/WALSALL,30/09/2017,CHANGE & GOVERNANCE,ARTHUR BRETT CATER,05/07/2017,H59620170706HDQDBEJQQ-1,35.27,CA WALSALL WOOD PRIMARY SCHOOL-FRUIT & VEGETABLES OTHER-PROVI,MISCELLANEOUS FOOD STORES & CONVENIENCE STORES,GPC
WALSALL COUNCIL,HTTP://OPENDATACOMMUNITIES.ORG/ID/METROPOLITAN-DISTRICT-COUNCIL/WALSALL,30/09/2017,CHANGE & GOVERNANCE,PREMIER INN44533745,05/07/2017,H59620170706HNUNIEPGJ-1,286.97,BED & BREAKFAST PAYMENTS-HOTEL ACCOMMODATION-EMPLOYEES,PREMIER INN,GPC
WALSALL COUNCIL,HTTP://OPENDATACOMMUNITIES.ORG/ID/METROPOLITAN-DISTRICT-COUNCIL/WALSALL,30/09/2017,CHILDRENS SERVICES,B&M RETAIL LTD,05/07/2017,H59620170706HRQPULTHM-1,10.03,SPINDLETREE-FOOD AND BEVERAGES-PROVISIONS,DISCOUNT STORES,GPC
WALSALL COUNCIL,HTTP://OPENDATACOMMUNITIES.ORG/ID/METROPOLITAN-DISTRICT-COUNCIL/WALSALL,30/09/2017,CHANGE & GOVERNANCE,CHICKEN JOES LTD,05/07/2017,H59620170706HRTQOYQNT-1,93.91,CA FIBBERSLEY PARK PRIMARY SCH-FROZEN FOODS-PROVISIONS,CATERERS,GPC
WALSALL COUNCIL,HTTP://OPENDATACOMMUNITIES.ORG/ID/METROPOLITAN-DISTRICT-COUNCIL/WALSALL,30/09/2017,CHILDRENS SERVICES,POST OFFICE SHOP,05/07/2017,H59620170706HXKCJPBYI-1,159.00,LOCALITY FAMILY SUPPORT-NORTH-POSTAGES AND COURIER SERVICES,POSTAL SERVICES - GOVERNMENT ONLY,GPC
WALSALL COUNCIL,HTTP://OPENDATACOMMUNITIES.ORG/ID/METROPOLITAN-DISTRICT-COUNCIL/WALSALL,30/09/2017,CHILDRENS SERVICES,POST OFFICE SHOP,05/07/2017,H59620170706HXKCJPBYI-2,3.95,LOCALITY FAMILY SUPPORT-NORTH-CARRIAGE-IN,POSTAL SERVICES - GOVERNMENT ONLY,GPC
WALSALL COUNCIL,HTTP://OPENDATACOMMUNITIES.ORG/ID/METROPOLITAN-DISTRICT-COUNCIL/WALSALL,30/09/2017,CHILDRENS SERVICES,AMAZON UK MARKETPLACE,05/07/2017,H59620170706INSHTLVHM-1,31.74,CHILD PROTECTION & REVIEW SERV-MISCELLANEOUS SUPPLIES,MISCELLANEOUS AND SPECIALTY RETAIL STORES,GPC
WALSALL COUNCIL,HTTP://OPENDATACOMMUNITIES.ORG/ID/METROPOLITAN-DISTRICT-COUNCIL/WALSALL,30/09/2017,CHANGE & GOVERNANCE,PARK INN BY RADISSON,05/07/2017,H59620170706INTFNJQQW-1,95.00,BED & BREAKFAST PAYMENTS-HOTEL ACCOMMODATION-EMPLOYEES,"HOTELS, MOTELS, RESORTS",GPC
WALSALL COUNCIL,HTTP://OPENDATACOMMUNITIES.ORG/ID/METROPOLITAN-DISTRICT-COUNCIL/WALSALL,30/09/2017,ECONOMY & ENVIRONMENT,WILKO RETAIL LIMIT,05/07/2017,H59620170706ITSPRYRVY-1,14.00,FOREST ARTS CENTRE-STATIONERY & GENERAL SUPPLIES-,HOUSEHOLD APPLIANCE STORES,GPC
WALSALL COUNCIL,HTTP://OPENDATACOMMUNITIES.ORG/ID/METROPOLITAN-DISTRICT-COUNCIL/WALSALL,30/09/2017,CHANGE & GOVERNANCE,TESCO STORES 6161,05/07/2017,H59620170706JBIJZIOWN-1,20.00,WALSALL CRISIS SUPPORT SCHEME-CRISIS SUPPORT PAYMENTS,GROCERY STORES AND SUPERMARKETS,GPC
WALSALL COUNCIL,HTTP://OPENDATACOMMUNITIES.ORG/ID/METROPOLITAN-DISTRICT-COUNCIL/WALSALL,30/09/2017,CHILDRENS SERVICES,TRAINLINE,05/07/2017,H59620170706JHARHMUHO-1,19.43,SAFEGUARDING & FAMILY SUPPORT-OTHER-TRAVEL ALLOWANCES,PASSENGER RAILWAYS,GPC
WALSALL COUNCIL,HTTP://OPENDATACOMMUNITIES.ORG/ID/METROPOLITAN-DISTRICT-COUNCIL/WALSALL,30/09/2017,CHILDRENS SERVICES,W M MORRISONS.COM,05/07/2017,H59620170706JMRSXMTGP-1,14.28,REDRUTH ROAD-FOOD AND BEVERAGES-PROVISIONS,GROCERY STORES AND SUPERMARKETS,GPC
WALSALL COUNCIL,HTTP://OPENDATACOMMUNITIES.ORG/ID/METROPOLITAN-DISTRICT-COUNCIL/WALSALL,30/09/2017,CHILDRENS SERVICES,W M MORRISONS.COM,05/07/2017,H59620170706JMRSXMTGP-2,129.44,REDRUTH ROAD-FOOD AND BEVERAGES-PROVISIONS,GROCERY STORES AND SUPERMARKETS,GPC
WALSALL COUNCIL,HTTP://OPENDATACOMMUNITIES.ORG/ID/METROPOLITAN-DISTRICT-COUNCIL/WALSALL,30/09/2017,CHANGE & GOVERNANCE,ARTHUR BRETT CATER,05/07/2017,H59620170706KAIDODSOR-1,69.07,CA BROWNHILLS WEST PRIMARY SCH-FRUIT & VEGETABLES OTHER-PROVI,MISCELLANEOUS FOOD STORES & CONVENIENCE STORES,GPC
WALSALL COUNCIL,HTTP://OPENDATACOMMUNITIES.ORG/ID/METROPOLITAN-DISTRICT-COUNCIL/WALSALL,30/09/2017,CHILDRENS SERVICES,ICELAND,05/07/2017,H59620170706KGEVRTWCL-1,17.51,SPINDLETREE-FOOD AND BEVERAGES-PROVISIONS,GROCERY STORES AND SUPERMARKETS,GPC
WALSALL COUNCIL,HTTP://OPENDATACOMMUNITIES.ORG/ID/METROPOLITAN-DISTRICT-COUNCIL/WALSALL,30/09/2017,CHANGE & GOVERNANCE,ARTHUR BRETT CATER,05/07/2017,H59620170706KOHPQMQPF-1,-1.32,CA ST MICHAELS C.E. PRIMARY SC-FRUIT & VEGETABLES OTHER-PROVI,MISCELLANEOUS FOOD STORES & CONVENIENCE STORES,GPC
WALSALL COUNCIL,HTTP://OPENDATACOMMUNITIES.ORG/ID/METROPOLITAN-DISTRICT-COUNCIL/WALSALL,30/09/2017,CHANGE & GOVERNANCE,ARTHUR BRETT CATER,05/07/2017,H59620170706KRUTSCCBZ-1,144.69,CA BIRCHILLS CE PRIMARY COMMUN-FRUIT & VEGETABLES OTHER-PROVI,MISCELLANEOUS FOOD STORES & CONVENIENCE STORES,GPC
WALSALL COUNCIL,HTTP://OPENDATACOMMUNITIES.ORG/ID/METROPOLITAN-DISTRICT-COUNCIL/WALSALL,30/09/2017,CHANGE & GOVERNANCE,ARTHUR BRETT CATER,05/07/2017,H59620170706KXMSLDRME-1,60.40,CA FIBBERSLEY PARK PRIMARY SCH-DRY FOODS-PROVISIONS,MISCELLANEOUS FOOD STORES & CONVENIENCE STORES,GPC
WALSALL COUNCIL,HTTP://OPENDATACOMMUNITIES.ORG/ID/METROPOLITAN-DISTRICT-COUNCIL/WALSALL,30/09/2017,CHANGE & GOVERNANCE,ARTHUR BRETT CATER,05/07/2017,H59620170706LGINVCUOW-1,45.01,CA BLOXWICH C.E. JMI PRIMARY S-FRUIT & VEGETABLES OTHER-PROVI,MISCELLANEOUS FOOD STORES & CONVENIENCE STORES,GPC
WALSALL COUNCIL,HTTP://OPENDATACOMMUNITIES.ORG/ID/METROPOLITAN-DISTRICT-COUNCIL/WALSALL,30/09/2017,CHANGE & GOVERNANCE,NOBISCO LTD,05/07/2017,H59620170706LKQDYYGQN-1,28.97,CA CASTLEFORT JMI SCHOOL-DISPOSABLES-PROVISIONS,"CLEANING AND MAINTENANCE, JANITORIAL SERVICES",GPC
WALSALL COUNCIL,HTTP://OPENDATACOMMUNITIES.ORG/ID/METROPOLITAN-DISTRICT-COUNCIL/WALSALL,30/09/2017,ECONOMY & ENVIRONMENT,WWW.PETERS-EDUCATIONAL,05/07/2017,H59620170706LMRBEOEYN-1,137.01,LIBRARY DEVELOPMENT 2-FURNITURE & EQUIPMENT,"EQUIPMENT, FURNITURE, AND HOME FURNISHINGS STORES ",GPC
WALSALL COUNCIL,HTTP://OPENDATACOMMUNITIES.ORG/ID/METROPOLITAN-DISTRICT-COUNCIL/WALSALL,30/09/2017,ECONOMY & ENVIRONMENT,BANNER GROUP LTD,05/07/2017,H59620170706LUMVDNBOO-1,377.28,CENTRALISED STATIONARY-STATIONERY & GENERAL SUPPLIES-,"OFFICE, SCHOOL SUPPLY, AND STATIONERY STORES",GPC
WALSALL COUNCIL,HTTP://OPENDATACOMMUNITIES.ORG/ID/METROPOLITAN-DISTRICT-COUNCIL/WALSALL,30/09/2017,CHANGE & GOVERNANCE,BULL DOG APPLIANCES LT,05/07/2017,H59620170706LXMYHZDRJ-1,474.00,WALSALL CRISIS SUPPORT SCHEME-CRISIS SUPPORT PAYMENTS,HOUSEHOLD APPLIANCE STORES,GPC
WALSALL COUNCIL,HTTP://OPENDATACOMMUNITIES.ORG/ID/METROPOLITAN-DISTRICT-COUNCIL/WALSALL,30/09/2017,ECONOMY & ENVIRONMENT,PAYPAL *EXPRESSCO,05/07/2017,H59620170706MLPMIJCTY-1,114.00,RESOURCE MANAGEMENT-OTHER EXPENSES-EXPENSES,SPORTING GOODS STORES,GPC
WALSALL COUNCIL,HTTP://OPENDATACOMMUNITIES.ORG/ID/METROPOLITAN-DISTRICT-COUNCIL/WALSALL,30/09/2017,CHILDRENS SERVICES,ARGOS RETAIL GROUP,05/07/2017,H59620170706MYYUKUGNS-1,-32.99,INITIAL RESPONSE SERVICE-FURNITURE & EQUIPMENT,DISCOUNT STORES,GPC
WALSALL COUNCIL,HTTP://OPENDATACOMMUNITIES.ORG/ID/METROPOLITAN-DISTRICT-COUNCIL/WALSALL,30/09/2017,CHILDRENS SERVICES,AMAZON UK MARKETPLACE,05/07/2017,H59620170706NFDIHGEGE-1,58.62,SCHOOL IMPROVEMENT-ACCESS TEAM-STATIONERY & GENERAL SUPPLIES-,MISCELLANEOUS AND SPECIALTY RETAIL STORES,GPC
WALSALL COUNCIL,HTTP://OPENDATACOMMUNITIES.ORG/ID/METROPOLITAN-DISTRICT-COUNCIL/WALSALL,30/09/2017,CHILDRENS SERVICES,BANNER GROUP LTD,05/07/2017,H59620170706NLJKBNLGT-1,45.10,LOCALITY FAMILY SUPPORT-CENTRA-STATIONERY & GENERAL SUPPLIES-,"OFFICE, SCHOOL SUPPLY, AND STATIONERY STORES",GPC
WALSALL COUNCIL,HTTP://OPENDATACOMMUNITIES.ORG/ID/METROPOLITAN-DISTRICT-COUNCIL/WALSALL,30/09/2017,ECONOMY & ENVIRONMENT,WWW.TOOLSTATION.COM,05/07/2017,H59620170706NLXRCZKOH-1,83.93,YEI ESF FUNDING-PROFESSIONAL FEES AND SERVICES,HARDWARE STORES,GPC
WALSALL COUNCIL,HTTP://OPENDATACOMMUNITIES.ORG/ID/METROPOLITAN-DISTRICT-COUNCIL/WALSALL,30/09/2017,ECONOMY & ENVIRONMENT,WWW.TOOLSTATION.COM,05/07/2017,H59620170706NLXRCZKOH-2,83.92,YEI (IMPACT) PROGRAMME-PROFESSIONAL FEES AND SERVICES,HARDWARE STORES,GPC
WALSALL COUNCIL,HTTP://OPENDATACOMMUNITIES.ORG/ID/METROPOLITAN-DISTRICT-COUNCIL/WALSALL,30/09/2017,CHANGE & GOVERNANCE,ARTHUR BRETT CATER,05/07/2017,H59620170706NMZCKGEJL-1,77.14,CA LINDENS PRIMARY SCHOOL-FRUIT & VEGETABLES OTHER-PROVI,MISCELLANEOUS FOOD STORES & CONVENIENCE STORES,GPC
WALSALL COUNCIL,HTTP://OPENDATACOMMUNITIES.ORG/ID/METROPOLITAN-DISTRICT-COUNCIL/WALSALL,30/09/2017,CHANGE & GOVERNANCE,NOBISCO LTD,05/07/2017,H59620170706NQBMFEYWH-1,209.32,CA BUSILL JONES PRIMARY SCHOOL-DISPOSABLES-PROVISIONS,"CLEANING AND MAINTENANCE, JANITORIAL SERVICES",GPC
WALSALL COUNCIL,HTTP://OPENDATACOMMUNITIES.ORG/ID/METROPOLITAN-DISTRICT-COUNCIL/WALSALL,30/09/2017,CHILDRENS SERVICES,WM MORRISON FOOD.COM,05/07/2017,H59620170706NQLGGTHWI-1,11.16,BLUEBELLS-FOOD AND BEVERAGES-PROVISIONS,GROCERY STORES AND SUPERMARKETS,GPC
WALSALL COUNCIL,HTTP://OPENDATACOMMUNITIES.ORG/ID/METROPOLITAN-DISTRICT-COUNCIL/WALSALL,30/09/2017,CHILDRENS SERVICES,WM MORRISON FOOD.COM,05/07/2017,H59620170706NQLGGTHWI-2,44.31,BLUEBELLS-FOOD AND BEVERAGES-PROVISIONS,GROCERY STORES AND SUPERMARKETS,GPC
WALSALL COUNCIL,HTTP://OPENDATACOMMUNITIES.ORG/ID/METROPOLITAN-DISTRICT-COUNCIL/WALSALL,30/09/2017,CHILDRENS SERVICES,LONDON MIDLAND SEL,05/07/2017,H59620170706NYPHMCEVU-1,2.40,TRADED WORKFORCE DEVELOPMENT-OFFICER/STAFF-PUBLIC TRANSPORT,PASSENGER RAILWAYS,GPC
WALSALL COUNCIL,HTTP://OPENDATACOMMUNITIES.ORG/ID/METROPOLITAN-DISTRICT-COUNCIL/WALSALL,30/09/2017,CHILDRENS SERVICES,NEW MARKET ALE HOUSE,05/07/2017,H59620170706OFGPXETNB-1,365.00,SAFEGUARDING & FAMILY SUPPORT-HOTEL ACCOMMODATION-EMPLOYEES,"HOTELS, MOTELS, RESORTS",GPC
WALSALL COUNCIL,HTTP://OPENDATACOMMUNITIES.ORG/ID/METROPOLITAN-DISTRICT-COUNCIL/WALSALL,30/09/2017,CHANGE & GOVERNANCE,TESCO STORES 6161,05/07/2017,H59620170706OGUOWKEMJ-1,16.99,YOUNG PERSONS HOMELESS SERVICE-MISCELLANEOUS SUPPLIES,GROCERY STORES AND SUPERMARKETS,GPC
WALSALL COUNCIL,HTTP://OPENDATACOMMUNITIES.ORG/ID/METROPOLITAN-DISTRICT-COUNCIL/WALSALL,30/09/2017,ECONOMY & ENVIRONMENT,MARKS&SPENCER PLC SACA,05/07/2017,H59620170706OLTPILYMA-1,1.94,NAG - ARTISTS RESIDENCIES-BEVERAGES-PROVISIONS,GROCERY STORES AND SUPERMARKETS,GPC
WALSALL COUNCIL,HTTP://OPENDATACOMMUNITIES.ORG/ID/METROPOLITAN-DISTRICT-COUNCIL/WALSALL,30/09/2017,CHANGE & GOVERNANCE,CHICKEN JOES LTD,05/07/2017,H59620170706OQKMXBNND-1,67.34,CA RADLEYS PRIMARY SCHOOL-FROZEN FOODS-PROVISIONS,CATERERS,GPC
WALSALL COUNCIL,HTTP://OPENDATACOMMUNITIES.ORG/ID/METROPOLITAN-DISTRICT-COUNCIL/WALSALL,30/09/2017,CHANGE & GOVERNANCE,PREMIER INN44010840,05/07/2017,H59620170706OUJTQEPPJ-1,101.99,BED & BREAKFAST PAYMENTS-HOTEL ACCOMMODATION-EMPLOYEES,PREMIER INN,GPC
WALSALL COUNCIL,HTTP://OPENDATACOMMUNITIES.ORG/ID/METROPOLITAN-DISTRICT-COUNCIL/WALSALL,30/09/2017,CHANGE & GOVERNANCE,CHICKEN JOES LTD,05/07/2017,H59620170706PDFKFFJUF-1,50.85,CA BEACON PRIMARY SCHOOL-FROZEN FOODS-PROVISIONS,CATERERS,GPC
WALSALL COUNCIL,HTTP://OPENDATACOMMUNITIES.ORG/ID/METROPOLITAN-DISTRICT-COUNCIL/WALSALL,30/09/2017,CHANGE & GOVERNANCE,ARTHUR BRETT CATER,05/07/2017,H59620170706PFIKJKUYG-1,110.88,CA CROFT COMMUNITY PRIMARY SCH-FRUIT & VEGETABLES OTHER-PROVI,MISCELLANEOUS FOOD STORES & CONVENIENCE STORES,GPC
WALSALL COUNCIL,HTTP://OPENDATACOMMUNITIES.ORG/ID/METROPOLITAN-DISTRICT-COUNCIL/WALSALL,30/09/2017,CHILDRENS SERVICES,WIX.COM,05/07/2017,H59620170706PISFEEGDS-1,3.00,EDUCATION BUSINESS PARTNERSHIP-SOFTWARE ACQ-COMPUTER,DIRECT MARKETING CONTINUITY SUBSCRIPTION MERCHANTS,GPC
WALSALL COUNCIL,HTTP://OPENDATACOMMUNITIES.ORG/ID/METROPOLITAN-DISTRICT-COUNCIL/WALSALL,30/09/2017,CHANGE & GOVERNANCE,TESCO STORES 6161,05/07/2017,H59620170706PJXOMJIIC-1,6.05,WALSALL CRISIS SUPPORT SCHEME-FOOD AND BEVERAGES-PROVISIONS,GROCERY STORES AND SUPERMARKETS,GPC
WALSALL COUNCIL,HTTP://OPENDATACOMMUNITIES.ORG/ID/METROPOLITAN-DISTRICT-COUNCIL/WALSALL,30/09/2017,CHANGE & GOVERNANCE,ARTHUR BRETT CATER,05/07/2017,H59620170706PUNYFRQMP-1,80.67,CA MOORCROFT WOOD-FRUIT & VEGETABLES OTHER-PROVI,MISCELLANEOUS FOOD STORES & CONVENIENCE STORES,GPC
WALSALL COUNCIL,HTTP://OPENDATACOMMUNITIES.ORG/ID/METROPOLITAN-DISTRICT-COUNCIL/WALSALL,30/09/2017,CHILDRENS SERVICES,ICELAND,05/07/2017,H59620170706PVEPSNFPP-1,15.60,57 LICHFIELD ROAD-FOOD AND BEVERAGES-PROVISIONS,GROCERY STORES AND SUPERMARKETS,GPC
WALSALL COUNCIL,HTTP://OPENDATACOMMUNITIES.ORG/ID/METROPOLITAN-DISTRICT-COUNCIL/WALSALL,30/09/2017,CHANGE & GOVERNANCE,ARTHUR BRETT CATER,05/07/2017,H59620170706QMDCMOPBW-1,70.49,CA ST MICHAELS C.E. PRIMARY SC-FRUIT & VEGETABLES OTHER-PROVI,MISCELLANEOUS FOOD STORES & CONVENIENCE STORES,GPC
WALSALL COUNCIL,HTTP://OPENDATACOMMUNITIES.ORG/ID/METROPOLITAN-DISTRICT-COUNCIL/WALSALL,30/09/2017,ECONOMY & ENVIRONMENT,BANNER GROUP LTD,05/07/2017,H59620170706QOMJLIJSC-1,282.96,RESOURCE MANAGEMENT-STATIONERY & GENERAL SUPPLIES-,"OFFICE, SCHOOL SUPPLY, AND STATIONERY STORES",GPC
WALSALL COUNCIL,HTTP://OPENDATACOMMUNITIES.ORG/ID/METROPOLITAN-DISTRICT-COUNCIL/WALSALL,30/09/2017,CHANGE & GOVERNANCE,ARTHUR BRETT CATER,05/07/2017,H59620170706RUYTXDOKT-1,54.30,CA MEADOW VIEW JMI PRIMARY SCH-FRUIT & VEGETABLES OTHER-PROVI,MISCELLANEOUS FOOD STORES & CONVENIENCE STORES,GPC
WALSALL COUNCIL,HTTP://OPENDATACOMMUNITIES.ORG/ID/METROPOLITAN-DISTRICT-COUNCIL/WALSALL,30/09/2017,CHANGE & GOVERNANCE,ARTHUR BRETT CATER,05/07/2017,H59620170706SCBSWRWGP-1,51.84,CA OAKWOOD SPECIAL SCHOOL-FRUIT & VEGETABLES OTHER-PROVI,MISCELLANEOUS FOOD STORES & CONVENIENCE STORES,GPC
WALSALL COUNCIL,HTTP://OPENDATACOMMUNITIES.ORG/ID/METROPOLITAN-DISTRICT-COUNCIL/WALSALL,30/09/2017,CHILDRENS SERVICES,BUTLINS HOLIDAYS,05/07/2017,H59620170706SDQCYXXXC-1,875.00,57 LICHFIELD ROAD-RESIDENTS PERSONAL EXPENSES-AL,"HOTELS, MOTELS, RESORTS",GPC
WALSALL COUNCIL,HTTP://OPENDATACOMMUNITIES.ORG/ID/METROPOLITAN-DISTRICT-COUNCIL/WALSALL,30/09/2017,CHANGE & GOVERNANCE,ARTHUR BRETT CATER,05/07/2017,H59620170706SEMHHSRQF-1,71.25,CA BUSILL JONES PRIMARY SCHOOL-FOOD AND BEVERAGES-PROVISIONS,MISCELLANEOUS FOOD STORES & CONVENIENCE STORES,GPC
WALSALL COUNCIL,HTTP://OPENDATACOMMUNITIES.ORG/ID/METROPOLITAN-DISTRICT-COUNCIL/WALSALL,30/09/2017,CHANGE & GOVERNANCE,ARTHUR BRETT CATER,05/07/2017,H59620170706SHAFCSKFC-1,44.48,CA WATLING STREET PRIMARY SCHO-FRUIT & VEGETABLES OTHER-PROVI,MISCELLANEOUS FOOD STORES & CONVENIENCE STORES,GPC
WALSALL COUNCIL,HTTP://OPENDATACOMMUNITIES.ORG/ID/METROPOLITAN-DISTRICT-COUNCIL/WALSALL,30/09/2017,CHANGE & GOVERNANCE,WWW.SWINTON.CO.UK,05/07/2017,H59620170706SKKZRORUH-1,167.30,CHARGING & PAYMENTS-COSTS (NOT INTERNAL RECHARGES),"INSURANCE SALES, UNDERWRITING, AND PREMIUMS",GPC
WALSALL COUNCIL,HTTP://OPENDATACOMMUNITIES.ORG/ID/METROPOLITAN-DISTRICT-COUNCIL/WALSALL,30/09/2017,CHANGE & GOVERNANCE,ARTHUR BRETT CATER,05/07/2017,H59620170706SOGNYZTGT-1,33.10,CA ELMWOOD SPECIAL SCHOOL-FRUIT & VEGETABLES OTHER-PROVI,MISCELLANEOUS FOOD STORES & CONVENIENCE STORES,GPC
WALSALL COUNCIL,HTTP://OPENDATACOMMUNITIES.ORG/ID/METROPOLITAN-DISTRICT-COUNCIL/WALSALL,30/09/2017,CHILDRENS SERVICES,WHIRLPOOL UK APPLIANCE,05/07/2017,H59620170706SUNYTYSTX-1,93.44,BLUEBELLS-FURNITURE & EQUIPMENT,ELECTRICAL PARTS AND EQUIPMENT,GPC
WALSALL COUNCIL,HTTP://OPENDATACOMMUNITIES.ORG/ID/METROPOLITAN-DISTRICT-COUNCIL/WALSALL,30/09/2017,CHILDRENS SERVICES,AMAZON UK MARKETPLACE,05/07/2017,H59620170706TSOZMHQSQ-1,9.17,GENERAL RESOURCES & MISC-GENERAL MATERIALS,MISCELLANEOUS AND SPECIALTY RETAIL STORES,GPC
WALSALL COUNCIL,HTTP://OPENDATACOMMUNITIES.ORG/ID/METROPOLITAN-DISTRICT-COUNCIL/WALSALL,30/09/2017,ECONOMY & ENVIRONMENT,TVLICENSING.CO.UK,05/07/2017,H59620170706UDHTQPUYY-1,147.00,BLOXWICH LEISURE CENTRE-LICENCES-EQUIPMENT,"CONSULTING, MANAGEMENT, AND PR SERVICES",GPC
WALSALL COUNCIL,HTTP://OPENDATACOMMUNITIES.ORG/ID/METROPOLITAN-DISTRICT-COUNCIL/WALSALL,30/09/2017,ECONOMY & ENVIRONMENT,TRAVEL WEST MIDLAN,05/07/2017,H59620170706UDJJPGJCI-1,29.50,YEI ESF FUNDING-OFFICER/STAFF-PUBLIC TRANSPORT,BUS LINES,GPC
WALSALL COUNCIL,HTTP://OPENDATACOMMUNITIES.ORG/ID/METROPOLITAN-DISTRICT-COUNCIL/WALSALL,30/09/2017,ECONOMY & ENVIRONMENT,TRAVEL WEST MIDLAN,05/07/2017,H59620170706UDJJPGJCI-2,29.50,YEI (IMPACT) PROGRAMME-MISCELLANEOUS SUPPLIES,BUS LINES,GPC
WALSALL COUNCIL,HTTP://OPENDATACOMMUNITIES.ORG/ID/METROPOLITAN-DISTRICT-COUNCIL/WALSALL,30/09/2017,CHANGE & GOVERNANCE,ARTHUR BRETT CATER,05/07/2017,H59620170706UEGHUZEJI-1,61.47,CA BEACON PRIMARY SCHOOL-FRUIT & VEGETABLES OTHER-PROVI,MISCELLANEOUS FOOD STORES & CONVENIENCE STORES,GPC
WALSALL COUNCIL,HTTP://OPENDATACOMMUNITIES.ORG/ID/METROPOLITAN-DISTRICT-COUNCIL/WALSALL,30/09/2017,CHANGE & GOVERNANCE,M & T SUPERMARKET LTD,05/07/2017,H59620170706ULOUBJXBU-1,16.56,ACCOMMODATION SERVICES MANAGEM-FOOD AND BEVERAGES-PROVISIONS,GROCERY STORES AND SUPERMARKETS,GPC
WALSALL COUNCIL,HTTP://OPENDATACOMMUNITIES.ORG/ID/METROPOLITAN-DISTRICT-COUNCIL/WALSALL,30/09/2017,CHANGE & GOVERNANCE,ARTHUR BRETT CATER,05/07/2017,H59620170706UWLUKMGIS-1,69.26,CA COOPER JORDAN CE PRIMARY SC-FRUIT & VEGETABLES OTHER-PROVI,MISCELLANEOUS FOOD STORES & CONVENIENCE STORES,GPC
WALSALL COUNCIL,HTTP://OPENDATACOMMUNITIES.ORG/ID/METROPOLITAN-DISTRICT-COUNCIL/WALSALL,30/09/2017,ECONOMY & ENVIRONMENT,THE FRAMING CENTRE (FO,05/07/2017,H59620170706UYRVQNOPM-1,235.80,PHOTOGRAPHY EXHIBITION NO. 2 W-VISUAL ARTS,"PHOTO DEVELOPING, PHOTOFINISHING LABORATORIES",GPC
WALSALL COUNCIL,HTTP://OPENDATACOMMUNITIES.ORG/ID/METROPOLITAN-DISTRICT-COUNCIL/WALSALL,30/09/2017,CHANGE & GOVERNANCE,ARTHUR BRETT CATER,05/07/2017,H59620170706VHJBLZIEZ-1,97.03,CA BUSILL JONES PRIMARY SCHOOL-FRUIT & VEGETABLES OTHER-PROVI,MISCELLANEOUS FOOD STORES & CONVENIENCE STORES,GPC
WALSALL COUNCIL,HTTP://OPENDATACOMMUNITIES.ORG/ID/METROPOLITAN-DISTRICT-COUNCIL/WALSALL,30/09/2017,ECONOMY & ENVIRONMENT,GREENHAM TRADING LTD,05/07/2017,H59620170706VIJIFFVQI-1,144.72,COUNTRYSIDE MANAGEMENT - OTHER-GENERAL MATERIALS,OTHER INDUSTRIAL SUPPLIES,GPC
WALSALL COUNCIL,HTTP://OPENDATACOMMUNITIES.ORG/ID/METROPOLITAN-DISTRICT-COUNCIL/WALSALL,30/09/2017,CHANGE & GOVERNANCE,ARTHUR BRETT CATER,05/07/2017,H59620170706VJSATAVPT-1,47.10,CA LITTLE BLOXWICH CE PRIMARY -FRUIT & VEGETABLES OTHER-PROVI,MISCELLANEOUS FOOD STORES & CONVENIENCE STORES,GPC
WALSALL COUNCIL,HTTP://OPENDATACOMMUNITIES.ORG/ID/METROPOLITAN-DISTRICT-COUNCIL/WALSALL,30/09/2017,CHANGE & GOVERNANCE,ARTHUR BRETT CATER,05/07/2017,H59620170706VKYVDEXXF-1,-1.95,CA BLUE COAT C OF E PERFORMING-FOOD AND BEVERAGES-PROVISIONS,MISCELLANEOUS FOOD STORES & CONVENIENCE STORES,GPC
WALSALL COUNCIL,HTTP://OPENDATACOMMUNITIES.ORG/ID/METROPOLITAN-DISTRICT-COUNCIL/WALSALL,30/09/2017,CHANGE & GOVERNANCE,ARTHUR BRETT CATER,05/07/2017,H59620170706VPERQLYGB-1,78.47,CA ELMORE GREEN PRIMARY SCHOOL-FRUIT & VEGETABLES OTHER-PROVI,MISCELLANEOUS FOOD STORES & CONVENIENCE STORES,GPC
WALSALL COUNCIL,HTTP://OPENDATACOMMUNITIES.ORG/ID/METROPOLITAN-DISTRICT-COUNCIL/WALSALL,30/09/2017,CHANGE & GOVERNANCE,TESCO STORES 6161,05/07/2017,H59620170706VPFXBEQEC-1,12.08,ACCOMMODATION SERVICES MANAGEM-FOOD AND BEVERAGES-PROVISIONS,GROCERY STORES AND SUPERMARKETS,GPC
WALSALL COUNCIL,HTTP://OPENDATACOMMUNITIES.ORG/ID/METROPOLITAN-DISTRICT-COUNCIL/WALSALL,30/09/2017,CHANGE & GOVERNANCE,CHICKEN JOES LTD,05/07/2017,H59620170706VXXTCFYEK-1,25.46,CA CASTLEFORT JMI SCHOOL-FROZEN FOODS-PROVISIONS,CATERERS,GPC
WALSALL COUNCIL,HTTP://OPENDATACOMMUNITIES.ORG/ID/METROPOLITAN-DISTRICT-COUNCIL/WALSALL,30/09/2017,CHANGE & GOVERNANCE,ARTHUR BRETT CATER,05/07/2017,H59620170706WBYGZLOLQ-1,41.24,CA LEAMORE PRIMARY SCHOOL-MISC DAIRY PRODUCTS-PROVISIONS,MISCELLANEOUS FOOD STORES & CONVENIENCE STORES,GPC
WALSALL COUNCIL,HTTP://OPENDATACOMMUNITIES.ORG/ID/METROPOLITAN-DISTRICT-COUNCIL/WALSALL,30/09/2017,CHANGE & GOVERNANCE,CHICKEN JOES LTD,05/07/2017,H59620170706WMWEYHHMS-1,88.00,CA ELMORE GREEN PRIMARY SCHOOL-FROZEN FOODS-PROVISIONS,CATERERS,GPC
WALSALL COUNCIL,HTTP://OPENDATACOMMUNITIES.ORG/ID/METROPOLITAN-DISTRICT-COUNCIL/WALSALL,30/09/2017,CHILDRENS SERVICES,AMAZON UK MARKETPLACE,05/07/2017,H59620170706XJPTGYBTG-1,17.20,TOPIC-LIBRARY BOOKS,MISCELLANEOUS AND SPECIALTY RETAIL STORES,GPC
WALSALL COUNCIL,HTTP://OPENDATACOMMUNITIES.ORG/ID/METROPOLITAN-DISTRICT-COUNCIL/WALSALL,30/09/2017,CHANGE & GOVERNANCE,BULL DOG APPLIANCES LT,05/07/2017,H59620170706YIVXYKFWU-1,474.00,WALSALL CRISIS SUPPORT SCHEME-CRISIS SUPPORT PAYMENTS,HOUSEHOLD APPLIANCE STORES,GPC
WALSALL COUNCIL,HTTP://OPENDATACOMMUNITIES.ORG/ID/METROPOLITAN-DISTRICT-COUNCIL/WALSALL,30/09/2017,CHANGE & GOVERNANCE,ARTHUR BRETT CATER,05/07/2017,H59620170706YNMPJIXNY-1,108.12,CA ST JOHNS C.E. PRIMARY SCHOO-FRUIT & VEGETABLES OTHER-PROVI,MISCELLANEOUS FOOD STORES & CONVENIENCE STORES,GPC
WALSALL COUNCIL,HTTP://OPENDATACOMMUNITIES.ORG/ID/METROPOLITAN-DISTRICT-COUNCIL/WALSALL,30/09/2017,CHANGE & GOVERNANCE,ARTHUR BRETT CATER,05/07/2017,H59620170706ZUTGIRCJI-1,48.62,CA ST FRANCIS CATHOLIC PRIMARY-FRUIT & VEGETABLES OTHER-PROVI,MISCELLANEOUS FOOD STORES & CONVENIENCE STORES,GPC
WALSALL COUNCIL,HTTP://OPENDATACOMMUNITIES.ORG/ID/METROPOLITAN-DISTRICT-COUNCIL/WALSALL,30/09/2017,ECONOMY & ENVIRONMENT,POST OFFICE COUNTER,05/07/2017,H59620170706ZVDJXXEMK-1,24.98,NAG - ARTISTS RESIDENCIES-POSTAGES AND COURIER SERVICES,POSTAL SERVICES - GOVERNMENT ONLY,GPC
WALSALL COUNCIL,HTTP://OPENDATACOMMUNITIES.ORG/ID/METROPOLITAN-DISTRICT-COUNCIL/WALSALL,30/09/2017,CHILDRENS SERVICES,RYAL MEDIA GROUP LTD,06/07/2017,648,124.00,SALISBURY PRIMARY SCHOOL-ADVERTISING STAFF VACANCIES,NOT KNOWN,EPAY
WALSALL COUNCIL,HTTP://OPENDATACOMMUNITIES.ORG/ID/METROPOLITAN-DISTRICT-COUNCIL/WALSALL,30/09/2017,CHANGE & GOVERNANCE,BLAKEMORE FOODSERVICE,06/07/2017,H59620170707AHQMQLXWJ-1,14.26,CA ST MICHAELS C.E. PRIMARY SC-FROZEN FOODS-PROVISIONS,CATERERS,GPC
WALSALL COUNCIL,HTTP://OPENDATACOMMUNITIES.ORG/ID/METROPOLITAN-DISTRICT-COUNCIL/WALSALL,30/09/2017,CHANGE & GOVERNANCE,BLAKEMORE FOODSERVICE,06/07/2017,H59620170707AHQMQLXWJ-2,291.25,CA ST MICHAELS C.E. PRIMARY SC-FROZEN FOODS-PROVISIONS,CATERERS,GPC
WALSALL COUNCIL,HTTP://OPENDATACOMMUNITIES.ORG/ID/METROPOLITAN-DISTRICT-COUNCIL/WALSALL,30/09/2017,CHANGE & GOVERNANCE,BLAKEMORE FOODSERVICE,06/07/2017,H59620170707AWUXMEPQM-1,59.49,CA ELMWOOD SPECIAL SCHOOL-FROZEN FOODS-PROVISIONS,CATERERS,GPC
WALSALL COUNCIL,HTTP://OPENDATACOMMUNITIES.ORG/ID/METROPOLITAN-DISTRICT-COUNCIL/WALSALL,30/09/2017,CHANGE & GOVERNANCE,BRITISH HEART FOUNDATI,06/07/2017,H59620170707BBLWRMRRF-1,60.00,WALSALL CRISIS SUPPORT SCHEME-CRISIS SUPPORT PAYMENTS,"ORGANIZATIONS, CHARITABLE AND SOCIAL SERVICE",GPC
WALSALL COUNCIL,HTTP://OPENDATACOMMUNITIES.ORG/ID/METROPOLITAN-DISTRICT-COUNCIL/WALSALL,30/09/2017,CHANGE & GOVERNANCE,BRITISH HEART FOUNDATI,06/07/2017,H59620170707BBLWRMRRF-2,25.00,WALSALL CRISIS SUPPORT SCHEME-CRISIS SUPPORT PAYMENTS,"ORGANIZATIONS, CHARITABLE AND SOCIAL SERVICE",GPC
WALSALL COUNCIL,HTTP://OPENDATACOMMUNITIES.ORG/ID/METROPOLITAN-DISTRICT-COUNCIL/WALSALL,30/09/2017,CHILDRENS SERVICES,TRAVEL WEST MIDLAN,06/07/2017,H59620170707BUNQCVYWG-1,62.50,LOOKED AFTER CHILDRENS SOCIAL -SUPPORT UNDER SECTION 23 OF TH,BUS LINES,GPC
WALSALL COUNCIL,HTTP://OPENDATACOMMUNITIES.ORG/ID/METROPOLITAN-DISTRICT-COUNCIL/WALSALL,30/09/2017,CHANGE & GOVERNANCE,TESCO STORES 6161,06/07/2017,H59620170707BVTVQXPAF-1,1.40,CA TOWN HALL RESTAURANT - CATE-FRUIT & VEGETABLES OTHER-PROVI,GROCERY STORES AND SUPERMARKETS,GPC
WALSALL COUNCIL,HTTP://OPENDATACOMMUNITIES.ORG/ID/METROPOLITAN-DISTRICT-COUNCIL/WALSALL,30/09/2017,CHANGE & GOVERNANCE,TESCO STORES 6161,06/07/2017,H59620170707BVTVQXPAF-2,2.49,CA TOWN HALL RESTAURANT - CATE-DRY FOODS-PROVISIONS,GROCERY STORES AND SUPERMARKETS,GPC
WALSALL COUNCIL,HTTP://OPENDATACOMMUNITIES.ORG/ID/METROPOLITAN-DISTRICT-COUNCIL/WALSALL,30/09/2017,CHANGE & GOVERNANCE,TESCO STORES 6161,06/07/2017,H59620170707BVTVQXPAF-3,4.00,CA TOWN HALL RESTAURANT - CATE-DRY FOODS-PROVISIONS,GROCERY STORES AND SUPERMARKETS,GPC
WALSALL COUNCIL,HTTP://OPENDATACOMMUNITIES.ORG/ID/METROPOLITAN-DISTRICT-COUNCIL/WALSALL,30/09/2017,CHANGE & GOVERNANCE,WWW.SCC.COM,06/07/2017,H59620170707BWZULZCBH-1,1766.28,RECHARGEABLE EQUIPMENT-COMPUTER EQUIPMENT AND SUPPLIE,"COMPUTERS, COMPUTER PERIPHERAL EQUIPMENT, SOFTWARE",GPC
WALSALL COUNCIL,HTTP://OPENDATACOMMUNITIES.ORG/ID/METROPOLITAN-DISTRICT-COUNCIL/WALSALL,30/09/2017,ECONOMY & ENVIRONMENT,PAYPAL *CAMPAIGNFOR,06/07/2017,H59620170707BYEAOLJKQ-1,150.00,NAG - FAMILY GALLERY-NEW-FURNITURE & EQUIPMENT,"ORGANIZATIONS, CHARITABLE AND SOCIAL SERVICE",GPC
WALSALL COUNCIL,HTTP://OPENDATACOMMUNITIES.ORG/ID/METROPOLITAN-DISTRICT-COUNCIL/WALSALL,30/09/2017,CHANGE & GOVERNANCE,BULL DOG APPLIANCES LT,06/07/2017,H59620170707CFTNLOUQU-1,186.00,WALSALL CRISIS SUPPORT SCHEME-FURNITURE & EQUIPMENT,HOUSEHOLD APPLIANCE STORES,GPC
WALSALL COUNCIL,HTTP://OPENDATACOMMUNITIES.ORG/ID/METROPOLITAN-DISTRICT-COUNCIL/WALSALL,30/09/2017,CHILDRENS SERVICES,TRAVEL WEST MIDLAN,06/07/2017,H59620170707CLFKHKTVD-1,220.00,LOOKED AFTER CHILDRENS SOCIAL -SUPPORT UNDER SECTION 23 OF TH,BUS LINES,GPC
WALSALL COUNCIL,HTTP://OPENDATACOMMUNITIES.ORG/ID/METROPOLITAN-DISTRICT-COUNCIL/WALSALL,30/09/2017,CHANGE & GOVERNANCE,NOBISCO LTD,06/07/2017,H59620170707DCDYEOGFG-1,59.80,CA BEACON PRIMARY SCHOOL-DISPOSABLES-PROVISIONS,"CLEANING AND MAINTENANCE, JANITORIAL SERVICES",GPC
WALSALL COUNCIL,HTTP://OPENDATACOMMUNITIES.ORG/ID/METROPOLITAN-DISTRICT-COUNCIL/WALSALL,30/09/2017,CHANGE & GOVERNANCE,TVLICENSING.CO.UK,06/07/2017,H59620170707DHFCIOEHL-1,147.00,CHARGING & PAYMENTS-COSTS (NOT INTERNAL RECHARGES),"CONSULTING, MANAGEMENT, AND PR SERVICES",GPC
WALSALL COUNCIL,HTTP://OPENDATACOMMUNITIES.ORG/ID/METROPOLITAN-DISTRICT-COUNCIL/WALSALL,30/09/2017,CHANGE & GOVERNANCE,BLAKEMORE FOODSERVICE,06/07/2017,H59620170707DKNXUYCUH-1,89.16,CA BIRCHILLS CE PRIMARY COMMUN-DRY FOODS-PROVISIONS,CATERERS,GPC
WALSALL COUNCIL,HTTP://OPENDATACOMMUNITIES.ORG/ID/METROPOLITAN-DISTRICT-COUNCIL/WALSALL,30/09/2017,CHANGE & GOVERNANCE,BLAKEMORE FOODSERVICE,06/07/2017,H59620170707DKNXUYCUH-2,216.03,CA BIRCHILLS CE PRIMARY COMMUN-DRY FOODS-PROVISIONS,CATERERS,GPC
WALSALL COUNCIL,HTTP://OPENDATACOMMUNITIES.ORG/ID/METROPOLITAN-DISTRICT-COUNCIL/WALSALL,30/09/2017,CHANGE & GOVERNANCE,BLAKEMORE FOODSERVICE,06/07/2017,H59620170707DNPEKQZGS-1,10.05,CA BROWNHILLS WEST PRIMARY SCH-FROZEN FOODS-PROVISIONS,CATERERS,GPC
WALSALL COUNCIL,HTTP://OPENDATACOMMUNITIES.ORG/ID/METROPOLITAN-DISTRICT-COUNCIL/WALSALL,30/09/2017,CHANGE & GOVERNANCE,BLAKEMORE FOODSERVICE,06/07/2017,H59620170707EGLOBLIYJ-1,193.86,CA ST JOHNS C.E. PRIMARY SCHOO-FROZEN FOODS-PROVISIONS,CATERERS,GPC
WALSALL COUNCIL,HTTP://OPENDATACOMMUNITIES.ORG/ID/METROPOLITAN-DISTRICT-COUNCIL/WALSALL,30/09/2017,CHANGE & GOVERNANCE,BLAKEMORE FOODSERVICE,06/07/2017,H59620170707EHXIDXKIG-1,8.00,CA ELMORE GREEN PRIMARY SCHOOL-FROZEN FOODS-PROVISIONS,CATERERS,GPC
WALSALL COUNCIL,HTTP://OPENDATACOMMUNITIES.ORG/ID/METROPOLITAN-DISTRICT-COUNCIL/WALSALL,30/09/2017,CHANGE & GOVERNANCE,BLAKEMORE FOODSERVICE,06/07/2017,H59620170707EJLMSPHZC-1,24.01,CA LINDENS PRIMARY SCHOOL-FROZEN FOODS-PROVISIONS,CATERERS,GPC
WALSALL COUNCIL,HTTP://OPENDATACOMMUNITIES.ORG/ID/METROPOLITAN-DISTRICT-COUNCIL/WALSALL,30/09/2017,CHANGE & GOVERNANCE,BLAKEMORE FOODSERVICE,06/07/2017,H59620170707EJLMSPHZC-2,360.26,CA LINDENS PRIMARY SCHOOL-FROZEN FOODS-PROVISIONS,CATERERS,GPC
WALSALL COUNCIL,HTTP://OPENDATACOMMUNITIES.ORG/ID/METROPOLITAN-DISTRICT-COUNCIL/WALSALL,30/09/2017,CHANGE & GOVERNANCE,NOBISCO LTD,06/07/2017,H59620170707EQUBGRNTE-1,42.24,CA BROWNHILLS WEST PRIMARY SCH-DISPOSABLES-PROVISIONS,"CLEANING AND MAINTENANCE, JANITORIAL SERVICES",GPC
WALSALL COUNCIL,HTTP://OPENDATACOMMUNITIES.ORG/ID/METROPOLITAN-DISTRICT-COUNCIL/WALSALL,30/09/2017,CHANGE & GOVERNANCE,BLAKEMORE FOODSERVICE,06/07/2017,H59620170707EUTNJMKFI-1,33.19,CA BUSILL JONES PRIMARY SCHOOL-CATERING,CATERERS,GPC
WALSALL COUNCIL,HTTP://OPENDATACOMMUNITIES.ORG/ID/METROPOLITAN-DISTRICT-COUNCIL/WALSALL,30/09/2017,CHILDRENS SERVICES,ROYAL MAIL ONLINE SHOP,06/07/2017,H59620170707FIEPGIJSC-1,56.00,ADMINISTRATIVE SUPPLIES-POSTAGES AND COURIER SERVICES,POSTAL SERVICES - GOVERNMENT ONLY,GPC
WALSALL COUNCIL,HTTP://OPENDATACOMMUNITIES.ORG/ID/METROPOLITAN-DISTRICT-COUNCIL/WALSALL,30/09/2017,CHANGE & GOVERNANCE,BLAKEMORE FOODSERVICE,06/07/2017,H59620170707FLZTYZMPE-1,211.42,CA TOWN HALL RESTAURANT - CATE-FROZEN FOODS-PROVISIONS,CATERERS,GPC
WALSALL COUNCIL,HTTP://OPENDATACOMMUNITIES.ORG/ID/METROPOLITAN-DISTRICT-COUNCIL/WALSALL,30/09/2017,CHANGE & GOVERNANCE,BLAKEMORE FOODSERVICE,06/07/2017,H59620170707FNEMITTDQ-1,127.54,CA BARCROFT D/C-FROZEN FOODS-PROVISIONS,CATERERS,GPC
WALSALL COUNCIL,HTTP://OPENDATACOMMUNITIES.ORG/ID/METROPOLITAN-DISTRICT-COUNCIL/WALSALL,30/09/2017,ECONOMY & ENVIRONMENT,DVLA DRIVER ONLINE,06/07/2017,H59620170707FQLYNRPXK-1,17.00,YEI ESF FUNDING-MISCELLANEOUS SUPPLIES,GOVERNMENT SERVICES,GPC
WALSALL COUNCIL,HTTP://OPENDATACOMMUNITIES.ORG/ID/METROPOLITAN-DISTRICT-COUNCIL/WALSALL,30/09/2017,ECONOMY & ENVIRONMENT,DVLA DRIVER ONLINE,06/07/2017,H59620170707FQLYNRPXK-2,17.00,YEI (IMPACT) PROGRAMME-MISCELLANEOUS SUPPLIES,GOVERNMENT SERVICES,GPC
WALSALL COUNCIL,HTTP://OPENDATACOMMUNITIES.ORG/ID/METROPOLITAN-DISTRICT-COUNCIL/WALSALL,30/09/2017,CHANGE & GOVERNANCE,BLAKEMORE FOODSERVICE,06/07/2017,H59620170707FXGVQVMRD-1,37.12,CA BUSILL JONES PRIMARY SCHOOL-DRY FOODS-PROVISIONS,CATERERS,GPC
WALSALL COUNCIL,HTTP://OPENDATACOMMUNITIES.ORG/ID/METROPOLITAN-DISTRICT-COUNCIL/WALSALL,30/09/2017,CHANGE & GOVERNANCE,BLAKEMORE FOODSERVICE,06/07/2017,H59620170707FXGVQVMRD-2,462.80,CA BUSILL JONES PRIMARY SCHOOL-DRY FOODS-PROVISIONS,CATERERS,GPC
WALSALL COUNCIL,HTTP://OPENDATACOMMUNITIES.ORG/ID/METROPOLITAN-DISTRICT-COUNCIL/WALSALL,30/09/2017,CHILDRENS SERVICES,WM MORRISONS,06/07/2017,H59620170707GGQFUBIXT-1,0.48,57 LICHFIELD ROAD-FOOD AND BEVERAGES-PROVISIONS,GROCERY STORES AND SUPERMARKETS,GPC
WALSALL COUNCIL,HTTP://OPENDATACOMMUNITIES.ORG/ID/METROPOLITAN-DISTRICT-COUNCIL/WALSALL,30/09/2017,CHILDRENS SERVICES,WM MORRISONS,06/07/2017,H59620170707GGQFUBIXT-2,5.06,57 LICHFIELD ROAD-FOOD AND BEVERAGES-PROVISIONS,GROCERY STORES AND SUPERMARKETS,GPC
WALSALL COUNCIL,HTTP://OPENDATACOMMUNITIES.ORG/ID/METROPOLITAN-DISTRICT-COUNCIL/WALSALL,30/09/2017,CHANGE & GOVERNANCE,BLAKEMORE FOODSERVICE,06/07/2017,H59620170707GGXERVYGF-1,16.01,CA RADLEYS PRIMARY SCHOOL-FROZEN FOODS-PROVISIONS,CATERERS,GPC
WALSALL COUNCIL,HTTP://OPENDATACOMMUNITIES.ORG/ID/METROPOLITAN-DISTRICT-COUNCIL/WALSALL,30/09/2017,CHANGE & GOVERNANCE,BLAKEMORE FOODSERVICE,06/07/2017,H59620170707GGXERVYGF-2,118.43,CA RADLEYS PRIMARY SCHOOL-FROZEN FOODS-PROVISIONS,CATERERS,GPC
WALSALL COUNCIL,HTTP://OPENDATACOMMUNITIES.ORG/ID/METROPOLITAN-DISTRICT-COUNCIL/WALSALL,30/09/2017,CHILDRENS SERVICES,AMAZON UK MARKETPLACE,06/07/2017,H59620170707GOJEDODKM-1,20.90,D & T-GENERAL MATERIALS,MISCELLANEOUS AND SPECIALTY RETAIL STORES,GPC
WALSALL COUNCIL,HTTP://OPENDATACOMMUNITIES.ORG/ID/METROPOLITAN-DISTRICT-COUNCIL/WALSALL,30/09/2017,CHANGE & GOVERNANCE,BLAKEMORE FOODSERVICE,06/07/2017,H59620170707GOTZRYUEJ-1,151.46,CA ELMWOOD SPECIAL SCHOOL-DRY FOODS-PROVISIONS,CATERERS,GPC
WALSALL COUNCIL,HTTP://OPENDATACOMMUNITIES.ORG/ID/METROPOLITAN-DISTRICT-COUNCIL/WALSALL,30/09/2017,CHANGE & GOVERNANCE,BLAKEMORE FOODSERVICE,06/07/2017,H59620170707GPISAWFGE-1,6.97,CA FIBBERSLEY PARK PRIMARY SCH-DRY FOODS-PROVISIONS,CATERERS,GPC
WALSALL COUNCIL,HTTP://OPENDATACOMMUNITIES.ORG/ID/METROPOLITAN-DISTRICT-COUNCIL/WALSALL,30/09/2017,CHANGE & GOVERNANCE,BLAKEMORE FOODSERVICE,06/07/2017,H59620170707GPISAWFGE-2,259.30,CA FIBBERSLEY PARK PRIMARY SCH-DRY FOODS-PROVISIONS,CATERERS,GPC
WALSALL COUNCIL,HTTP://OPENDATACOMMUNITIES.ORG/ID/METROPOLITAN-DISTRICT-COUNCIL/WALSALL,30/09/2017,ECONOMY & ENVIRONMENT,BANNER GROUP LTD,06/07/2017,H59620170707GQIPWMUHD-1,34.56,CENTRALISED STATIONARY-STATIONERY & GENERAL SUPPLIES-,"OFFICE, SCHOOL SUPPLY, AND STATIONERY STORES",GPC
WALSALL COUNCIL,HTTP://OPENDATACOMMUNITIES.ORG/ID/METROPOLITAN-DISTRICT-COUNCIL/WALSALL,30/09/2017,CHANGE & GOVERNANCE,BLAKEMORE FOODSERVICE,06/07/2017,H59620170707GWTIYNCYX-1,56.75,CA RADLEYS PRIMARY SCHOOL-DRY FOODS-PROVISIONS,CATERERS,GPC
WALSALL COUNCIL,HTTP://OPENDATACOMMUNITIES.ORG/ID/METROPOLITAN-DISTRICT-COUNCIL/WALSALL,30/09/2017,CHANGE & GOVERNANCE,BLAKEMORE FOODSERVICE,06/07/2017,H59620170707GZJHPQCUN-1,16.01,CA COOPER JORDAN CE PRIMARY SC-FROZEN FOODS-PROVISIONS,CATERERS,GPC
WALSALL COUNCIL,HTTP://OPENDATACOMMUNITIES.ORG/ID/METROPOLITAN-DISTRICT-COUNCIL/WALSALL,30/09/2017,CHANGE & GOVERNANCE,BLAKEMORE FOODSERVICE,06/07/2017,H59620170707HEZLMAKVY-1,8.00,CA OAKWOOD SPECIAL SCHOOL-FROZEN FOODS-PROVISIONS,CATERERS,GPC
WALSALL COUNCIL,HTTP://OPENDATACOMMUNITIES.ORG/ID/METROPOLITAN-DISTRICT-COUNCIL/WALSALL,30/09/2017,CHANGE & GOVERNANCE,BLAKEMORE FOODSERVICE,06/07/2017,H59620170707HEZLMAKVY-2,96.23,CA OAKWOOD SPECIAL SCHOOL-FROZEN FOODS-PROVISIONS,CATERERS,GPC
WALSALL COUNCIL,HTTP://OPENDATACOMMUNITIES.ORG/ID/METROPOLITAN-DISTRICT-COUNCIL/WALSALL,30/09/2017,CHILDRENS SERVICES,AMAZON UK MARKETPLACE,06/07/2017,H59620170707HMEQTYLQE-1,60.00,GENERAL RESOURCES & MISC-GENERAL MATERIALS,MISCELLANEOUS AND SPECIALTY RETAIL STORES,GPC
WALSALL COUNCIL,HTTP://OPENDATACOMMUNITIES.ORG/ID/METROPOLITAN-DISTRICT-COUNCIL/WALSALL,30/09/2017,CHILDRENS SERVICES,THE BOOK PEOPLE,06/07/2017,H59620170707IIAXJTIFY-1,59.20,NORTH LOCALITY - SCHOOL READY-EVENTS,BOOK STORES,GPC
WALSALL COUNCIL,HTTP://OPENDATACOMMUNITIES.ORG/ID/METROPOLITAN-DISTRICT-COUNCIL/WALSALL,30/09/2017,CHANGE & GOVERNANCE,ARTHUR BRETT CATER,06/07/2017,H59620170707IWRHNIIMQ-1,-1.95,CA BLUE COAT C OF E PERFORMING-FOOD AND BEVERAGES-PROVISIONS,MISCELLANEOUS FOOD STORES & CONVENIENCE STORES,GPC
WALSALL COUNCIL,HTTP://OPENDATACOMMUNITIES.ORG/ID/METROPOLITAN-DISTRICT-COUNCIL/WALSALL,30/09/2017,CHANGE & GOVERNANCE,BLAKEMORE FOODSERVICE,06/07/2017,H59620170707IYOGJSGFW-1,8.00,CA RUSHALL JMI SCHOOL-FROZEN FOODS-PROVISIONS,CATERERS,GPC
WALSALL COUNCIL,HTTP://OPENDATACOMMUNITIES.ORG/ID/METROPOLITAN-DISTRICT-COUNCIL/WALSALL,30/09/2017,CHANGE & GOVERNANCE,BLAKEMORE FOODSERVICE,06/07/2017,H59620170707IYOGJSGFW-2,95.55,CA RUSHALL JMI SCHOOL-FROZEN FOODS-PROVISIONS,CATERERS,GPC
WALSALL COUNCIL,HTTP://OPENDATACOMMUNITIES.ORG/ID/METROPOLITAN-DISTRICT-COUNCIL/WALSALL,30/09/2017,CHANGE & GOVERNANCE,BLAKEMORE FOODSERVICE,06/07/2017,H59620170707JASYPHDOI-1,62.00,CA LEIGHSWOOD PRIMARY SCHOOL-FROZEN FOODS-PROVISIONS,CATERERS,GPC
WALSALL COUNCIL,HTTP://OPENDATACOMMUNITIES.ORG/ID/METROPOLITAN-DISTRICT-COUNCIL/WALSALL,30/09/2017,CHILDRENS SERVICES,ASDA SUPERSTORE,06/07/2017,H59620170707JBOBHIPER-1,18.23,ADOPTION TEAM-FOOD AND BEVERAGES-PROVISIONS,GROCERY STORES AND SUPERMARKETS,GPC
WALSALL COUNCIL,HTTP://OPENDATACOMMUNITIES.ORG/ID/METROPOLITAN-DISTRICT-COUNCIL/WALSALL,30/09/2017,CHILDRENS SERVICES,LIDL UK,06/07/2017,H59620170707JEJKWCOLV-1,24.19,SPINDLETREE-NEW-FURNITURE & EQUIPMENT,GROCERY STORES AND SUPERMARKETS,GPC
WALSALL COUNCIL,HTTP://OPENDATACOMMUNITIES.ORG/ID/METROPOLITAN-DISTRICT-COUNCIL/WALSALL,30/09/2017,CHILDRENS SERVICES,LIDL UK,06/07/2017,H59620170707JEJKWCOLV-2,1.66,SPINDLETREE-FOOD AND BEVERAGES-PROVISIONS,GROCERY STORES AND SUPERMARKETS,GPC
WALSALL COUNCIL,HTTP://OPENDATACOMMUNITIES.ORG/ID/METROPOLITAN-DISTRICT-COUNCIL/WALSALL,30/09/2017,CHILDRENS SERVICES,AMAZON UK MARKETPLACE,06/07/2017,H59620170707JJRKQEQJX-1,5.40,SCHOOL IMPROVEMENT-ACCESS TEAM-GENERAL MATERIALS,MISCELLANEOUS AND SPECIALTY RETAIL STORES,GPC
WALSALL COUNCIL,HTTP://OPENDATACOMMUNITIES.ORG/ID/METROPOLITAN-DISTRICT-COUNCIL/WALSALL,30/09/2017,CHANGE & GOVERNANCE,TESCO STORES 6161,06/07/2017,H59620170707JUJUIBFWC-1,4.50,WALSALL CRISIS SUPPORT SCHEME-CRISIS SUPPORT PAYMENTS,GROCERY STORES AND SUPERMARKETS,GPC
WALSALL COUNCIL,HTTP://OPENDATACOMMUNITIES.ORG/ID/METROPOLITAN-DISTRICT-COUNCIL/WALSALL,30/09/2017,ECONOMY & ENVIRONMENT,WILKO RETAIL LIMIT,06/07/2017,H59620170707JVCOMAPCF-1,21.75,FOREST ARTS CENTRE-STATIONERY & GENERAL SUPPLIES-,HOUSEHOLD APPLIANCE STORES,GPC
WALSALL COUNCIL,HTTP://OPENDATACOMMUNITIES.ORG/ID/METROPOLITAN-DISTRICT-COUNCIL/WALSALL,30/09/2017,CHANGE & GOVERNANCE,BLAKEMORE FOODSERVICE,06/07/2017,H59620170707KDWIHHBKB-1,8.61,CA BEACON PRIMARY SCHOOL-CATERING,CATERERS,GPC
WALSALL COUNCIL,HTTP://OPENDATACOMMUNITIES.ORG/ID/METROPOLITAN-DISTRICT-COUNCIL/WALSALL,30/09/2017,CHANGE & GOVERNANCE,ARTHUR BRETT CATER,06/07/2017,H59620170707KEWEDNQAX-1,23.62,CA JANE LANE SPECIAL SCHOOL-FRUIT & VEGETABLES OTHER-PROVI,MISCELLANEOUS FOOD STORES & CONVENIENCE STORES,GPC
WALSALL COUNCIL,HTTP://OPENDATACOMMUNITIES.ORG/ID/METROPOLITAN-DISTRICT-COUNCIL/WALSALL,30/09/2017,CHANGE & GOVERNANCE,BLAKEMORE FOODSERVICE,06/07/2017,H59620170707KFFALDTJL-1,54.17,CA ELMORE GREEN PRIMARY SCHOOL-DRY FOODS-PROVISIONS,CATERERS,GPC
WALSALL COUNCIL,HTTP://OPENDATACOMMUNITIES.ORG/ID/METROPOLITAN-DISTRICT-COUNCIL/WALSALL,30/09/2017,CHANGE & GOVERNANCE,BLAKEMORE FOODSERVICE,06/07/2017,H59620170707KFFALDTJL-2,249.17,CA ELMORE GREEN PRIMARY SCHOOL-DRY FOODS-PROVISIONS,CATERERS,GPC
WALSALL COUNCIL,HTTP://OPENDATACOMMUNITIES.ORG/ID/METROPOLITAN-DISTRICT-COUNCIL/WALSALL,30/09/2017,CHILDRENS SERVICES,AQUAID FRANCHISING LTD,06/07/2017,H59620170707KRSQPPQFL-1,596.40,PELSALL EDC-STAFF MINERAL WATER-EQUIPMENT,OTHER BUSINESS SERVICES,GPC
WALSALL COUNCIL,HTTP://OPENDATACOMMUNITIES.ORG/ID/METROPOLITAN-DISTRICT-COUNCIL/WALSALL,30/09/2017,ECONOMY & ENVIRONMENT,AMAZON UK MARKETPLACE,06/07/2017,H59620170707KTMCBDLBW-1,97.98,BLOXWICH LEISURE CENTRE-MAINTENANCE-FURNITURE & EQUIPM,MISCELLANEOUS AND SPECIALTY RETAIL STORES,GPC
WALSALL COUNCIL,HTTP://OPENDATACOMMUNITIES.ORG/ID/METROPOLITAN-DISTRICT-COUNCIL/WALSALL,30/09/2017,CHILDRENS SERVICES,REGISTRATION SERVICES,06/07/2017,H59620170707LFGJGEKNV-1,30.00,LOOKED AFTER CHILDRENS SOCIAL -MISC FEES AND EXPENSES,OTHER RECREATION SERVICES,GPC
WALSALL COUNCIL,HTTP://OPENDATACOMMUNITIES.ORG/ID/METROPOLITAN-DISTRICT-COUNCIL/WALSALL,30/09/2017,CHILDRENS SERVICES,BUTLINS HOLIDAYS,06/07/2017,H59620170707LHIIFFKMA-1,1763.00,57 LICHFIELD ROAD-RESIDENTS PERSONAL EXPENSES-AL,"HOTELS, MOTELS, RESORTS",GPC
WALSALL COUNCIL,HTTP://OPENDATACOMMUNITIES.ORG/ID/METROPOLITAN-DISTRICT-COUNCIL/WALSALL,30/09/2017,CHANGE & GOVERNANCE,BLAKEMORE FOODSERVICE,06/07/2017,H59620170707LYUUZKQQN-1,132.91,CA MEADOW VIEW JMI PRIMARY SCH-FROZEN FOODS-PROVISIONS,CATERERS,GPC
WALSALL COUNCIL,HTTP://OPENDATACOMMUNITIES.ORG/ID/METROPOLITAN-DISTRICT-COUNCIL/WALSALL,30/09/2017,CHANGE & GOVERNANCE,BLAKEMORE FOODSERVICE,06/07/2017,H59620170707LYUUZKQQN-2,16.01,CA MEADOW VIEW JMI PRIMARY SCH-FROZEN FOODS-PROVISIONS,CATERERS,GPC
WALSALL COUNCIL,HTTP://OPENDATACOMMUNITIES.ORG/ID/METROPOLITAN-DISTRICT-COUNCIL/WALSALL,30/09/2017,CHANGE & GOVERNANCE,BLAKEMORE FOODSERVICE,06/07/2017,H59620170707MATWBCNPS-1,30.26,CA BROWNHILLS WEST PRIMARY SCH-FROZEN FOODS-PROVISIONS,CATERERS,GPC
WALSALL COUNCIL,HTTP://OPENDATACOMMUNITIES.ORG/ID/METROPOLITAN-DISTRICT-COUNCIL/WALSALL,30/09/2017,CHANGE & GOVERNANCE,BLAKEMORE FOODSERVICE,06/07/2017,H59620170707MATWBCNPS-2,144.18,CA BROWNHILLS WEST PRIMARY SCH-FROZEN FOODS-PROVISIONS,CATERERS,GPC
WALSALL COUNCIL,HTTP://OPENDATACOMMUNITIES.ORG/ID/METROPOLITAN-DISTRICT-COUNCIL/WALSALL,30/09/2017,CHANGE & GOVERNANCE,BLAKEMORE FOODSERVICE,06/07/2017,H59620170707MCPILQOSR-1,8.00,CA WATLING STREET PRIMARY SCHO-FROZEN FOODS-PROVISIONS,CATERERS,GPC
WALSALL COUNCIL,HTTP://OPENDATACOMMUNITIES.ORG/ID/METROPOLITAN-DISTRICT-COUNCIL/WALSALL,30/09/2017,CHANGE & GOVERNANCE,BLAKEMORE FOODSERVICE,06/07/2017,H59620170707MCPILQOSR-2,102.11,CA WATLING STREET PRIMARY SCHO-FROZEN FOODS-PROVISIONS,CATERERS,GPC
WALSALL COUNCIL,HTTP://OPENDATACOMMUNITIES.ORG/ID/METROPOLITAN-DISTRICT-COUNCIL/WALSALL,30/09/2017,CHANGE & GOVERNANCE,BLAKEMORE FOODSERVICE,06/07/2017,H59620170707MIAKYFQOG-1,30.00,CA BARCROFT D/C-DRY FOODS-PROVISIONS,CATERERS,GPC
WALSALL COUNCIL,HTTP://OPENDATACOMMUNITIES.ORG/ID/METROPOLITAN-DISTRICT-COUNCIL/WALSALL,30/09/2017,CHANGE & GOVERNANCE,BLAKEMORE FOODSERVICE,06/07/2017,H59620170707MQRWSNFBS-1,40.66,CA BLUE COAT C OF E PERFORMING-FROZEN FOODS-PROVISIONS,CATERERS,GPC
WALSALL COUNCIL,HTTP://OPENDATACOMMUNITIES.ORG/ID/METROPOLITAN-DISTRICT-COUNCIL/WALSALL,30/09/2017,CHANGE & GOVERNANCE,BLAKEMORE FOODSERVICE,06/07/2017,H59620170707MQRWSNFBS-2,272.73,CA BLUE COAT C OF E PERFORMING-FROZEN FOODS-PROVISIONS,CATERERS,GPC
WALSALL COUNCIL,HTTP://OPENDATACOMMUNITIES.ORG/ID/METROPOLITAN-DISTRICT-COUNCIL/WALSALL,30/09/2017,CHANGE & GOVERNANCE,BLAKEMORE FOODSERVICE,06/07/2017,H59620170707NCQNXUIJS-1,16.01,CA BUSILL JONES PRIMARY SCHOOL-FROZEN FOODS-PROVISIONS,CATERERS,GPC
WALSALL COUNCIL,HTTP://OPENDATACOMMUNITIES.ORG/ID/METROPOLITAN-DISTRICT-COUNCIL/WALSALL,30/09/2017,CHANGE & GOVERNANCE,BLAKEMORE FOODSERVICE,06/07/2017,H59620170707NCQNXUIJS-2,131.37,CA BUSILL JONES PRIMARY SCHOOL-FROZEN FOODS-PROVISIONS,CATERERS,GPC
WALSALL COUNCIL,HTTP://OPENDATACOMMUNITIES.ORG/ID/METROPOLITAN-DISTRICT-COUNCIL/WALSALL,30/09/2017,CHANGE & GOVERNANCE,BLAKEMORE FOODSERVICE,06/07/2017,H59620170707NGHSLPCSD-1,16.01,CA ELMORE GREEN PRIMARY SCHOOL-FROZEN FOODS-PROVISIONS,CATERERS,GPC
WALSALL COUNCIL,HTTP://OPENDATACOMMUNITIES.ORG/ID/METROPOLITAN-DISTRICT-COUNCIL/WALSALL,30/09/2017,CHANGE & GOVERNANCE,BLAKEMORE FOODSERVICE,06/07/2017,H59620170707NGHSLPCSD-2,254.60,CA ELMORE GREEN PRIMARY SCHOOL-FROZEN FOODS-PROVISIONS,CATERERS,GPC
WALSALL COUNCIL,HTTP://OPENDATACOMMUNITIES.ORG/ID/METROPOLITAN-DISTRICT-COUNCIL/WALSALL,30/09/2017,CHANGE & GOVERNANCE,BLAKEMORE FOODSERVICE,06/07/2017,H59620170707NOTISCNNN-1,66.35,TOWN HALL RESTAURANT BISTRO-FROZEN FOODS-PROVISIONS,CATERERS,GPC
WALSALL COUNCIL,HTTP://OPENDATACOMMUNITIES.ORG/ID/METROPOLITAN-DISTRICT-COUNCIL/WALSALL,30/09/2017,ECONOMY & ENVIRONMENT,GILMORE BUILDING S,06/07/2017,H59620170707NYHHJOWBL-1,23.70,INFRASTRUCTURE MAINTENANCE-GENERAL MATERIALS,LUMBER & BUILDING MATERIALS STORES,GPC
WALSALL COUNCIL,HTTP://OPENDATACOMMUNITIES.ORG/ID/METROPOLITAN-DISTRICT-COUNCIL/WALSALL,30/09/2017,CHILDRENS SERVICES,ASDA SUPERSTORE,06/07/2017,H59620170707OEDBBHNKH-1,1.98,BLOXWICH CHILDCARE SERVICES-FOOD AND BEVERAGES-PROVISIONS,GROCERY STORES AND SUPERMARKETS,GPC
WALSALL COUNCIL,HTTP://OPENDATACOMMUNITIES.ORG/ID/METROPOLITAN-DISTRICT-COUNCIL/WALSALL,30/09/2017,CHILDRENS SERVICES,ASDA SUPERSTORE,06/07/2017,H59620170707OEDBBHNKH-2,15.40,BLOXWICH CHILDCARE SERVICES-FOOD AND BEVERAGES-PROVISIONS,GROCERY STORES AND SUPERMARKETS,GPC
WALSALL COUNCIL,HTTP://OPENDATACOMMUNITIES.ORG/ID/METROPOLITAN-DISTRICT-COUNCIL/WALSALL,30/09/2017,CHANGE & GOVERNANCE,FARMFOODS- BLOXWIC,06/07/2017,H59620170707OJEPBXJOK-1,15.19,ACCOMMODATION SERVICES MANAGEM-FOOD AND BEVERAGES-PROVISIONS,GROCERY STORES AND SUPERMARKETS,GPC
WALSALL COUNCIL,HTTP://OPENDATACOMMUNITIES.ORG/ID/METROPOLITAN-DISTRICT-COUNCIL/WALSALL,30/09/2017,ECONOMY & ENVIRONMENT,WWW.POWERTOOLWORLD.CO.,06/07/2017,H59620170707OUGFDSLOI-1,75.00,STREET CLEANSING-GENERAL MATERIALS,HARDWARE EQUIPMENT AND SUPPLIES,GPC
WALSALL COUNCIL,HTTP://OPENDATACOMMUNITIES.ORG/ID/METROPOLITAN-DISTRICT-COUNCIL/WALSALL,30/09/2017,ECONOMY & ENVIRONMENT,MNA LTD CARDCHARGE,06/07/2017,H59620170707PFBUFTIDT-1,291.48,DEVELOPMENT MANAGEMENT-PERIODICALS/MAGAZINES/NEWSPAPE,NEWS DEALERS AND NEWSSTANDS,GPC
WALSALL COUNCIL,HTTP://OPENDATACOMMUNITIES.ORG/ID/METROPOLITAN-DISTRICT-COUNCIL/WALSALL,30/09/2017,CHILDRENS SERVICES,JOHNSTONES DEC CENTRE,06/07/2017,H59620170707PGPYOWBDL-1,97.42,BLUEBELLS-GENERAL MATERIALS,"GLASS, PAINT AND WALLPAPER STORES",GPC
WALSALL COUNCIL,HTTP://OPENDATACOMMUNITIES.ORG/ID/METROPOLITAN-DISTRICT-COUNCIL/WALSALL,30/09/2017,ECONOMY & ENVIRONMENT,UPT - HIGHCROSS LEICESTE,06/07/2017,H59620170707POXPRTDEO-1,5.00,SPORT & LEISURE DEVELOPMENT SE-PROFESSIONAL FEES AND SERVICES,PROFESSIONAL SERVICES,GPC
WALSALL COUNCIL,HTTP://OPENDATACOMMUNITIES.ORG/ID/METROPOLITAN-DISTRICT-COUNCIL/WALSALL,30/09/2017,CHANGE & GOVERNANCE,BLAKEMORE FOODSERVICE,06/07/2017,H59620170707PTSLUWRAD-1,143.23,CA BLUE COAT C OF E PERFORMING-DRY FOODS-PROVISIONS,CATERERS,GPC
WALSALL COUNCIL,HTTP://OPENDATACOMMUNITIES.ORG/ID/METROPOLITAN-DISTRICT-COUNCIL/WALSALL,30/09/2017,CHANGE & GOVERNANCE,BLAKEMORE FOODSERVICE,06/07/2017,H59620170707PTSLUWRAD-2,154.34,CA BLUE COAT C OF E PERFORMING-DRY FOODS-PROVISIONS,CATERERS,GPC
WALSALL COUNCIL,HTTP://OPENDATACOMMUNITIES.ORG/ID/METROPOLITAN-DISTRICT-COUNCIL/WALSALL,30/09/2017,CHANGE & GOVERNANCE,BLAKEMORE FOODSERVICE,06/07/2017,H59620170707PWQVORWDZ-1,75.27,CA COOPER JORDAN CE PRIMARY SC-FROZEN FOODS-PROVISIONS,CATERERS,GPC
WALSALL COUNCIL,HTTP://OPENDATACOMMUNITIES.ORG/ID/METROPOLITAN-DISTRICT-COUNCIL/WALSALL,30/09/2017,CHANGE & GOVERNANCE,TESCO STORES 6161,06/07/2017,H59620170707QDFDJHTHU-1,76.25,WALSALL CRISIS SUPPORT SCHEME-CRISIS SUPPORT PAYMENTS,GROCERY STORES AND SUPERMARKETS,GPC
WALSALL COUNCIL,HTTP://OPENDATACOMMUNITIES.ORG/ID/METROPOLITAN-DISTRICT-COUNCIL/WALSALL,30/09/2017,CHANGE & GOVERNANCE,TRAVELODGE GB0000,06/07/2017,H59620170707QEUBQYGOB-1,142.25,AREA PARTNERSHIPS-FURNITURE & EQUIPMENT,TRAVELODGE,GPC
WALSALL COUNCIL,HTTP://OPENDATACOMMUNITIES.ORG/ID/METROPOLITAN-DISTRICT-COUNCIL/WALSALL,30/09/2017,CHANGE & GOVERNANCE,BLAKEMORE FOODSERVICE,06/07/2017,H59620170707QIRJHHMRQ-1,44.28,CA CASTLEFORT JMI SCHOOL-FROZEN FOODS-PROVISIONS,CATERERS,GPC
WALSALL COUNCIL,HTTP://OPENDATACOMMUNITIES.ORG/ID/METROPOLITAN-DISTRICT-COUNCIL/WALSALL,30/09/2017,CHANGE & GOVERNANCE,BLAKEMORE FOODSERVICE,06/07/2017,H59620170707QIRJHHMRQ-2,16.01,CA CASTLEFORT JMI SCHOOL-FROZEN FOODS-PROVISIONS,CATERERS,GPC
WALSALL COUNCIL,HTTP://OPENDATACOMMUNITIES.ORG/ID/METROPOLITAN-DISTRICT-COUNCIL/WALSALL,30/09/2017,CHANGE & GOVERNANCE,MCDONALDS,06/07/2017,H59620170707QZQDOLTRY-1,3.59,YOUNG PERSONS HOMELESS SERVICE-SUBSISTENCE OFFICERS-EXPENSES,QUICK PAYMENT SERVICE-FAST-FOOD RESTAURANTS,GPC
WALSALL COUNCIL,HTTP://OPENDATACOMMUNITIES.ORG/ID/METROPOLITAN-DISTRICT-COUNCIL/WALSALL,30/09/2017,CHANGE & GOVERNANCE,BRITANNIA,06/07/2017,H59620170707RDKJTLEPL-1,669.50,BED & BREAKFAST PAYMENTS-BED & BREAKFAST PAYMENTS,"HOTELS, MOTELS, RESORTS",GPC
WALSALL COUNCIL,HTTP://OPENDATACOMMUNITIES.ORG/ID/METROPOLITAN-DISTRICT-COUNCIL/WALSALL,30/09/2017,CHANGE & GOVERNANCE,BLAKEMORE FOODSERVICE,06/07/2017,H59620170707RKNCLWLJF-1,7.07,CA ELMORE GREEN PRIMARY SCHOOL-FROZEN FOODS-PROVISIONS,CATERERS,GPC
WALSALL COUNCIL,HTTP://OPENDATACOMMUNITIES.ORG/ID/METROPOLITAN-DISTRICT-COUNCIL/WALSALL,30/09/2017,CHILDRENS SERVICES,FARMFOODS- ERDINGT,06/07/2017,H59620170707RMKQOAMME-1,27.37,SPINDLETREE-FOOD AND BEVERAGES-PROVISIONS,GROCERY STORES AND SUPERMARKETS,GPC
WALSALL COUNCIL,HTTP://OPENDATACOMMUNITIES.ORG/ID/METROPOLITAN-DISTRICT-COUNCIL/WALSALL,30/09/2017,CHANGE & GOVERNANCE,ARTHUR BRETT CATER,06/07/2017,H59620170707RNJXSUGFG-1,67.52,TOWN HALL RESTAURANT BISTRO-FRUIT & VEGETABLES OTHER-PROVI,MISCELLANEOUS FOOD STORES & CONVENIENCE STORES,GPC
WALSALL COUNCIL,HTTP://OPENDATACOMMUNITIES.ORG/ID/METROPOLITAN-DISTRICT-COUNCIL/WALSALL,30/09/2017,CHANGE & GOVERNANCE,BLAKEMORE FOODSERVICE,06/07/2017,H59620170707ROJBPQKYT-1,174.86,CA BARCROFT D/C-DRY FOODS-PROVISIONS,CATERERS,GPC
WALSALL COUNCIL,HTTP://OPENDATACOMMUNITIES.ORG/ID/METROPOLITAN-DISTRICT-COUNCIL/WALSALL,30/09/2017,CHANGE & GOVERNANCE,BLAKEMORE FOODSERVICE,06/07/2017,H59620170707RQURJNVUS-1,164.09,CA JANE LANE SPECIAL SCHOOL-DRY FOODS-PROVISIONS,CATERERS,GPC
WALSALL COUNCIL,HTTP://OPENDATACOMMUNITIES.ORG/ID/METROPOLITAN-DISTRICT-COUNCIL/WALSALL,30/09/2017,CHANGE & GOVERNANCE,MERCURE WOLVERHAMPTON HOT,06/07/2017,H59620170707RSYVEMTGW-1,177.00,YOUNG PERSONS HOMELESS SERVICE-HOTEL ACCOMMODATION-EMPLOYEES,"HOTELS, MOTELS, RESORTS",GPC
WALSALL COUNCIL,HTTP://OPENDATACOMMUNITIES.ORG/ID/METROPOLITAN-DISTRICT-COUNCIL/WALSALL,30/09/2017,CHILDRENS SERVICES,AMAZON UK MARKETPLACE,06/07/2017,H59620170707RTEWFBYAL-1,2.74,GENERAL RESOURCES & MISC-GENERAL MATERIALS,BOOK STORES,GPC
WALSALL COUNCIL,HTTP://OPENDATACOMMUNITIES.ORG/ID/METROPOLITAN-DISTRICT-COUNCIL/WALSALL,30/09/2017,CHANGE & GOVERNANCE,BULL DOG APPLIANCES LT,06/07/2017,H59620170707RVLDICZIL-1,162.00,ACCOMMODATION SERVICES MANAGEM-FURNITURE & EQUIPMENT,HOUSEHOLD APPLIANCE STORES,GPC
WALSALL COUNCIL,HTTP://OPENDATACOMMUNITIES.ORG/ID/METROPOLITAN-DISTRICT-COUNCIL/WALSALL,30/09/2017,ECONOMY & ENVIRONMENT,PAYPAL *ETI LTD,06/07/2017,H59620170707SDLGUFJGK-1,43.20,DARLASTON LEISURE CENTRE-FURNITURE & EQUIPMENT,OTHER INDUSTRIAL SUPPLIES,GPC
WALSALL COUNCIL,HTTP://OPENDATACOMMUNITIES.ORG/ID/METROPOLITAN-DISTRICT-COUNCIL/WALSALL,30/09/2017,ECONOMY & ENVIRONMENT,DVLA DRIVER ONLINE,06/07/2017,H59620170707SLVFWTLKO-1,10.00,YEI ESF FUNDING-MISCELLANEOUS SUPPLIES,GOVERNMENT SERVICES,GPC
WALSALL COUNCIL,HTTP://OPENDATACOMMUNITIES.ORG/ID/METROPOLITAN-DISTRICT-COUNCIL/WALSALL,30/09/2017,ECONOMY & ENVIRONMENT,DVLA DRIVER ONLINE,06/07/2017,H59620170707SLVFWTLKO-2,10.00,YEI (IMPACT) PROGRAMME-MISCELLANEOUS SUPPLIES,GOVERNMENT SERVICES,GPC
WALSALL COUNCIL,HTTP://OPENDATACOMMUNITIES.ORG/ID/METROPOLITAN-DISTRICT-COUNCIL/WALSALL,30/09/2017,CHANGE & GOVERNANCE,BLAKEMORE FOODSERVICE,06/07/2017,H59620170707SNOHNQOOL-1,65.11,CA OLD HALL SPECIAL SCHOOL-DRY FOODS-PROVISIONS,CATERERS,GPC
WALSALL COUNCIL,HTTP://OPENDATACOMMUNITIES.ORG/ID/METROPOLITAN-DISTRICT-COUNCIL/WALSALL,30/09/2017,CHILDRENS SERVICES,TESCO STORES 6161,06/07/2017,H59620170707SOKPOSRSL-1,3.77,LOCALITY FAMILY SUPPORT-CENTRA-FOOD AND BEVERAGES-PROVISIONS,GROCERY STORES AND SUPERMARKETS,GPC
WALSALL COUNCIL,HTTP://OPENDATACOMMUNITIES.ORG/ID/METROPOLITAN-DISTRICT-COUNCIL/WALSALL,30/09/2017,CHANGE & GOVERNANCE,ARTHUR BRETT CATER,06/07/2017,H59620170707UEDTQKPRO-1,29.35,CA TOWN HALL RESTAURANT - CATE-FRUIT & VEGETABLES OTHER-PROVI,MISCELLANEOUS FOOD STORES & CONVENIENCE STORES,GPC
WALSALL COUNCIL,HTTP://OPENDATACOMMUNITIES.ORG/ID/METROPOLITAN-DISTRICT-COUNCIL/WALSALL,30/09/2017,CHANGE & GOVERNANCE,BLAKEMORE FOODSERVICE,06/07/2017,H59620170707UQNCBNTCG-1,120.70,CA BEACON PRIMARY SCHOOL-DRY FOODS-PROVISIONS,CATERERS,GPC
WALSALL COUNCIL,HTTP://OPENDATACOMMUNITIES.ORG/ID/METROPOLITAN-DISTRICT-COUNCIL/WALSALL,30/09/2017,CHANGE & GOVERNANCE,TRAVELODGE GB0000,06/07/2017,H59620170707VCURVIOQC-1,166.00,AREA PARTNERSHIPS-FURNITURE & EQUIPMENT,TRAVELODGE,GPC
WALSALL COUNCIL,HTTP://OPENDATACOMMUNITIES.ORG/ID/METROPOLITAN-DISTRICT-COUNCIL/WALSALL,30/09/2017,CHILDRENS SERVICES,TRAINLINE,06/07/2017,H59620170707WOKRMSOIM-1,78.74,SAFEGUARDING & FAMILY SUPPORT-OTHER-TRAVEL ALLOWANCES,PASSENGER RAILWAYS,GPC
WALSALL COUNCIL,HTTP://OPENDATACOMMUNITIES.ORG/ID/METROPOLITAN-DISTRICT-COUNCIL/WALSALL,30/09/2017,ECONOMY & ENVIRONMENT,TRAVEL WEST MIDLAN,06/07/2017,H59620170707WRAEEEOGO-1,264.00,YEI (IMPACT) PROGRAMME-MISCELLANEOUS SUPPLIES,BUS LINES,GPC
WALSALL COUNCIL,HTTP://OPENDATACOMMUNITIES.ORG/ID/METROPOLITAN-DISTRICT-COUNCIL/WALSALL,30/09/2017,ECONOMY & ENVIRONMENT,TRAVEL WEST MIDLAN,06/07/2017,H59620170707WRAEEEOGO-2,264.00,YEI ESF FUNDING-MISCELLANEOUS SUPPLIES,BUS LINES,GPC
WALSALL COUNCIL,HTTP://OPENDATACOMMUNITIES.ORG/ID/METROPOLITAN-DISTRICT-COUNCIL/WALSALL,30/09/2017,CHILDRENS SERVICES,ASDA SUPERSTORE,06/07/2017,H59620170707WSAMATLVC-1,1.00,BLAKENALL CHILDCARE SERVICES-FOOD AND BEVERAGES-PROVISIONS,GROCERY STORES AND SUPERMARKETS,GPC
WALSALL COUNCIL,HTTP://OPENDATACOMMUNITIES.ORG/ID/METROPOLITAN-DISTRICT-COUNCIL/WALSALL,30/09/2017,CHILDRENS SERVICES,ASDA SUPERSTORE,06/07/2017,H59620170707WSAMATLVC-2,18.55,BLAKENALL CHILDCARE SERVICES-FOOD AND BEVERAGES-PROVISIONS,GROCERY STORES AND SUPERMARKETS,GPC
WALSALL COUNCIL,HTTP://OPENDATACOMMUNITIES.ORG/ID/METROPOLITAN-DISTRICT-COUNCIL/WALSALL,30/09/2017,CHILDRENS SERVICES,WALSALL CARPETS,06/07/2017,H59620170707XQBVYXPDF-1,250.00,LOOKED AFTER CHILDRENS SOCIAL -SUPPORT UNDER SECTION 23 OF TH,FLOOR COVERING STORES,GPC
WALSALL COUNCIL,HTTP://OPENDATACOMMUNITIES.ORG/ID/METROPOLITAN-DISTRICT-COUNCIL/WALSALL,30/09/2017,CHANGE & GOVERNANCE,BULL DOG APPLIANCES LT,06/07/2017,H59620170707YGAMUDHFH-1,162.00,ACCOMMODATION SERVICES MANAGEM-FURNITURE & EQUIPMENT,HOUSEHOLD APPLIANCE STORES,GPC
WALSALL COUNCIL,HTTP://OPENDATACOMMUNITIES.ORG/ID/METROPOLITAN-DISTRICT-COUNCIL/WALSALL,30/09/2017,CHILDRENS SERVICES,WALSALL COUNCIL,06/07/2017,H59620170707YHVXJERPN-1,85.00,GENERAL MANAGEMENT SUPPORT (IN-LEGAL FEES-PRIV CONTRACTOR FEE,GOVERNMENT SERVICES,GPC
WALSALL COUNCIL,HTTP://OPENDATACOMMUNITIES.ORG/ID/METROPOLITAN-DISTRICT-COUNCIL/WALSALL,30/09/2017,CHANGE & GOVERNANCE,BLAKEMORE FOODSERVICE,06/07/2017,H59620170707YNEJVTNOH-1,5.19,CA BUSILL JONES PRIMARY SCHOOL-FROZEN FOODS-PROVISIONS,CATERERS,GPC
WALSALL COUNCIL,HTTP://OPENDATACOMMUNITIES.ORG/ID/METROPOLITAN-DISTRICT-COUNCIL/WALSALL,30/09/2017,CHANGE & GOVERNANCE,BLAKEMORE FOODSERVICE,06/07/2017,H59620170707YNWXEELML-1,93.06,CA ELMWOOD SPECIAL SCHOOL-DRY FOODS-PROVISIONS,CATERERS,GPC
WALSALL COUNCIL,HTTP://OPENDATACOMMUNITIES.ORG/ID/METROPOLITAN-DISTRICT-COUNCIL/WALSALL,30/09/2017,CHILDRENS SERVICES,ARGOS RETAIL GROUP,06/07/2017,H59620170707YVUZGSCPL-1,183.48,LOOKED AFTER CHILDRENS SOCIAL -SUPPORT UNDER SECTION 23 OF TH,DISCOUNT STORES,GPC
WALSALL COUNCIL,HTTP://OPENDATACOMMUNITIES.ORG/ID/METROPOLITAN-DISTRICT-COUNCIL/WALSALL,30/09/2017,CHANGE & GOVERNANCE,TVLICENSING.CO.UK,06/07/2017,H59620170707ZELBUMILS-1,147.00,CHARGING & PAYMENTS-COSTS (NOT INTERNAL RECHARGES),"CONSULTING, MANAGEMENT, AND PR SERVICES",GPC
WALSALL COUNCIL,HTTP://OPENDATACOMMUNITIES.ORG/ID/METROPOLITAN-DISTRICT-COUNCIL/WALSALL,30/09/2017,ECONOMY & ENVIRONMENT,AMAZON UK MARKETPLACE,07/07/2017,H59620170708AMHTFYVYT-1,5.25,"ARBORETUM HLF-REPAIRS,ALTERATIONS & MAINTENA",MISCELLANEOUS AND SPECIALTY RETAIL STORES,GPC
WALSALL COUNCIL,HTTP://OPENDATACOMMUNITIES.ORG/ID/METROPOLITAN-DISTRICT-COUNCIL/WALSALL,30/09/2017,CHILDRENS SERVICES,BANNER GROUP LTD,07/07/2017,H59620170708CDPSOKUPL-1,19.80,ALUMWELL NURSERY-CLEANING MATERIALS,"OFFICE, SCHOOL SUPPLY, AND STATIONERY STORES",GPC
WALSALL COUNCIL,HTTP://OPENDATACOMMUNITIES.ORG/ID/METROPOLITAN-DISTRICT-COUNCIL/WALSALL,30/09/2017,CHILDRENS SERVICES,AMAZON UK MARKETPLACE,07/07/2017,H59620170708DMJVQCOJR-1,20.70,PSYCHOLOGY-GENERAL MATERIALS,MISCELLANEOUS AND SPECIALTY RETAIL STORES,GPC
WALSALL COUNCIL,HTTP://OPENDATACOMMUNITIES.ORG/ID/METROPOLITAN-DISTRICT-COUNCIL/WALSALL,30/09/2017,CHANGE & GOVERNANCE,CRAZY HOUSE FURNITURE,07/07/2017,H59620170708DNIOCGPVX-1,255.00,WALSALL CRISIS SUPPORT SCHEME-FURNITURE & EQUIPMENT,MISCELLANEOUS HOUSE FURNISHING SPECIALTY SHOPS,GPC
WALSALL COUNCIL,HTTP://OPENDATACOMMUNITIES.ORG/ID/METROPOLITAN-DISTRICT-COUNCIL/WALSALL,30/09/2017,ECONOMY & ENVIRONMENT,WH SMITH,07/07/2017,H59620170708DRFJAWWOI-1,9.98,OAK PARK-PERIODICALS/MAGAZINES/NEWSPAPE,NEWS DEALERS AND NEWSSTANDS,GPC
WALSALL COUNCIL,HTTP://OPENDATACOMMUNITIES.ORG/ID/METROPOLITAN-DISTRICT-COUNCIL/WALSALL,30/09/2017,CHANGE & GOVERNANCE,ALLPAY LTD,07/07/2017,H59620170708DWIYFKHHH-1,47.83,YOUNG PERSONS HOMELESS SERVICE-RENTS-OTHER,"ORGANIZATIONS, CHARITABLE AND SOCIAL SERVICE",GPC
WALSALL COUNCIL,HTTP://OPENDATACOMMUNITIES.ORG/ID/METROPOLITAN-DISTRICT-COUNCIL/WALSALL,30/09/2017,CHANGE & GOVERNANCE,NOBISCO LTD,07/07/2017,H59620170708DYVBXSUVG-1,164.42,CA LINDENS PRIMARY SCHOOL-DISPOSABLES-PROVISIONS,"CLEANING AND MAINTENANCE, JANITORIAL SERVICES",GPC
WALSALL COUNCIL,HTTP://OPENDATACOMMUNITIES.ORG/ID/METROPOLITAN-DISTRICT-COUNCIL/WALSALL,30/09/2017,CHANGE & GOVERNANCE,BULL DOG APPLIANCES LT,07/07/2017,H59620170708EIJIMOCUU-1,171.00,WALSALL CRISIS SUPPORT SCHEME-FURNITURE & EQUIPMENT,HOUSEHOLD APPLIANCE STORES,GPC
WALSALL COUNCIL,HTTP://OPENDATACOMMUNITIES.ORG/ID/METROPOLITAN-DISTRICT-COUNCIL/WALSALL,30/09/2017,CHILDRENS SERVICES,BANNER GROUP LTD,07/07/2017,H59620170708EPHJMIBFB-1,3.46,TRANSITION AND LEAVING CARE-STATIONERY & GENERAL SUPPLIES-,"OFFICE, SCHOOL SUPPLY, AND STATIONERY STORES",GPC
WALSALL COUNCIL,HTTP://OPENDATACOMMUNITIES.ORG/ID/METROPOLITAN-DISTRICT-COUNCIL/WALSALL,30/09/2017,CHILDRENS SERVICES,BANNER GROUP LTD,07/07/2017,H59620170708FBOEWDNQC-1,43.10,BIRCHILLS CHILDCARE SERVICES-STATIONERY & GENERAL SUPPLIES-,"OFFICE, SCHOOL SUPPLY, AND STATIONERY STORES",GPC
WALSALL COUNCIL,HTTP://OPENDATACOMMUNITIES.ORG/ID/METROPOLITAN-DISTRICT-COUNCIL/WALSALL,30/09/2017,CHILDRENS SERVICES,PAYPAL *MATTHEWJAME,07/07/2017,H59620170708FUQTTGRNB-1,120.00,R.E.-LICENCES-COMPUTER,BOOK STORES,GPC
WALSALL COUNCIL,HTTP://OPENDATACOMMUNITIES.ORG/ID/METROPOLITAN-DISTRICT-COUNCIL/WALSALL,30/09/2017,,THE HENS HOUSE,07/07/2017,H59620170708GLBEXNESZ-1,50.00,CFR 1128 A461 NATIONAL PRODUCT-PROJECT FEES,"BARS, COCKTAIL LOUNGES, DISCOTHEQUES, NIGHTCLUBS",GPC
WALSALL COUNCIL,HTTP://OPENDATACOMMUNITIES.ORG/ID/METROPOLITAN-DISTRICT-COUNCIL/WALSALL,30/09/2017,ECONOMY & ENVIRONMENT,AMAZON UK RETAIL,07/07/2017,H59620170708GNFLCMWGL-1,20.26,"ARBORETUM HLF-REPAIRS,ALTERATIONS & MAINTENA",OTHER DIRECT MARKETING-OTHER DIRECT MARKETERS,GPC
WALSALL COUNCIL,HTTP://OPENDATACOMMUNITIES.ORG/ID/METROPOLITAN-DISTRICT-COUNCIL/WALSALL,30/09/2017,ECONOMY & ENVIRONMENT,NWS MARINE LIMITED,07/07/2017,H59620170708GRDEOONSG-1,276.46,WALSALL OUTDOOR ADVENTURE CENT-PROFESSIONAL FEES AND SERVICES,OTHER BUSINESS SERVICES,GPC
WALSALL COUNCIL,HTTP://OPENDATACOMMUNITIES.ORG/ID/METROPOLITAN-DISTRICT-COUNCIL/WALSALL,30/09/2017,ECONOMY & ENVIRONMENT,AMAZON UK MARKETPLACE,07/07/2017,H59620170708HREGKMFSM-1,19.95,"ARBORETUM HLF-REPAIRS,ALTERATIONS & MAINTENA",MISCELLANEOUS AND SPECIALTY RETAIL STORES,GPC
WALSALL COUNCIL,HTTP://OPENDATACOMMUNITIES.ORG/ID/METROPOLITAN-DISTRICT-COUNCIL/WALSALL,30/09/2017,CHILDRENS SERVICES,BANNER GROUP LTD,07/07/2017,H59620170708IAWIIMOFS-1,39.60,BIRCHILLS CHILDCARE SERVICES-CLEANING MATERIALS,"OFFICE, SCHOOL SUPPLY, AND STATIONERY STORES",GPC
WALSALL COUNCIL,HTTP://OPENDATACOMMUNITIES.ORG/ID/METROPOLITAN-DISTRICT-COUNCIL/WALSALL,30/09/2017,CHILDRENS SERVICES,WWW.PARTYDELIGHTS.CO.U,07/07/2017,H59620170708IGRHTZLGL-1,134.75,GENERAL RESOURCES & MISC-GENERAL MATERIALS,"CARD, GIFT, NOVELTY, AND SOUVENIR SHOPS",GPC
WALSALL COUNCIL,HTTP://OPENDATACOMMUNITIES.ORG/ID/METROPOLITAN-DISTRICT-COUNCIL/WALSALL,30/09/2017,CHILDRENS SERVICES,BANNER GROUP LTD,07/07/2017,H59620170708IJRKNROUY-1,67.34,BIRCHILLS CHILDCARE SERVICES-CLEANING MATERIALS,"OFFICE, SCHOOL SUPPLY, AND STATIONERY STORES",GPC
WALSALL COUNCIL,HTTP://OPENDATACOMMUNITIES.ORG/ID/METROPOLITAN-DISTRICT-COUNCIL/WALSALL,30/09/2017,CHILDRENS SERVICES,AMAZON UK RETAIL,07/07/2017,H59620170708IOTYUUEPL-1,20.00,SPECIAL FACILITIES - BEFORE/AF-GENERAL MATERIALS,OTHER DIRECT MARKETING-OTHER DIRECT MARKETERS,GPC
WALSALL COUNCIL,HTTP://OPENDATACOMMUNITIES.ORG/ID/METROPOLITAN-DISTRICT-COUNCIL/WALSALL,30/09/2017,CHILDRENS SERVICES,LONDON MIDLAND TIC,07/07/2017,H59620170708IPDWYFVIK-1,17.80,LOOKED AFTER CHILDRENS SOCIAL -OFFICER/STAFF-PUBLIC TRANSPORT,PASSENGER RAILWAYS,GPC
WALSALL COUNCIL,HTTP://OPENDATACOMMUNITIES.ORG/ID/METROPOLITAN-DISTRICT-COUNCIL/WALSALL,30/09/2017,CHANGE & GOVERNANCE,CRAZY HOUSE FURNITURE,07/07/2017,H59620170708IWFEUIYMN-1,255.00,WALSALL CRISIS SUPPORT SCHEME-FURNITURE & EQUIPMENT,MISCELLANEOUS HOUSE FURNISHING SPECIALTY SHOPS,GPC
WALSALL COUNCIL,HTTP://OPENDATACOMMUNITIES.ORG/ID/METROPOLITAN-DISTRICT-COUNCIL/WALSALL,30/09/2017,CHANGE & GOVERNANCE,PARK INN BY RADISSON,07/07/2017,H59620170708JAMCLFOIJ-1,396.00,WALSALL CRISIS SUPPORT SCHEME-HOTEL ACCOMMODATION-EMPLOYEES,"HOTELS, MOTELS, RESORTS",GPC
WALSALL COUNCIL,HTTP://OPENDATACOMMUNITIES.ORG/ID/METROPOLITAN-DISTRICT-COUNCIL/WALSALL,30/09/2017,CHILDRENS SERVICES,BANNER GROUP LTD,07/07/2017,H59620170708JRCEJJYGH-1,50.66,TRANSITION AND LEAVING CARE-STATIONERY & GENERAL SUPPLIES-,"OFFICE, SCHOOL SUPPLY, AND STATIONERY STORES",GPC
WALSALL COUNCIL,HTTP://OPENDATACOMMUNITIES.ORG/ID/METROPOLITAN-DISTRICT-COUNCIL/WALSALL,30/09/2017,CHILDRENS SERVICES,AMAZON UK MARKETPLACE,07/07/2017,H59620170708JSQIUCSYC-1,18.98,LOOKED AFTER CHILDRENS SOCIAL -LIBRARY BOOKS,BOOK STORES,GPC
WALSALL COUNCIL,HTTP://OPENDATACOMMUNITIES.ORG/ID/METROPOLITAN-DISTRICT-COUNCIL/WALSALL,30/09/2017,ECONOMY & ENVIRONMENT,AMAZON UK RETAIL AMAZON.C,07/07/2017,H59620170708KPWIFJUVT-1,20.26,"ARBORETUM HLF-REPAIRS,ALTERATIONS & MAINTENA",MISCELLANEOUS AND SPECIALTY RETAIL STORES,GPC
WALSALL COUNCIL,HTTP://OPENDATACOMMUNITIES.ORG/ID/METROPOLITAN-DISTRICT-COUNCIL/WALSALL,30/09/2017,ECONOMY & ENVIRONMENT,ALDI,07/07/2017,H59620170708KTRPRCAWK-1,12.99,INFRASTRUCTURE MAINTENANCE-GENERAL MATERIALS,GROCERY STORES AND SUPERMARKETS,GPC
WALSALL COUNCIL,HTTP://OPENDATACOMMUNITIES.ORG/ID/METROPOLITAN-DISTRICT-COUNCIL/WALSALL,30/09/2017,CHANGE & GOVERNANCE,CRAZY HOUSE FURNITURE,07/07/2017,H59620170708LPSPULQEY-1,215.00,WALSALL CRISIS SUPPORT SCHEME-FURNITURE & EQUIPMENT,MISCELLANEOUS HOUSE FURNISHING SPECIALTY SHOPS,GPC
WALSALL COUNCIL,HTTP://OPENDATACOMMUNITIES.ORG/ID/METROPOLITAN-DISTRICT-COUNCIL/WALSALL,30/09/2017,CHILDRENS SERVICES,AMAZON UK RETAIL,07/07/2017,H59620170708LRCYDMCBZ-1,16.02,ST FRANCIS OF ASSISI CATHOLIC -REFERENCE BOOKS,OTHER DIRECT MARKETING-OTHER DIRECT MARKETERS,GPC
WALSALL COUNCIL,HTTP://OPENDATACOMMUNITIES.ORG/ID/METROPOLITAN-DISTRICT-COUNCIL/WALSALL,30/09/2017,CHILDRENS SERVICES,AMAZON UK RETAIL,07/07/2017,H59620170708LRCYDMCBZ-2,19.97,BUSINESS STUDIES-REFERENCE BOOKS,OTHER DIRECT MARKETING-OTHER DIRECT MARKETERS,GPC
WALSALL COUNCIL,HTTP://OPENDATACOMMUNITIES.ORG/ID/METROPOLITAN-DISTRICT-COUNCIL/WALSALL,30/09/2017,CHILDRENS SERVICES,AMAZON UK RETAIL,07/07/2017,H59620170708LZPLKVXOO-1,24.99,SPECIAL FACILITIES - BEFORE/AF-GENERAL MATERIALS,OTHER DIRECT MARKETING-OTHER DIRECT MARKETERS,GPC
WALSALL COUNCIL,HTTP://OPENDATACOMMUNITIES.ORG/ID/METROPOLITAN-DISTRICT-COUNCIL/WALSALL,30/09/2017,CHANGE & GOVERNANCE,LONDON MIDLAND TIC,07/07/2017,H59620170708MSRIEGGFH-1,18.10,ACCOMMODATION SERVICES MANAGEM-OFFICER/STAFF-PUBLIC TRANSPORT,PASSENGER RAILWAYS,GPC
WALSALL COUNCIL,HTTP://OPENDATACOMMUNITIES.ORG/ID/METROPOLITAN-DISTRICT-COUNCIL/WALSALL,30/09/2017,CHILDRENS SERVICES,PAYPAL *HMSA,07/07/2017,H59620170708MXFJZQPFA-1,7.00,ADMINISTRATIVE SUPPLIES-STATIONERY & GENERAL SUPPLIES-,"ORGANIZATIONS, CHARITABLE AND SOCIAL SERVICE",GPC
WALSALL COUNCIL,HTTP://OPENDATACOMMUNITIES.ORG/ID/METROPOLITAN-DISTRICT-COUNCIL/WALSALL,30/09/2017,CHANGE & GOVERNANCE,CRAZY HOUSE FURNITURE,07/07/2017,H59620170708MYGLXPRHM-1,345.00,WALSALL CRISIS SUPPORT SCHEME-FURNITURE & EQUIPMENT,MISCELLANEOUS HOUSE FURNISHING SPECIALTY SHOPS,GPC
WALSALL COUNCIL,HTTP://OPENDATACOMMUNITIES.ORG/ID/METROPOLITAN-DISTRICT-COUNCIL/WALSALL,30/09/2017,ECONOMY & ENVIRONMENT,REGISTRATION SERVICES,07/07/2017,H59620170708NJFYXTHME-1,5.00,YEI ESF FUNDING-MISCELLANEOUS SUPPLIES,OTHER RECREATION SERVICES,GPC
WALSALL COUNCIL,HTTP://OPENDATACOMMUNITIES.ORG/ID/METROPOLITAN-DISTRICT-COUNCIL/WALSALL,30/09/2017,ECONOMY & ENVIRONMENT,REGISTRATION SERVICES,07/07/2017,H59620170708NJFYXTHME-2,5.00,YEI (IMPACT) PROGRAMME-MISCELLANEOUS SUPPLIES,OTHER RECREATION SERVICES,GPC
WALSALL COUNCIL,HTTP://OPENDATACOMMUNITIES.ORG/ID/METROPOLITAN-DISTRICT-COUNCIL/WALSALL,30/09/2017,CHILDRENS SERVICES,AMAZON UK MARKETPLACE,07/07/2017,H59620170708PIHOXAOBC-1,2.49,BLAKENALL CHILDCARE SERVICES-FURNITURE & EQUIPMENT,MISCELLANEOUS AND SPECIALTY RETAIL STORES,GPC
WALSALL COUNCIL,HTTP://OPENDATACOMMUNITIES.ORG/ID/METROPOLITAN-DISTRICT-COUNCIL/WALSALL,30/09/2017,CHILDRENS SERVICES,AMAZON UK MARKETPLACE,07/07/2017,H59620170708PIHOXAOBC-2,0.50,BLAKENALL CHILDCARE SERVICES-FURNITURE & EQUIPMENT,MISCELLANEOUS AND SPECIALTY RETAIL STORES,GPC
WALSALL COUNCIL,HTTP://OPENDATACOMMUNITIES.ORG/ID/METROPOLITAN-DISTRICT-COUNCIL/WALSALL,30/09/2017,CHILDRENS SERVICES,AMAZON UK RETAIL,07/07/2017,H59620170708PRYKVENYV-1,36.53,BUSINESS STUDIES-REFERENCE BOOKS,OTHER DIRECT MARKETING-OTHER DIRECT MARKETERS,GPC
WALSALL COUNCIL,HTTP://OPENDATACOMMUNITIES.ORG/ID/METROPOLITAN-DISTRICT-COUNCIL/WALSALL,30/09/2017,CHANGE & GOVERNANCE,CRAZY HOUSE FURNITURE,07/07/2017,H59620170708PWYXBPQLA-1,395.00,WALSALL CRISIS SUPPORT SCHEME-FURNITURE & EQUIPMENT,MISCELLANEOUS HOUSE FURNISHING SPECIALTY SHOPS,GPC
WALSALL COUNCIL,HTTP://OPENDATACOMMUNITIES.ORG/ID/METROPOLITAN-DISTRICT-COUNCIL/WALSALL,30/09/2017,CHANGE & GOVERNANCE,NOBISCO LTD,07/07/2017,H59620170708QQYKGGEFW-1,53.45,CA ELMORE GREEN PRIMARY SCHOOL-DISPOSABLES-PROVISIONS,"CLEANING AND MAINTENANCE, JANITORIAL SERVICES",GPC
WALSALL COUNCIL,HTTP://OPENDATACOMMUNITIES.ORG/ID/METROPOLITAN-DISTRICT-COUNCIL/WALSALL,30/09/2017,ECONOMY & ENVIRONMENT,AMAZON UK MARKETPLACE,07/07/2017,H59620170708QZKYWMUJQ-1,17.23,YEI ESF FUNDING-MISCELLANEOUS SUPPLIES,BOOK STORES,GPC
WALSALL COUNCIL,HTTP://OPENDATACOMMUNITIES.ORG/ID/METROPOLITAN-DISTRICT-COUNCIL/WALSALL,30/09/2017,ECONOMY & ENVIRONMENT,AMAZON UK MARKETPLACE,07/07/2017,H59620170708QZKYWMUJQ-2,17.22,YEI (IMPACT) PROGRAMME-MISCELLANEOUS SUPPLIES,BOOK STORES,GPC
WALSALL COUNCIL,HTTP://OPENDATACOMMUNITIES.ORG/ID/METROPOLITAN-DISTRICT-COUNCIL/WALSALL,30/09/2017,CHILDRENS SERVICES,AMAZON UK MARKETPLACE,07/07/2017,H59620170708RPBDWSMNY-1,0.43,BLAKENALL CHILDCARE SERVICES-FURNITURE & EQUIPMENT,BOOK STORES,GPC
WALSALL COUNCIL,HTTP://OPENDATACOMMUNITIES.ORG/ID/METROPOLITAN-DISTRICT-COUNCIL/WALSALL,30/09/2017,CHILDRENS SERVICES,AMAZON UK MARKETPLACE,07/07/2017,H59620170708RPBDWSMNY-2,2.14,BLAKENALL CHILDCARE SERVICES-FURNITURE & EQUIPMENT,BOOK STORES,GPC
WALSALL COUNCIL,HTTP://OPENDATACOMMUNITIES.ORG/ID/METROPOLITAN-DISTRICT-COUNCIL/WALSALL,30/09/2017,CHILDRENS SERVICES,TESCO STORES 3398,07/07/2017,H59620170708RYKJARLEY-1,13.99,SPINDLETREE-FOOD AND BEVERAGES-PROVISIONS,GROCERY STORES AND SUPERMARKETS,GPC
WALSALL COUNCIL,HTTP://OPENDATACOMMUNITIES.ORG/ID/METROPOLITAN-DISTRICT-COUNCIL/WALSALL,30/09/2017,CHANGE & GOVERNANCE,CRAZY HOUSE FURNITURE,07/07/2017,H59620170708SFOWLSAGY-1,370.00,ACCOMMODATION SERVICES MANAGEM-FURNITURE & EQUIPMENT,MISCELLANEOUS HOUSE FURNISHING SPECIALTY SHOPS,GPC
WALSALL COUNCIL,HTTP://OPENDATACOMMUNITIES.ORG/ID/METROPOLITAN-DISTRICT-COUNCIL/WALSALL,30/09/2017,CHILDRENS SERVICES,AMAZON UK MARKETPLACE,07/07/2017,H59620170708SPKDCKKMY-1,4.47,SEN LH-GENERAL MATERIALS,MISCELLANEOUS AND SPECIALTY RETAIL STORES,GPC
WALSALL COUNCIL,HTTP://OPENDATACOMMUNITIES.ORG/ID/METROPOLITAN-DISTRICT-COUNCIL/WALSALL,30/09/2017,CHILDRENS SERVICES,BANNER GROUP LTD,07/07/2017,H59620170708SZGWIOEQU-1,5.29,TRANSITION AND LEAVING CARE-STATIONERY & GENERAL SUPPLIES-,"OFFICE, SCHOOL SUPPLY, AND STATIONERY STORES",GPC
WALSALL COUNCIL,HTTP://OPENDATACOMMUNITIES.ORG/ID/METROPOLITAN-DISTRICT-COUNCIL/WALSALL,30/09/2017,CHILDRENS SERVICES,AMAZON UK MARKETPLACE,07/07/2017,H59620170708TJLUUBISX-1,20.71,PSYCHOLOGY-MISCELLANEOUS SUPPLIES,MISCELLANEOUS AND SPECIALTY RETAIL STORES,GPC
WALSALL COUNCIL,HTTP://OPENDATACOMMUNITIES.ORG/ID/METROPOLITAN-DISTRICT-COUNCIL/WALSALL,30/09/2017,ECONOMY & ENVIRONMENT,AMAZON UK MARKETPLACE,07/07/2017,H59620170708TPFNKQXSB-1,10.99,"ARBORETUM-REPAIRS,ALTERATIONS & MAINTENA",MISCELLANEOUS AND SPECIALTY RETAIL STORES,GPC
WALSALL COUNCIL,HTTP://OPENDATACOMMUNITIES.ORG/ID/METROPOLITAN-DISTRICT-COUNCIL/WALSALL,30/09/2017,CHANGE & GOVERNANCE,BORSHCH LIMITED,07/07/2017,H59620170708TPVUNZQUK-1,525.00,WALSALL CRISIS SUPPORT SCHEME-CRISIS SUPPORT PAYMENTS,ELECTRONIC SALES,GPC
WALSALL COUNCIL,HTTP://OPENDATACOMMUNITIES.ORG/ID/METROPOLITAN-DISTRICT-COUNCIL/WALSALL,30/09/2017,ECONOMY & ENVIRONMENT,SIM MAYOU HARDWARE,07/07/2017,H59620170708UDKJETOCX-1,23.98,RESOURCE MANAGEMENT-OTHER EXPENSES-EXPENSES,HARDWARE STORES,GPC
WALSALL COUNCIL,HTTP://OPENDATACOMMUNITIES.ORG/ID/METROPOLITAN-DISTRICT-COUNCIL/WALSALL,30/09/2017,CHANGE & GOVERNANCE,SITEON LTD 4CRM SITE,07/07/2017,H59620170708UNSTEPVIC-1,3600.00,APPLICATIONS-RECHARGE FOR MAINTENANCE/APPLI,COMPUTER SOFTWARE STORES,GPC
WALSALL COUNCIL,HTTP://OPENDATACOMMUNITIES.ORG/ID/METROPOLITAN-DISTRICT-COUNCIL/WALSALL,30/09/2017,ECONOMY & ENVIRONMENT,WWW.FRIEZE.COM,07/07/2017,H59620170708VFJHRMFRI-1,70.00,GALLERY LIBRARY-PUBLICATIONS/ORGANISATIONS-SUB,MISCELLANEOUS PUBLISHING AND PRINTING,GPC
WALSALL COUNCIL,HTTP://OPENDATACOMMUNITIES.ORG/ID/METROPOLITAN-DISTRICT-COUNCIL/WALSALL,30/09/2017,ECONOMY & ENVIRONMENT,KOO SALES & SERVICES LTD,07/07/2017,H59620170708VKVYNSZPJ-1,118.46,"ARBORETUM HLF-REPAIRS,ALTERATIONS & MAINTENA",SWIMMING POOLS-SALES AND SUPPLIES,GPC
WALSALL COUNCIL,HTTP://OPENDATACOMMUNITIES.ORG/ID/METROPOLITAN-DISTRICT-COUNCIL/WALSALL,30/09/2017,CHILDRENS SERVICES,AMAZON UK MARKETPLACE,07/07/2017,H59620170708VSCVKHUQK-1,3.04,BLAKENALL CHILDCARE SERVICES-FURNITURE & EQUIPMENT,BOOK STORES,GPC
WALSALL COUNCIL,HTTP://OPENDATACOMMUNITIES.ORG/ID/METROPOLITAN-DISTRICT-COUNCIL/WALSALL,30/09/2017,CHILDRENS SERVICES,AMAZON UK MARKETPLACE,07/07/2017,H59620170708VSCVKHUQK-2,0.61,BLAKENALL CHILDCARE SERVICES-FURNITURE & EQUIPMENT,BOOK STORES,GPC
WALSALL COUNCIL,HTTP://OPENDATACOMMUNITIES.ORG/ID/METROPOLITAN-DISTRICT-COUNCIL/WALSALL,30/09/2017,CHILDRENS SERVICES,AMAZON UK MARKETPLACE,07/07/2017,H59620170708WLITIBHFI-1,8.27,CHUCKERY PRIMARY SCHOOL-BREAD-GENERAL-PROVISIONS,BOOK STORES,GPC
WALSALL COUNCIL,HTTP://OPENDATACOMMUNITIES.ORG/ID/METROPOLITAN-DISTRICT-COUNCIL/WALSALL,30/09/2017,CHILDRENS SERVICES,AMAZON UK MARKETPLACE,07/07/2017,H59620170708WLITIBHFI-2,8.67,GENERAL RESOURCES & MISC-GENERAL MATERIALS,BOOK STORES,GPC
WALSALL COUNCIL,HTTP://OPENDATACOMMUNITIES.ORG/ID/METROPOLITAN-DISTRICT-COUNCIL/WALSALL,30/09/2017,CHILDRENS SERVICES,BT BILL PAYMENT 2,07/07/2017,H59620170708XBCXNJBHF-1,106.92,ADMINISTRATIVE SUPPLIES-COST OF RENTAL-TELEPHONES,TELECOMMUNICATION EQUIPMENT & SALES,GPC
WALSALL COUNCIL,HTTP://OPENDATACOMMUNITIES.ORG/ID/METROPOLITAN-DISTRICT-COUNCIL/WALSALL,30/09/2017,CHILDRENS SERVICES,AMAZON UK RETAIL,07/07/2017,H59620170708XGLBPNLGL-1,107.43,BUSINESS STUDIES-PUBLICATIONS/REFERENCE BOOKS-S,OTHER DIRECT MARKETING-OTHER DIRECT MARKETERS,GPC
WALSALL COUNCIL,HTTP://OPENDATACOMMUNITIES.ORG/ID/METROPOLITAN-DISTRICT-COUNCIL/WALSALL,30/09/2017,CHILDRENS SERVICES,BANNER GROUP LTD,07/07/2017,H59620170708XNUVUODNH-1,102.53,BIRCHILLS CHILDCARE SERVICES-CLEANING MATERIALS,"OFFICE, SCHOOL SUPPLY, AND STATIONERY STORES",GPC
WALSALL COUNCIL,HTTP://OPENDATACOMMUNITIES.ORG/ID/METROPOLITAN-DISTRICT-COUNCIL/WALSALL,30/09/2017,CHILDRENS SERVICES,PREMIER INN 44537170,07/07/2017,H59620170708XTEFRHQFW-1,81.00,LOOKED AFTER CHILDRENS SOCIAL -HOTEL ACCOMMODATION-EMPLOYEES,PREMIER INN,GPC
WALSALL COUNCIL,HTTP://OPENDATACOMMUNITIES.ORG/ID/METROPOLITAN-DISTRICT-COUNCIL/WALSALL,30/09/2017,CHANGE & GOVERNANCE,SPORTSDIRECT 153,07/07/2017,H59620170708XURCVWYFK-1,50.00,WALSALL CRISIS SUPPORT SCHEME-CRISIS SUPPORT PAYMENTS,SPORTING GOODS STORES,GPC
WALSALL COUNCIL,HTTP://OPENDATACOMMUNITIES.ORG/ID/METROPOLITAN-DISTRICT-COUNCIL/WALSALL,30/09/2017,CHANGE & GOVERNANCE,"BOOTS,WALSALL",07/07/2017,H59620170708YBGMXKYWY-1,35.00,WALSALL CRISIS SUPPORT SCHEME-CRISIS SUPPORT PAYMENTS,"DRUG STORES, PHARMACIES",GPC
WALSALL COUNCIL,HTTP://OPENDATACOMMUNITIES.ORG/ID/METROPOLITAN-DISTRICT-COUNCIL/WALSALL,30/09/2017,CHANGE & GOVERNANCE,ARTHUR BRETT CATER,07/07/2017,H59620170708YIBBYOVTM-1,21.47,CA CASTLEFORT JMI SCHOOL-FRUIT & VEGETABLES OTHER-PROVI,MISCELLANEOUS FOOD STORES & CONVENIENCE STORES,GPC
WALSALL COUNCIL,HTTP://OPENDATACOMMUNITIES.ORG/ID/METROPOLITAN-DISTRICT-COUNCIL/WALSALL,30/09/2017,ECONOMY & ENVIRONMENT,WICKES BUILDING,07/07/2017,H59620170708ZBISFBQUJ-1,329.84,"ARBORETUM HLF-REPAIRS,ALTERATIONS & MAINTENA",LUMBER & BUILDING MATERIALS STORES,GPC
WALSALL COUNCIL,HTTP://OPENDATACOMMUNITIES.ORG/ID/METROPOLITAN-DISTRICT-COUNCIL/WALSALL,30/09/2017,CHANGE & GOVERNANCE,JOHAL DAIRIES LTD,10/07/2017,H59620170711ABEKQFTOD-1,7.10,CA OLD HALL SPECIAL SCHOOL-MISC DAIRY PRODUCTS-PROVISIONS,OTHER NONDURABLE GOODS,GPC
WALSALL COUNCIL,HTTP://OPENDATACOMMUNITIES.ORG/ID/METROPOLITAN-DISTRICT-COUNCIL/WALSALL,30/09/2017,CHANGE & GOVERNANCE,JOHAL DAIRIES LTD,10/07/2017,H59620170711AFKEQUKEX-1,-3.44,CA COOPER JORDAN CE PRIMARY SC-MISC DAIRY PRODUCTS-PROVISIONS,OTHER NONDURABLE GOODS,GPC
WALSALL COUNCIL,HTTP://OPENDATACOMMUNITIES.ORG/ID/METROPOLITAN-DISTRICT-COUNCIL/WALSALL,30/09/2017,ECONOMY & ENVIRONMENT,WWW.OKOKI.CO.UK,10/07/2017,H59620170711AJGNFPYIP-1,36.00,PRIVATE HIRE VEHICLES / HACKNE-EXTERNAL PRINTING SERVICES,MISCELLANEOUS PUBLISHING AND PRINTING,GPC
WALSALL COUNCIL,HTTP://OPENDATACOMMUNITIES.ORG/ID/METROPOLITAN-DISTRICT-COUNCIL/WALSALL,30/09/2017,CHILDRENS SERVICES,LIDL UK,10/07/2017,H59620170711APRNWKBSL-1,45.74,SPINDLETREE-FOOD AND BEVERAGES-PROVISIONS,GROCERY STORES AND SUPERMARKETS,GPC
WALSALL COUNCIL,HTTP://OPENDATACOMMUNITIES.ORG/ID/METROPOLITAN-DISTRICT-COUNCIL/WALSALL,30/09/2017,CHILDRENS SERVICES,LIDL UK,10/07/2017,H59620170711APRNWKBSL-2,6.06,SPINDLETREE-FOOD AND BEVERAGES-PROVISIONS,GROCERY STORES AND SUPERMARKETS,GPC
WALSALL COUNCIL,HTTP://OPENDATACOMMUNITIES.ORG/ID/METROPOLITAN-DISTRICT-COUNCIL/WALSALL,30/09/2017,CHANGE & GOVERNANCE,JOHAL DAIRIES LTD,10/07/2017,H59620170711BCMYDPGYJ-1,52.41,TOWN HALL RESTAURANT BISTRO-MISC DAIRY PRODUCTS-PROVISIONS,OTHER NONDURABLE GOODS,GPC
WALSALL COUNCIL,HTTP://OPENDATACOMMUNITIES.ORG/ID/METROPOLITAN-DISTRICT-COUNCIL/WALSALL,30/09/2017,CHILDRENS SERVICES,ARGOS RETAIL GROUP,10/07/2017,H59620170711BJGBWKGAS-1,99.99,SAFEGUARDING & FAMILY SUPPORT-SECTION 1/17CHILD CARE ACT 198,DISCOUNT STORES,GPC
WALSALL COUNCIL,HTTP://OPENDATACOMMUNITIES.ORG/ID/METROPOLITAN-DISTRICT-COUNCIL/WALSALL,30/09/2017,CHANGE & GOVERNANCE,JOHAL DAIRIES LTD,10/07/2017,H59620170711BLGDMTKGC-1,6.12,CA ELMWOOD SPECIAL SCHOOL-MISC DAIRY PRODUCTS-PROVISIONS,OTHER NONDURABLE GOODS,GPC
WALSALL COUNCIL,HTTP://OPENDATACOMMUNITIES.ORG/ID/METROPOLITAN-DISTRICT-COUNCIL/WALSALL,30/09/2017,CHILDRENS SERVICES,PEARSON ED LTD,10/07/2017,H59620170711BMRHCFTXT-1,64.00,LITERACY ORACY & LANGUAGE-GENERAL MATERIALS,OTHER SCHOOLS AND EDUCATIONAL SERVICES,GPC
WALSALL COUNCIL,HTTP://OPENDATACOMMUNITIES.ORG/ID/METROPOLITAN-DISTRICT-COUNCIL/WALSALL,30/09/2017,CHILDRENS SERVICES,REGISTRATION SERVICES,10/07/2017,H59620170711BQKISGYXC-1,10.00,LOOKED AFTER CHILDRENS SOCIAL -MISC FEES AND EXPENSES,OTHER RECREATION SERVICES,GPC
WALSALL COUNCIL,HTTP://OPENDATACOMMUNITIES.ORG/ID/METROPOLITAN-DISTRICT-COUNCIL/WALSALL,30/09/2017,CHILDRENS SERVICES,TESCO STORES 6161,10/07/2017,H59620170711BUIGOJIBV-1,96.00,FAMILY PLACEMENTS-FOOD AND BEVERAGES-PROVISIONS,GROCERY STORES AND SUPERMARKETS,GPC
WALSALL COUNCIL,HTTP://OPENDATACOMMUNITIES.ORG/ID/METROPOLITAN-DISTRICT-COUNCIL/WALSALL,30/09/2017,CHANGE & GOVERNANCE,JOHAL DAIRIES LTD,10/07/2017,H59620170711BYOHQENOU-1,21.59,CA LEIGHSWOOD PRIMARY SCHOOL-MISC DAIRY PRODUCTS-PROVISIONS,OTHER NONDURABLE GOODS,GPC
WALSALL COUNCIL,HTTP://OPENDATACOMMUNITIES.ORG/ID/METROPOLITAN-DISTRICT-COUNCIL/WALSALL,30/09/2017,ECONOMY & ENVIRONMENT,TRAINLINE,10/07/2017,H59620170711CAYKFMGAZ-1,94.04,NEW ART GALLERY - ADMIN-OFFICER/STAFF-PUBLIC TRANSPORT,PASSENGER RAILWAYS,GPC
WALSALL COUNCIL,HTTP://OPENDATACOMMUNITIES.ORG/ID/METROPOLITAN-DISTRICT-COUNCIL/WALSALL,30/09/2017,ECONOMY & ENVIRONMENT,AMAZON UK MARKETPLACE,10/07/2017,H59620170711CCIHQELGT-1,16.41,"ARBORETUM HLF-REPAIRS,ALTERATIONS & MAINTENA",MISCELLANEOUS AND SPECIALTY RETAIL STORES,GPC
WALSALL COUNCIL,HTTP://OPENDATACOMMUNITIES.ORG/ID/METROPOLITAN-DISTRICT-COUNCIL/WALSALL,30/09/2017,SOCIAL CARE & INCLUSION,JOHAL DAIRIES LTD,10/07/2017,H59620170711CSNWGQYCK-1,28.55,FALLINGS HEATH-FOOD AND BEVERAGES-PROVISIONS,OTHER NONDURABLE GOODS,GPC
WALSALL COUNCIL,HTTP://OPENDATACOMMUNITIES.ORG/ID/METROPOLITAN-DISTRICT-COUNCIL/WALSALL,30/09/2017,CHANGE & GOVERNANCE,JOHAL DAIRIES LTD,10/07/2017,H59620170711CYYGCOBLP-1,10.01,CA BEACON PRIMARY SCHOOL-MISC DAIRY PRODUCTS-PROVISIONS,OTHER NONDURABLE GOODS,GPC
WALSALL COUNCIL,HTTP://OPENDATACOMMUNITIES.ORG/ID/METROPOLITAN-DISTRICT-COUNCIL/WALSALL,30/09/2017,CHANGE & GOVERNANCE,ARTHUR BRETT CATER,10/07/2017,H59620170711DBOUGUFIN-1,29.25,CA BEACON PRIMARY SCHOOL-FOOD AND BEVERAGES-PROVISIONS,MISCELLANEOUS FOOD STORES & CONVENIENCE STORES,GPC
WALSALL COUNCIL,HTTP://OPENDATACOMMUNITIES.ORG/ID/METROPOLITAN-DISTRICT-COUNCIL/WALSALL,30/09/2017,CHANGE & GOVERNANCE,JOHAL DAIRIES LTD,10/07/2017,H59620170711DKDQMLJUO-1,34.40,CA COOPER JORDAN CE PRIMARY SC-MISC DAIRY PRODUCTS-PROVISIONS,OTHER NONDURABLE GOODS,GPC
WALSALL COUNCIL,HTTP://OPENDATACOMMUNITIES.ORG/ID/METROPOLITAN-DISTRICT-COUNCIL/WALSALL,30/09/2017,SOCIAL CARE & INCLUSION,JOHAL DAIRIES LTD,10/07/2017,H59620170711DMVESFMRE-1,87.79,REABLEMENT TEAM - HOLLY BANK-DAIRY PRODUCTS-PROVISIONS,OTHER NONDURABLE GOODS,GPC
WALSALL COUNCIL,HTTP://OPENDATACOMMUNITIES.ORG/ID/METROPOLITAN-DISTRICT-COUNCIL/WALSALL,30/09/2017,CHANGE & GOVERNANCE,JOHAL DAIRIES LTD,10/07/2017,H59620170711DSCFJMSCR-1,2.84,CA BIRCHILLS CE PRIMARY COMMUN-MISC DAIRY PRODUCTS-PROVISIONS,OTHER NONDURABLE GOODS,GPC
WALSALL COUNCIL,HTTP://OPENDATACOMMUNITIES.ORG/ID/METROPOLITAN-DISTRICT-COUNCIL/WALSALL,30/09/2017,CHANGE & GOVERNANCE,JOHAL DAIRIES LTD,10/07/2017,H59620170711DSCFJMSCR-2,139.97,CA BIRCHILLS CE PRIMARY COMMUN-MISC DAIRY PRODUCTS-PROVISIONS,OTHER NONDURABLE GOODS,GPC
WALSALL COUNCIL,HTTP://OPENDATACOMMUNITIES.ORG/ID/METROPOLITAN-DISTRICT-COUNCIL/WALSALL,30/09/2017,CHANGE & GOVERNANCE,TESCO STORES 5503,10/07/2017,H59620170711EFMDFIPCX-1,7.10,YOUNG PERSONS HOMELESS SERVICE-GENERAL PROVISIONS-PROVISIONS,GROCERY STORES AND SUPERMARKETS,GPC
WALSALL COUNCIL,HTTP://OPENDATACOMMUNITIES.ORG/ID/METROPOLITAN-DISTRICT-COUNCIL/WALSALL,30/09/2017,CHANGE & GOVERNANCE,ARTHUR BRETT CATER,10/07/2017,H59620170711EJPTKPKGV-1,62.11,CA LEIGHSWOOD PRIMARY SCHOOL-FRUIT & VEGETABLES OTHER-PROVI,MISCELLANEOUS FOOD STORES & CONVENIENCE STORES,GPC
WALSALL COUNCIL,HTTP://OPENDATACOMMUNITIES.ORG/ID/METROPOLITAN-DISTRICT-COUNCIL/WALSALL,30/09/2017,SOCIAL CARE & INCLUSION,ASDA HOME SHOPPING,10/07/2017,H59620170711EKGUOKROG-1,-0.29,FALLINGS HEATH-FOOD AND BEVERAGES-PROVISIONS,GROCERY STORES AND SUPERMARKETS,GPC
WALSALL COUNCIL,HTTP://OPENDATACOMMUNITIES.ORG/ID/METROPOLITAN-DISTRICT-COUNCIL/WALSALL,30/09/2017,CHANGE & GOVERNANCE,JOHAL DAIRIES LTD,10/07/2017,H59620170711ERCOYIKID-1,32.02,CA ELMORE GREEN PRIMARY SCHOOL-MISC DAIRY PRODUCTS-PROVISIONS,OTHER NONDURABLE GOODS,GPC
WALSALL COUNCIL,HTTP://OPENDATACOMMUNITIES.ORG/ID/METROPOLITAN-DISTRICT-COUNCIL/WALSALL,30/09/2017,CHANGE & GOVERNANCE,JOHAL DAIRIES LTD,10/07/2017,H59620170711EXKCLPFVQ-1,-7.74,CA COOPER JORDAN CE PRIMARY SC-MISC DAIRY PRODUCTS-PROVISIONS,OTHER NONDURABLE GOODS,GPC
WALSALL COUNCIL,HTTP://OPENDATACOMMUNITIES.ORG/ID/METROPOLITAN-DISTRICT-COUNCIL/WALSALL,30/09/2017,CHILDRENS SERVICES,TESCO STORES 6161,10/07/2017,H59620170711FJIKTQWMO-1,6.00,SPINDLETREE-FOOD AND BEVERAGES-PROVISIONS,GROCERY STORES AND SUPERMARKETS,GPC
WALSALL COUNCIL,HTTP://OPENDATACOMMUNITIES.ORG/ID/METROPOLITAN-DISTRICT-COUNCIL/WALSALL,30/09/2017,CHILDRENS SERVICES,TESCO STORES 6161,10/07/2017,H59620170711FJIKTQWMO-2,4.00,SPINDLETREE-FOOD AND BEVERAGES-PROVISIONS,GROCERY STORES AND SUPERMARKETS,GPC
WALSALL COUNCIL,HTTP://OPENDATACOMMUNITIES.ORG/ID/METROPOLITAN-DISTRICT-COUNCIL/WALSALL,30/09/2017,CHANGE & GOVERNANCE,CO-OPERATIVE FOOD,10/07/2017,H59620170711FJLCKVJIY-1,5.00,ACCOMMODATION SERVICES MANAGEM-FOOD AND BEVERAGES-PROVISIONS,GROCERY STORES AND SUPERMARKETS,GPC
WALSALL COUNCIL,HTTP://OPENDATACOMMUNITIES.ORG/ID/METROPOLITAN-DISTRICT-COUNCIL/WALSALL,30/09/2017,CHANGE & GOVERNANCE,JOHAL DAIRIES LTD,10/07/2017,H59620170711FPXGFWRJK-1,31.22,CA LINDENS PRIMARY SCHOOL-MISC DAIRY PRODUCTS-PROVISIONS,OTHER NONDURABLE GOODS,GPC
WALSALL COUNCIL,HTTP://OPENDATACOMMUNITIES.ORG/ID/METROPOLITAN-DISTRICT-COUNCIL/WALSALL,30/09/2017,ECONOMY & ENVIRONMENT,TESCO STORES 6161,10/07/2017,H59620170711FVTYYFQXE-1,10.00,YEI ESF FUNDING-MISCELLANEOUS SUPPLIES,GROCERY STORES AND SUPERMARKETS,GPC
WALSALL COUNCIL,HTTP://OPENDATACOMMUNITIES.ORG/ID/METROPOLITAN-DISTRICT-COUNCIL/WALSALL,30/09/2017,ECONOMY & ENVIRONMENT,TESCO STORES 6161,10/07/2017,H59620170711FVTYYFQXE-2,10.00,YEI (IMPACT) PROGRAMME-MISCELLANEOUS SUPPLIES,GROCERY STORES AND SUPERMARKETS,GPC
WALSALL COUNCIL,HTTP://OPENDATACOMMUNITIES.ORG/ID/METROPOLITAN-DISTRICT-COUNCIL/WALSALL,30/09/2017,CHANGE & GOVERNANCE,JOHAL DAIRIES LTD,10/07/2017,H59620170711GBAJRDQTI-1,37.54,CA ST GILES C.E. PRIMARY SCHOO-MISC DAIRY PRODUCTS-PROVISIONS,OTHER NONDURABLE GOODS,GPC
WALSALL COUNCIL,HTTP://OPENDATACOMMUNITIES.ORG/ID/METROPOLITAN-DISTRICT-COUNCIL/WALSALL,30/09/2017,CHANGE & GOVERNANCE,ALLPAY LTD,10/07/2017,H59620170711GFROLBLMW-1,83.08,ADVICE & GUIDANCE SERVICE-MISC FEES AND EXPENSES,"ORGANIZATIONS, CHARITABLE AND SOCIAL SERVICE",GPC
WALSALL COUNCIL,HTTP://OPENDATACOMMUNITIES.ORG/ID/METROPOLITAN-DISTRICT-COUNCIL/WALSALL,30/09/2017,ECONOMY & ENVIRONMENT,TESCO STORES 6161,10/07/2017,H59620170711GJEWRVSQD-1,12.00,YEI ESF FUNDING-MISCELLANEOUS SUPPLIES,GROCERY STORES AND SUPERMARKETS,GPC
WALSALL COUNCIL,HTTP://OPENDATACOMMUNITIES.ORG/ID/METROPOLITAN-DISTRICT-COUNCIL/WALSALL,30/09/2017,ECONOMY & ENVIRONMENT,TESCO STORES 6161,10/07/2017,H59620170711GJEWRVSQD-2,12.00,YEI (IMPACT) PROGRAMME-MISCELLANEOUS SUPPLIES,GROCERY STORES AND SUPERMARKETS,GPC
WALSALL COUNCIL,HTTP://OPENDATACOMMUNITIES.ORG/ID/METROPOLITAN-DISTRICT-COUNCIL/WALSALL,30/09/2017,CHANGE & GOVERNANCE,TRAVEL WEST MIDLAN,10/07/2017,H59620170711GLVGTMOIE-1,4.60,ACCOMMODATION SERVICES MANAGEM-OFFICER/STAFF-PUBLIC TRANSPORT,BUS LINES,GPC
WALSALL COUNCIL,HTTP://OPENDATACOMMUNITIES.ORG/ID/METROPOLITAN-DISTRICT-COUNCIL/WALSALL,30/09/2017,CHILDRENS SERVICES,HOME BARGAINS,10/07/2017,H59620170711GPTMYJJXE-1,5.16,NORTH LOCALITY - SCHOOL READY-EVENTS,HARDWARE STORES,GPC
WALSALL COUNCIL,HTTP://OPENDATACOMMUNITIES.ORG/ID/METROPOLITAN-DISTRICT-COUNCIL/WALSALL,30/09/2017,CHILDRENS SERVICES,HOME BARGAINS,10/07/2017,H59620170711GPTMYJJXE-2,25.81,NORTH LOCALITY - SCHOOL READY-EVENTS,HARDWARE STORES,GPC
WALSALL COUNCIL,HTTP://OPENDATACOMMUNITIES.ORG/ID/METROPOLITAN-DISTRICT-COUNCIL/WALSALL,30/09/2017,ECONOMY & ENVIRONMENT,UK SEPSIS TRUST,10/07/2017,H59620170711GSNBIPMBX-1,13.00,HEALTH PROTECTION-PAYMENT TO CONTRACTOR,"ORGANIZATIONS, CHARITABLE AND SOCIAL SERVICE",GPC
WALSALL COUNCIL,HTTP://OPENDATACOMMUNITIES.ORG/ID/METROPOLITAN-DISTRICT-COUNCIL/WALSALL,30/09/2017,CHANGE & GOVERNANCE,JOHAL DAIRIES LTD,10/07/2017,H59620170711GVDXOSTFR-1,57.65,CA BARCROFT D/C-MISC DAIRY PRODUCTS-PROVISIONS,OTHER NONDURABLE GOODS,GPC
WALSALL COUNCIL,HTTP://OPENDATACOMMUNITIES.ORG/ID/METROPOLITAN-DISTRICT-COUNCIL/WALSALL,30/09/2017,ECONOMY & ENVIRONMENT,SHOE ZONE LTD,10/07/2017,H59620170711GZUBEKSHX-1,9.99,YEI ESF FUNDING-MISCELLANEOUS SUPPLIES,SHOE STORES,GPC
WALSALL COUNCIL,HTTP://OPENDATACOMMUNITIES.ORG/ID/METROPOLITAN-DISTRICT-COUNCIL/WALSALL,30/09/2017,ECONOMY & ENVIRONMENT,SHOE ZONE LTD,10/07/2017,H59620170711GZUBEKSHX-2,10.00,YEI (IMPACT) PROGRAMME-MISCELLANEOUS SUPPLIES,SHOE STORES,GPC
WALSALL COUNCIL,HTTP://OPENDATACOMMUNITIES.ORG/ID/METROPOLITAN-DISTRICT-COUNCIL/WALSALL,30/09/2017,ECONOMY & ENVIRONMENT,DVLA DRIVER ONLINE,10/07/2017,H59620170711HBFHZFVPU-1,17.00,YEI ESF FUNDING-MISCELLANEOUS SUPPLIES,GOVERNMENT SERVICES,GPC
WALSALL COUNCIL,HTTP://OPENDATACOMMUNITIES.ORG/ID/METROPOLITAN-DISTRICT-COUNCIL/WALSALL,30/09/2017,ECONOMY & ENVIRONMENT,DVLA DRIVER ONLINE,10/07/2017,H59620170711HBFHZFVPU-2,17.00,YEI (IMPACT) PROGRAMME-MISCELLANEOUS SUPPLIES,GOVERNMENT SERVICES,GPC
WALSALL COUNCIL,HTTP://OPENDATACOMMUNITIES.ORG/ID/METROPOLITAN-DISTRICT-COUNCIL/WALSALL,30/09/2017,CHANGE & GOVERNANCE,JOHAL DAIRIES LTD,10/07/2017,H59620170711HDTEIGQTH-1,86.00,CA RADLEYS PRIMARY SCHOOL-MISC DAIRY PRODUCTS-PROVISIONS,OTHER NONDURABLE GOODS,GPC
WALSALL COUNCIL,HTTP://OPENDATACOMMUNITIES.ORG/ID/METROPOLITAN-DISTRICT-COUNCIL/WALSALL,30/09/2017,CHANGE & GOVERNANCE,JOHAL DAIRIES LTD,10/07/2017,H59620170711HINGEVQZB-1,46.86,CA ST MICHAELS C.E. PRIMARY SC-MISC DAIRY PRODUCTS-PROVISIONS,OTHER NONDURABLE GOODS,GPC
WALSALL COUNCIL,HTTP://OPENDATACOMMUNITIES.ORG/ID/METROPOLITAN-DISTRICT-COUNCIL/WALSALL,30/09/2017,CHANGE & GOVERNANCE,O2 PREPAY TOP-UP,10/07/2017,H59620170711HLGNFEVZH-1,20.00,WELFARE RIGHTS-COSTS (NOT INTERNAL RECHARGES),TELECOMMUNICATION SERVICES,GPC
WALSALL COUNCIL,HTTP://OPENDATACOMMUNITIES.ORG/ID/METROPOLITAN-DISTRICT-COUNCIL/WALSALL,30/09/2017,CHILDRENS SERVICES,AMAZON UK MARKETPLACE,10/07/2017,H59620170711HSCKNFQQV-1,6.99,ELMWOOD SCHOOL-LIBRARY BOOKS,BOOK STORES,GPC
WALSALL COUNCIL,HTTP://OPENDATACOMMUNITIES.ORG/ID/METROPOLITAN-DISTRICT-COUNCIL/WALSALL,30/09/2017,CHANGE & GOVERNANCE,JOHAL DAIRIES LTD,10/07/2017,H59620170711IDYBFNSFB-1,8.60,CA ST FRANCIS CATHOLIC PRIMARY-MISC DAIRY PRODUCTS-PROVISIONS,OTHER NONDURABLE GOODS,GPC
WALSALL COUNCIL,HTTP://OPENDATACOMMUNITIES.ORG/ID/METROPOLITAN-DISTRICT-COUNCIL/WALSALL,30/09/2017,CHILDRENS SERVICES,LONDON MIDLAND TIC,10/07/2017,H59620170711IGFXGCXMU-1,369.80,SAFEGUARDING & FAMILY SUPPORT-OFFICER/STAFF-PUBLIC TRANSPORT,PASSENGER RAILWAYS,GPC
WALSALL COUNCIL,HTTP://OPENDATACOMMUNITIES.ORG/ID/METROPOLITAN-DISTRICT-COUNCIL/WALSALL,30/09/2017,CHILDRENS SERVICES,JOHAL DAIRIES LTD,10/07/2017,H59620170711IQVYUNMSZ-1,10.29,57 LICHFIELD ROAD-FOOD AND BEVERAGES-PROVISIONS,OTHER NONDURABLE GOODS,GPC
WALSALL COUNCIL,HTTP://OPENDATACOMMUNITIES.ORG/ID/METROPOLITAN-DISTRICT-COUNCIL/WALSALL,30/09/2017,CHILDRENS SERVICES,"AMAZON SVCS EUROPE,SAR",10/07/2017,H59620170711ISFMTUJXF-1,62.16,PSYCHOLOGY-LIBRARY BOOKS,BOOK STORES,GPC
WALSALL COUNCIL,HTTP://OPENDATACOMMUNITIES.ORG/ID/METROPOLITAN-DISTRICT-COUNCIL/WALSALL,30/09/2017,CHILDRENS SERVICES,W M MORRISON PLC,10/07/2017,H59620170711IVKLNYJSJ-1,17.30,"43A HILTON ROAD, WILLENHALL-FOOD AND BEVERAGES-PROVISIONS",GROCERY STORES AND SUPERMARKETS,GPC
WALSALL COUNCIL,HTTP://OPENDATACOMMUNITIES.ORG/ID/METROPOLITAN-DISTRICT-COUNCIL/WALSALL,30/09/2017,CHILDRENS SERVICES,W M MORRISON PLC,10/07/2017,H59620170711IVKLNYJSJ-2,48.99,"43A HILTON ROAD, WILLENHALL-FOOD AND BEVERAGES-PROVISIONS",GROCERY STORES AND SUPERMARKETS,GPC
WALSALL COUNCIL,HTTP://OPENDATACOMMUNITIES.ORG/ID/METROPOLITAN-DISTRICT-COUNCIL/WALSALL,30/09/2017,CHILDRENS SERVICES,TESCO STORES 6161,10/07/2017,H59620170711JGTDOBVNY-1,0.15,57 LICHFIELD ROAD-FOOD AND BEVERAGES-PROVISIONS,GROCERY STORES AND SUPERMARKETS,GPC
WALSALL COUNCIL,HTTP://OPENDATACOMMUNITIES.ORG/ID/METROPOLITAN-DISTRICT-COUNCIL/WALSALL,30/09/2017,CHILDRENS SERVICES,TESCO STORES 6161,10/07/2017,H59620170711JGTDOBVNY-2,23.02,57 LICHFIELD ROAD-FOOD AND BEVERAGES-PROVISIONS,GROCERY STORES AND SUPERMARKETS,GPC
WALSALL COUNCIL,HTTP://OPENDATACOMMUNITIES.ORG/ID/METROPOLITAN-DISTRICT-COUNCIL/WALSALL,30/09/2017,CHANGE & GOVERNANCE,LAG EDCTION SVC,10/07/2017,H59620170711JMRNNCPQP-1,150.00,ACCOMMODATION SERVICES MANAGEM-EXTERNAL TRAINING,"ORGANIZATIONS, CHARITABLE AND SOCIAL SERVICE",GPC
WALSALL COUNCIL,HTTP://OPENDATACOMMUNITIES.ORG/ID/METROPOLITAN-DISTRICT-COUNCIL/WALSALL,30/09/2017,ECONOMY & ENVIRONMENT,AMAZON.CO.UK,10/07/2017,H59620170711JOEKUMGUS-1,7.48,YEI ESF FUNDING-MISCELLANEOUS SUPPLIES,MISCELLANEOUS AND SPECIALTY RETAIL STORES,GPC
WALSALL COUNCIL,HTTP://OPENDATACOMMUNITIES.ORG/ID/METROPOLITAN-DISTRICT-COUNCIL/WALSALL,30/09/2017,ECONOMY & ENVIRONMENT,AMAZON.CO.UK,10/07/2017,H59620170711JOEKUMGUS-2,7.47,YEI (IMPACT) PROGRAMME-MISCELLANEOUS SUPPLIES,MISCELLANEOUS AND SPECIALTY RETAIL STORES,GPC
WALSALL COUNCIL,HTTP://OPENDATACOMMUNITIES.ORG/ID/METROPOLITAN-DISTRICT-COUNCIL/WALSALL,30/09/2017,CHILDRENS SERVICES,ARGOS DIRECT,10/07/2017,H59620170711JQQDCHQYP-1,-99.99,SAFEGUARDING & FAMILY SUPPORT-SECTION 1/17CHILD CARE ACT 198,DIRECT MARKETING CATALOG MERCHANTS,GPC
WALSALL COUNCIL,HTTP://OPENDATACOMMUNITIES.ORG/ID/METROPOLITAN-DISTRICT-COUNCIL/WALSALL,30/09/2017,CHILDRENS SERVICES,JOHAL DAIRIES LTD,10/07/2017,H59620170711JVXXUGERC-1,5.70,STROUD FAMILY CENTRE-MISC DAIRY PRODUCTS-PROVISIONS,OTHER NONDURABLE GOODS,GPC
WALSALL COUNCIL,HTTP://OPENDATACOMMUNITIES.ORG/ID/METROPOLITAN-DISTRICT-COUNCIL/WALSALL,30/09/2017,CHILDRENS SERVICES,AMAZON UK MARKETPLACE,10/07/2017,H59620170711JWQCIHFEF-1,4.73,LITERACY ORACY & LANGUAGE-GENERAL MATERIALS,MISCELLANEOUS AND SPECIALTY RETAIL STORES,GPC
WALSALL COUNCIL,HTTP://OPENDATACOMMUNITIES.ORG/ID/METROPOLITAN-DISTRICT-COUNCIL/WALSALL,30/09/2017,CHANGE & GOVERNANCE,JOHAL DAIRIES LTD,10/07/2017,H59620170711JXDJUSLQO-1,33.10,CA CASTLEFORT JMI SCHOOL-MISC DAIRY PRODUCTS-PROVISIONS,OTHER NONDURABLE GOODS,GPC
WALSALL COUNCIL,HTTP://OPENDATACOMMUNITIES.ORG/ID/METROPOLITAN-DISTRICT-COUNCIL/WALSALL,30/09/2017,ECONOMY & ENVIRONMENT,GTM PLASTICS,10/07/2017,H59620170711JXEQFQWLQ-1,44.48,YEI (IMPACT) PROGRAMME-PROFESSIONAL FEES AND SERVICES,MISCELLANEOUS AND SPECIALTY RETAIL STORES,GPC
WALSALL COUNCIL,HTTP://OPENDATACOMMUNITIES.ORG/ID/METROPOLITAN-DISTRICT-COUNCIL/WALSALL,30/09/2017,ECONOMY & ENVIRONMENT,GTM PLASTICS,10/07/2017,H59620170711JXEQFQWLQ-2,44.48,YEI ESF FUNDING-PROFESSIONAL FEES AND SERVICES,MISCELLANEOUS AND SPECIALTY RETAIL STORES,GPC
WALSALL COUNCIL,HTTP://OPENDATACOMMUNITIES.ORG/ID/METROPOLITAN-DISTRICT-COUNCIL/WALSALL,30/09/2017,CHILDRENS SERVICES,POUNDWORLD RETAIL,10/07/2017,H59620170711JYDPMJDVZ-1,1.68,NORTH LOCALITY - SCHOOL READY-EVENTS,DISCOUNT STORES,GPC
WALSALL COUNCIL,HTTP://OPENDATACOMMUNITIES.ORG/ID/METROPOLITAN-DISTRICT-COUNCIL/WALSALL,30/09/2017,CHILDRENS SERVICES,POUNDWORLD RETAIL,10/07/2017,H59620170711JYDPMJDVZ-2,8.32,NORTH LOCALITY - SCHOOL READY-EVENTS,DISCOUNT STORES,GPC
WALSALL COUNCIL,HTTP://OPENDATACOMMUNITIES.ORG/ID/METROPOLITAN-DISTRICT-COUNCIL/WALSALL,30/09/2017,CHILDRENS SERVICES,POUNDWORLD RETAIL,10/07/2017,H59620170711JYDPMJDVZ-3,0.05,NORTH LOCALITY - SCHOOL READY-EVENTS,DISCOUNT STORES,GPC
WALSALL COUNCIL,HTTP://OPENDATACOMMUNITIES.ORG/ID/METROPOLITAN-DISTRICT-COUNCIL/WALSALL,30/09/2017,ECONOMY & ENVIRONMENT,POST OFFICE COUNTER,10/07/2017,H59620170711JYIYCRQKH-1,31.20,FOREST ARTS CENTRE-POSTAGES AND COURIER SERVICES,POSTAL SERVICES - GOVERNMENT ONLY,GPC
WALSALL COUNCIL,HTTP://OPENDATACOMMUNITIES.ORG/ID/METROPOLITAN-DISTRICT-COUNCIL/WALSALL,30/09/2017,CHANGE & GOVERNANCE,JOHAL DAIRIES LTD,10/07/2017,H59620170711KILODWWEG-1,7.16,CA POOL HAYES PRIMARY SCHOOL-MISC DAIRY PRODUCTS-PROVISIONS,OTHER NONDURABLE GOODS,GPC
WALSALL COUNCIL,HTTP://OPENDATACOMMUNITIES.ORG/ID/METROPOLITAN-DISTRICT-COUNCIL/WALSALL,30/09/2017,ECONOMY & ENVIRONMENT,MNA LTD CARDCHARGE,10/07/2017,H59620170711KKXSGIVKS-1,70.20,DEVELOPMENT MANAGEMENT-PERIODICALS/MAGAZINES/NEWSPAPE,NEWS DEALERS AND NEWSSTANDS,GPC
WALSALL COUNCIL,HTTP://OPENDATACOMMUNITIES.ORG/ID/METROPOLITAN-DISTRICT-COUNCIL/WALSALL,30/09/2017,CHANGE & GOVERNANCE,JOHAL DAIRIES LTD,10/07/2017,H59620170711KKYHNPBBW-1,12.99,CA BLUE COAT C OF E PERFORMING-MISC DAIRY PRODUCTS-PROVISIONS,OTHER NONDURABLE GOODS,GPC
WALSALL COUNCIL,HTTP://OPENDATACOMMUNITIES.ORG/ID/METROPOLITAN-DISTRICT-COUNCIL/WALSALL,30/09/2017,CHILDRENS SERVICES,ARGOS RETAIL GROUP,10/07/2017,H59620170711KQRQYMTUR-1,135.94,SAFEGUARDING & FAMILY SUPPORT-SECTION 1/17CHILD CARE ACT 198,DISCOUNT STORES,GPC
WALSALL COUNCIL,HTTP://OPENDATACOMMUNITIES.ORG/ID/METROPOLITAN-DISTRICT-COUNCIL/WALSALL,30/09/2017,CHANGE & GOVERNANCE,AMAZON UK MARKETPLACE,10/07/2017,H59620170711LAYIWFMIB-1,101.44,ADVICE & GUIDANCE SERVICE-REFERENCE BOOKS,MISCELLANEOUS AND SPECIALTY RETAIL STORES,GPC
WALSALL COUNCIL,HTTP://OPENDATACOMMUNITIES.ORG/ID/METROPOLITAN-DISTRICT-COUNCIL/WALSALL,30/09/2017,CHILDRENS SERVICES,WWW.ASCATERINGSUPPLIES,10/07/2017,H59620170711LBQBLUTXF-1,115.56,"ST FRANCIS OF ASSISI CATHOLIC -REPAIRS,ALTERATIONS & MAINTENA",OTHER COMMERCIAL EQUIPMENT,GPC
WALSALL COUNCIL,HTTP://OPENDATACOMMUNITIES.ORG/ID/METROPOLITAN-DISTRICT-COUNCIL/WALSALL,30/09/2017,CHANGE & GOVERNANCE,JOHAL DAIRIES LTD,10/07/2017,H59620170711LEKOKXHHC-1,33.76,CA MOORCROFT WOOD-MISC DAIRY PRODUCTS-PROVISIONS,OTHER NONDURABLE GOODS,GPC
WALSALL COUNCIL,HTTP://OPENDATACOMMUNITIES.ORG/ID/METROPOLITAN-DISTRICT-COUNCIL/WALSALL,30/09/2017,ECONOMY & ENVIRONMENT,TRAINLINE,10/07/2017,H59620170711LGXGJZQRX-1,58.65,ERDF-AUTHORITY PARTNERS/TECHNI-OFFICER/STAFF-PUBLIC TRANSPORT,PASSENGER RAILWAYS,GPC
WALSALL COUNCIL,HTTP://OPENDATACOMMUNITIES.ORG/ID/METROPOLITAN-DISTRICT-COUNCIL/WALSALL,30/09/2017,ECONOMY & ENVIRONMENT,AMAZON UK MARKETPLACE,10/07/2017,H59620170711LKIZJIQHV-1,4.69,"ARBORETUM HLF-REPAIRS,ALTERATIONS & MAINTENA",MISCELLANEOUS AND SPECIALTY RETAIL STORES,GPC
WALSALL COUNCIL,HTTP://OPENDATACOMMUNITIES.ORG/ID/METROPOLITAN-DISTRICT-COUNCIL/WALSALL,30/09/2017,CHILDRENS SERVICES,HOBBYCRAFT (INTERNET),10/07/2017,H59620170711LYXCEQSIR-1,44.50,NORTH LOCALITY - SCHOOL READY-EVENTS,"ARTIST SUPPLY STORES, CRAFT SHOPS",GPC
WALSALL COUNCIL,HTTP://OPENDATACOMMUNITIES.ORG/ID/METROPOLITAN-DISTRICT-COUNCIL/WALSALL,30/09/2017,ECONOMY & ENVIRONMENT,HSS HIRE,10/07/2017,H59620170711MADEIERBB-1,71.97,YEI ESF FUNDING-PROFESSIONAL FEES AND SERVICES,EQUIPMENT RENTAL AND LEASING SERVICES,GPC
WALSALL COUNCIL,HTTP://OPENDATACOMMUNITIES.ORG/ID/METROPOLITAN-DISTRICT-COUNCIL/WALSALL,30/09/2017,ECONOMY & ENVIRONMENT,HSS HIRE,10/07/2017,H59620170711MADEIERBB-2,71.98,YEI (IMPACT) PROGRAMME-PROFESSIONAL FEES AND SERVICES,EQUIPMENT RENTAL AND LEASING SERVICES,GPC
WALSALL COUNCIL,HTTP://OPENDATACOMMUNITIES.ORG/ID/METROPOLITAN-DISTRICT-COUNCIL/WALSALL,30/09/2017,ECONOMY & ENVIRONMENT,AMAZON UK MARKETPLACE,10/07/2017,H59620170711MLYMMYFSX-1,8.13,WALSALL MARKET-MISCELLANEOUS SUPPLIES,BOOK STORES,GPC
WALSALL COUNCIL,HTTP://OPENDATACOMMUNITIES.ORG/ID/METROPOLITAN-DISTRICT-COUNCIL/WALSALL,30/09/2017,CHANGE & GOVERNANCE,WWW.SCC.COM,10/07/2017,H59620170711MZYQBBTVI-1,2387.50,RECHARGEABLE EQUIPMENT-COMPUTER EQUIPMENT AND SUPPLIE,"COMPUTERS, COMPUTER PERIPHERAL EQUIPMENT, SOFTWARE",GPC
WALSALL COUNCIL,HTTP://OPENDATACOMMUNITIES.ORG/ID/METROPOLITAN-DISTRICT-COUNCIL/WALSALL,30/09/2017,,AMFBOWLING.CO.UK,10/07/2017,H59620170711NDREPVGST-1,85.88,-,BOWLING ALLEYS,GPC
WALSALL COUNCIL,HTTP://OPENDATACOMMUNITIES.ORG/ID/METROPOLITAN-DISTRICT-COUNCIL/WALSALL,30/09/2017,CHILDRENS SERVICES,POUNDLAND LTD 1427,10/07/2017,H59620170711NNJDFUVGQ-1,5.87,NORTH LOCALITY - SCHOOL READY-EVENTS,DISCOUNT STORES,GPC
WALSALL COUNCIL,HTTP://OPENDATACOMMUNITIES.ORG/ID/METROPOLITAN-DISTRICT-COUNCIL/WALSALL,30/09/2017,CHILDRENS SERVICES,POUNDLAND LTD 1427,10/07/2017,H59620170711NNJDFUVGQ-2,0.25,NORTH LOCALITY - SCHOOL READY-EVENTS,DISCOUNT STORES,GPC
WALSALL COUNCIL,HTTP://OPENDATACOMMUNITIES.ORG/ID/METROPOLITAN-DISTRICT-COUNCIL/WALSALL,30/09/2017,CHILDRENS SERVICES,POUNDLAND LTD 1427,10/07/2017,H59620170711NNJDFUVGQ-3,29.13,NORTH LOCALITY - SCHOOL READY-EVENTS,DISCOUNT STORES,GPC
WALSALL COUNCIL,HTTP://OPENDATACOMMUNITIES.ORG/ID/METROPOLITAN-DISTRICT-COUNCIL/WALSALL,30/09/2017,ECONOMY & ENVIRONMENT,PAYPAL *ELBILBASI1,10/07/2017,H59620170711NPGUYXQCU-1,31.98,NAG - FAMILY GALLERY-NEW-FURNITURE & EQUIPMENT,MISCELLANEOUS AND SPECIALTY RETAIL STORES,GPC
WALSALL COUNCIL,HTTP://OPENDATACOMMUNITIES.ORG/ID/METROPOLITAN-DISTRICT-COUNCIL/WALSALL,30/09/2017,CHILDRENS SERVICES,PEARSON ED LTD,10/07/2017,H59620170711NQJPCTWMQ-1,416.00,PE & EXTENDED PROVISION-GENERAL MATERIALS,OTHER SCHOOLS AND EDUCATIONAL SERVICES,GPC
WALSALL COUNCIL,HTTP://OPENDATACOMMUNITIES.ORG/ID/METROPOLITAN-DISTRICT-COUNCIL/WALSALL,30/09/2017,CHANGE & GOVERNANCE,ARTHUR BRETT CATER,10/07/2017,H59620170711OBDHPMDCQ-1,70.49,CA RUSHALL JMI SCHOOL-FRUIT & VEGETABLES OTHER-PROVI,MISCELLANEOUS FOOD STORES & CONVENIENCE STORES,GPC
WALSALL COUNCIL,HTTP://OPENDATACOMMUNITIES.ORG/ID/METROPOLITAN-DISTRICT-COUNCIL/WALSALL,30/09/2017,CHANGE & GOVERNANCE,JOHAL DAIRIES LTD,10/07/2017,H59620170711OESRIREHJ-1,5.16,CA WALSALL WOOD PRIMARY SCHOOL-MISC DAIRY PRODUCTS-PROVISIONS,OTHER NONDURABLE GOODS,GPC
WALSALL COUNCIL,HTTP://OPENDATACOMMUNITIES.ORG/ID/METROPOLITAN-DISTRICT-COUNCIL/WALSALL,30/09/2017,CHANGE & GOVERNANCE,ARTHUR BRETT CATER,10/07/2017,H59620170711OXWVNFGUE-1,136.42,CA BUSILL JONES PRIMARY SCHOOL-FRUIT & VEGETABLES OTHER-PROVI,MISCELLANEOUS FOOD STORES & CONVENIENCE STORES,GPC
WALSALL COUNCIL,HTTP://OPENDATACOMMUNITIES.ORG/ID/METROPOLITAN-DISTRICT-COUNCIL/WALSALL,30/09/2017,CHANGE & GOVERNANCE,AMAZON UK MARKETPLACE,10/07/2017,H59620170711PALTZXSVT-1,114.28,ADVICE & GUIDANCE SERVICE-REFERENCE BOOKS,BOOK STORES,GPC
WALSALL COUNCIL,HTTP://OPENDATACOMMUNITIES.ORG/ID/METROPOLITAN-DISTRICT-COUNCIL/WALSALL,30/09/2017,ECONOMY & ENVIRONMENT,WWW.HEALTH & FITNESS E,10/07/2017,H59620170711PCSLGSPSL-1,249.37,YEI (IMPACT) PROGRAMME-PROFESSIONAL FEES AND SERVICES,"SCHOOLS, TRADE AND VOCATIONAL",GPC
WALSALL COUNCIL,HTTP://OPENDATACOMMUNITIES.ORG/ID/METROPOLITAN-DISTRICT-COUNCIL/WALSALL,30/09/2017,ECONOMY & ENVIRONMENT,WWW.HEALTH & FITNESS E,10/07/2017,H59620170711PCSLGSPSL-2,249.38,YEI ESF FUNDING-PROFESSIONAL FEES AND SERVICES,"SCHOOLS, TRADE AND VOCATIONAL",GPC
WALSALL COUNCIL,HTTP://OPENDATACOMMUNITIES.ORG/ID/METROPOLITAN-DISTRICT-COUNCIL/WALSALL,30/09/2017,CHANGE & GOVERNANCE,JOHAL DAIRIES LTD,10/07/2017,H59620170711PDDGBVXKV-1,8.40,CA BUSILL JONES PRIMARY SCHOOL-MISC DAIRY PRODUCTS-PROVISIONS,OTHER NONDURABLE GOODS,GPC
WALSALL COUNCIL,HTTP://OPENDATACOMMUNITIES.ORG/ID/METROPOLITAN-DISTRICT-COUNCIL/WALSALL,30/09/2017,CHANGE & GOVERNANCE,JOHAL DAIRIES LTD,10/07/2017,H59620170711PEMUTLEKJ-1,2.73,CA CROFT COMMUNITY PRIMARY SCH-MISC DAIRY PRODUCTS-PROVISIONS,OTHER NONDURABLE GOODS,GPC
WALSALL COUNCIL,HTTP://OPENDATACOMMUNITIES.ORG/ID/METROPOLITAN-DISTRICT-COUNCIL/WALSALL,30/09/2017,CHANGE & GOVERNANCE,JOHAL DAIRIES LTD,10/07/2017,H59620170711PHXKIJNFQ-1,24.26,CA ST BERNADETTES CATHOLIC PRI-MISC DAIRY PRODUCTS-PROVISIONS,OTHER NONDURABLE GOODS,GPC
WALSALL COUNCIL,HTTP://OPENDATACOMMUNITIES.ORG/ID/METROPOLITAN-DISTRICT-COUNCIL/WALSALL,30/09/2017,ECONOMY & ENVIRONMENT,POUNDWORLD RETAIL,10/07/2017,H59620170711PKXPOJYJH-1,5.00,NAG - FAMILY GALLERY-NEW-FURNITURE & EQUIPMENT,DISCOUNT STORES,GPC
WALSALL COUNCIL,HTTP://OPENDATACOMMUNITIES.ORG/ID/METROPOLITAN-DISTRICT-COUNCIL/WALSALL,30/09/2017,ECONOMY & ENVIRONMENT,AMAZON UK MARKETPLACE,10/07/2017,H59620170711PNCVTTYCH-1,78.40,"ARBORETUM HLF-REPAIRS,ALTERATIONS & MAINTENA",BOOK STORES,GPC
WALSALL COUNCIL,HTTP://OPENDATACOMMUNITIES.ORG/ID/METROPOLITAN-DISTRICT-COUNCIL/WALSALL,30/09/2017,ECONOMY & ENVIRONMENT,FINDEL ED LTD,10/07/2017,H59620170711PSEHMMOOR-1,284.95,EXHIBITIONS - SPECIAL PROJECTS-NEW-FURNITURE & EQUIPMENT,OTHER DIRECT MARKETING-OTHER DIRECT MARKETERS,GPC
WALSALL COUNCIL,HTTP://OPENDATACOMMUNITIES.ORG/ID/METROPOLITAN-DISTRICT-COUNCIL/WALSALL,30/09/2017,CHILDRENS SERVICES,GRO HM PASSPORT OFFICE,10/07/2017,H59620170711PTERYKTLG-1,23.40,SAFEGUARDING & FAMILY SUPPORT-REGISTRAR OF BIRTHS/DEATHS/MAR,GOVERNMENT SERVICES,GPC
WALSALL COUNCIL,HTTP://OPENDATACOMMUNITIES.ORG/ID/METROPOLITAN-DISTRICT-COUNCIL/WALSALL,30/09/2017,ECONOMY & ENVIRONMENT,BANNER GROUP LTD,10/07/2017,H59620170711PUSFIFMBC-1,47.97,CENTRALISED STATIONARY-STATIONERY & GENERAL SUPPLIES-,"OFFICE, SCHOOL SUPPLY, AND STATIONERY STORES",GPC
WALSALL COUNCIL,HTTP://OPENDATACOMMUNITIES.ORG/ID/METROPOLITAN-DISTRICT-COUNCIL/WALSALL,30/09/2017,CHANGE & GOVERNANCE,ARTHUR BRETT CATER,10/07/2017,H59620170711PWBEXPXMX-1,42.94,TOWN HALL RESTAURANT BISTRO-FRUIT & VEGETABLES OTHER-PROVI,MISCELLANEOUS FOOD STORES & CONVENIENCE STORES,GPC
WALSALL COUNCIL,HTTP://OPENDATACOMMUNITIES.ORG/ID/METROPOLITAN-DISTRICT-COUNCIL/WALSALL,30/09/2017,CHANGE & GOVERNANCE,TRAVEL WEST MIDLAN,10/07/2017,H59620170711PXHEOXEKU-1,15.00,YOUNG PERSONS HOMELESS SERVICE-OFFICER/STAFF-PUBLIC TRANSPORT,BUS LINES,GPC
WALSALL COUNCIL,HTTP://OPENDATACOMMUNITIES.ORG/ID/METROPOLITAN-DISTRICT-COUNCIL/WALSALL,30/09/2017,CHILDRENS SERVICES,TRAINLINE,10/07/2017,H59620170711PYUHYQOBL-1,57.32,SAFEGUARDING & FAMILY SUPPORT-OFFICER/STAFF-PUBLIC TRANSPORT,PASSENGER RAILWAYS,GPC
WALSALL COUNCIL,HTTP://OPENDATACOMMUNITIES.ORG/ID/METROPOLITAN-DISTRICT-COUNCIL/WALSALL,30/09/2017,CHANGE & GOVERNANCE,TWITTER ONLINE ADS,10/07/2017,H59620170711QDNYXIIRX-1,10.00,SCHOOL HR TRANSACTIONAL TEAM-ADVERTISING STAFF VACANCIES,ADVERTISING SERVICES,GPC
WALSALL COUNCIL,HTTP://OPENDATACOMMUNITIES.ORG/ID/METROPOLITAN-DISTRICT-COUNCIL/WALSALL,30/09/2017,CHANGE & GOVERNANCE,CHICKEN JOES LTD,10/07/2017,H59620170711QGSQGSGTK-1,-4.92,CA LEIGHSWOOD PRIMARY SCHOOL-FROZEN FOODS-PROVISIONS,CATERERS,GPC
WALSALL COUNCIL,HTTP://OPENDATACOMMUNITIES.ORG/ID/METROPOLITAN-DISTRICT-COUNCIL/WALSALL,30/09/2017,CHANGE & GOVERNANCE,W M MORRISON PLC,10/07/2017,H59620170711QMWBPGUPK-1,9.00,CA ABBEY PRIMARY SCHOOL-FRUIT & VEGETABLES OTHER-PROVI,GROCERY STORES AND SUPERMARKETS,GPC
WALSALL COUNCIL,HTTP://OPENDATACOMMUNITIES.ORG/ID/METROPOLITAN-DISTRICT-COUNCIL/WALSALL,30/09/2017,CHANGE & GOVERNANCE,W M MORRISON PLC,10/07/2017,H59620170711QMWBPGUPK-2,22.50,CA BARCROFT D/C-FRUIT & VEGETABLES OTHER-PROVI,GROCERY STORES AND SUPERMARKETS,GPC
WALSALL COUNCIL,HTTP://OPENDATACOMMUNITIES.ORG/ID/METROPOLITAN-DISTRICT-COUNCIL/WALSALL,30/09/2017,CHANGE & GOVERNANCE,W M MORRISON PLC,10/07/2017,H59620170711QMWBPGUPK-3,22.50,CA BEACON PRIMARY SCHOOL-FRUIT & VEGETABLES OTHER-PROVI,GROCERY STORES AND SUPERMARKETS,GPC
WALSALL COUNCIL,HTTP://OPENDATACOMMUNITIES.ORG/ID/METROPOLITAN-DISTRICT-COUNCIL/WALSALL,30/09/2017,CHANGE & GOVERNANCE,W M MORRISON PLC,10/07/2017,H59620170711QMWBPGUPK-4,12.00,CA BIRCHILLS CE PRIMARY COMMUN-FRUIT & VEGETABLES OTHER-PROVI,GROCERY STORES AND SUPERMARKETS,GPC
WALSALL COUNCIL,HTTP://OPENDATACOMMUNITIES.ORG/ID/METROPOLITAN-DISTRICT-COUNCIL/WALSALL,30/09/2017,CHANGE & GOVERNANCE,W M MORRISON PLC,10/07/2017,H59620170711QMWBPGUPK-5,7.50,CA BLOXWICH C.E. JMI PRIMARY S-FRUIT & VEGETABLES OTHER-PROVI,GROCERY STORES AND SUPERMARKETS,GPC
WALSALL COUNCIL,HTTP://OPENDATACOMMUNITIES.ORG/ID/METROPOLITAN-DISTRICT-COUNCIL/WALSALL,30/09/2017,CHANGE & GOVERNANCE,W M MORRISON PLC,10/07/2017,H59620170711QMWBPGUPK-6,15.00,CA CASTLEFORT JMI SCHOOL-FRUIT & VEGETABLES OTHER-PROVI,GROCERY STORES AND SUPERMARKETS,GPC
WALSALL COUNCIL,HTTP://OPENDATACOMMUNITIES.ORG/ID/METROPOLITAN-DISTRICT-COUNCIL/WALSALL,30/09/2017,CHANGE & GOVERNANCE,W M MORRISON PLC,10/07/2017,H59620170711QMWBPGUPK-7,22.50,CA CROFT COMMUNITY PRIMARY SCH-FRUIT & VEGETABLES OTHER-PROVI,GROCERY STORES AND SUPERMARKETS,GPC
WALSALL COUNCIL,HTTP://OPENDATACOMMUNITIES.ORG/ID/METROPOLITAN-DISTRICT-COUNCIL/WALSALL,30/09/2017,CHANGE & GOVERNANCE,W M MORRISON PLC,10/07/2017,H59620170711QMWBPGUPK-8,18.00,CA ELMORE GREEN PRIMARY SCHOOL-FRUIT & VEGETABLES OTHER-PROVI,GROCERY STORES AND SUPERMARKETS,GPC
WALSALL COUNCIL,HTTP://OPENDATACOMMUNITIES.ORG/ID/METROPOLITAN-DISTRICT-COUNCIL/WALSALL,30/09/2017,CHANGE & GOVERNANCE,W M MORRISON PLC,10/07/2017,H59620170711QMWBPGUPK-9,12.00,CA FIBBERSLEY PARK PRIMARY SCH-FRUIT & VEGETABLES OTHER-PROVI,GROCERY STORES AND SUPERMARKETS,GPC
WALSALL COUNCIL,HTTP://OPENDATACOMMUNITIES.ORG/ID/METROPOLITAN-DISTRICT-COUNCIL/WALSALL,30/09/2017,CHANGE & GOVERNANCE,ARTHUR BRETT CATER,10/07/2017,H59620170711RELSPWEYX-1,41.91,CA ST JOHNS C.E. PRIMARY SCHOO-FRUIT & VEGETABLES OTHER-PROVI,MISCELLANEOUS FOOD STORES & CONVENIENCE STORES,GPC
WALSALL COUNCIL,HTTP://OPENDATACOMMUNITIES.ORG/ID/METROPOLITAN-DISTRICT-COUNCIL/WALSALL,30/09/2017,CHANGE & GOVERNANCE,JOHAL DAIRIES LTD,10/07/2017,H59620170711RIXHITTFQ-1,34.76,CA ABBEY PRIMARY SCHOOL-MISC DAIRY PRODUCTS-PROVISIONS,OTHER NONDURABLE GOODS,GPC
WALSALL COUNCIL,HTTP://OPENDATACOMMUNITIES.ORG/ID/METROPOLITAN-DISTRICT-COUNCIL/WALSALL,30/09/2017,CHILDRENS SERVICES,B&M RETAIL LTD,10/07/2017,H59620170711RKEWYNDVE-1,7.38,SPINDLETREE-RESIDENTS PERSONAL EXPENSES-AL,DISCOUNT STORES,GPC
WALSALL COUNCIL,HTTP://OPENDATACOMMUNITIES.ORG/ID/METROPOLITAN-DISTRICT-COUNCIL/WALSALL,30/09/2017,CHANGE & GOVERNANCE,CRAZY HOUSE FURNITURE,10/07/2017,H59620170711RKJRWXCGD-1,190.00,ACCOMMODATION SERVICES MANAGEM-FURNITURE & EQUIPMENT,MISCELLANEOUS HOUSE FURNISHING SPECIALTY SHOPS,GPC
WALSALL COUNCIL,HTTP://OPENDATACOMMUNITIES.ORG/ID/METROPOLITAN-DISTRICT-COUNCIL/WALSALL,30/09/2017,CHANGE & GOVERNANCE,JOHAL DAIRIES LTD,10/07/2017,H59620170711RNDDBULKB-1,16.76,CA TOWN HALL RESTAURANT - CATE-MISC DAIRY PRODUCTS-PROVISIONS,OTHER NONDURABLE GOODS,GPC
WALSALL COUNCIL,HTTP://OPENDATACOMMUNITIES.ORG/ID/METROPOLITAN-DISTRICT-COUNCIL/WALSALL,30/09/2017,CHANGE & GOVERNANCE,JOHAL DAIRIES LTD,10/07/2017,H59620170711RXDJHRUQM-1,2.63,CA LEAMORE PRIMARY SCHOOL-MISC DAIRY PRODUCTS-PROVISIONS,OTHER NONDURABLE GOODS,GPC
WALSALL COUNCIL,HTTP://OPENDATACOMMUNITIES.ORG/ID/METROPOLITAN-DISTRICT-COUNCIL/WALSALL,30/09/2017,ECONOMY & ENVIRONMENT,AMAZON.CO.UK,10/07/2017,H59620170711SCRICTTYJ-1,2.00,YEI ESF FUNDING-MISCELLANEOUS SUPPLIES,MISCELLANEOUS AND SPECIALTY RETAIL STORES,GPC
WALSALL COUNCIL,HTTP://OPENDATACOMMUNITIES.ORG/ID/METROPOLITAN-DISTRICT-COUNCIL/WALSALL,30/09/2017,ECONOMY & ENVIRONMENT,AMAZON.CO.UK,10/07/2017,H59620170711SCRICTTYJ-2,1.99,YEI (IMPACT) PROGRAMME-MISCELLANEOUS SUPPLIES,MISCELLANEOUS AND SPECIALTY RETAIL STORES,GPC
WALSALL COUNCIL,HTTP://OPENDATACOMMUNITIES.ORG/ID/METROPOLITAN-DISTRICT-COUNCIL/WALSALL,30/09/2017,SOCIAL CARE & INCLUSION,ASDA HOME SHOPPING,10/07/2017,H59620170711SMWJOOFHH-1,46.74,FALLINGS HEATH-FOOD AND BEVERAGES-PROVISIONS,GROCERY STORES AND SUPERMARKETS,GPC
WALSALL COUNCIL,HTTP://OPENDATACOMMUNITIES.ORG/ID/METROPOLITAN-DISTRICT-COUNCIL/WALSALL,30/09/2017,SOCIAL CARE & INCLUSION,ASDA HOME SHOPPING,10/07/2017,H59620170711SMWJOOFHH-2,35.31,FALLINGS HEATH-FOOD AND BEVERAGES-PROVISIONS,GROCERY STORES AND SUPERMARKETS,GPC
WALSALL COUNCIL,HTTP://OPENDATACOMMUNITIES.ORG/ID/METROPOLITAN-DISTRICT-COUNCIL/WALSALL,30/09/2017,CHANGE & GOVERNANCE,CURRYS ONLINE,10/07/2017,H59620170711SRHFLRNML-1,234.99,YOUNG PERSONS HOMELESS SERVICE-FURNITURE & EQUIPMENT,ELECTRONIC SALES,GPC
WALSALL COUNCIL,HTTP://OPENDATACOMMUNITIES.ORG/ID/METROPOLITAN-DISTRICT-COUNCIL/WALSALL,30/09/2017,CHANGE & GOVERNANCE,JOHAL DAIRIES LTD,10/07/2017,H59620170711SVOTEBILW-1,12.90,CA LITTLE BLOXWICH CE PRIMARY -MISC DAIRY PRODUCTS-PROVISIONS,OTHER NONDURABLE GOODS,GPC
WALSALL COUNCIL,HTTP://OPENDATACOMMUNITIES.ORG/ID/METROPOLITAN-DISTRICT-COUNCIL/WALSALL,30/09/2017,CHANGE & GOVERNANCE,JOHAL DAIRIES LTD,10/07/2017,H59620170711TOZRDTHEF-1,20.64,CA ST JOHNS C.E. PRIMARY SCHOO-MISC DAIRY PRODUCTS-PROVISIONS,OTHER NONDURABLE GOODS,GPC
WALSALL COUNCIL,HTTP://OPENDATACOMMUNITIES.ORG/ID/METROPOLITAN-DISTRICT-COUNCIL/WALSALL,30/09/2017,CHANGE & GOVERNANCE,JOHAL DAIRIES LTD,10/07/2017,H59620170711TUYKVTVAC-1,42.98,CA RUSHALL JMI SCHOOL-MISC DAIRY PRODUCTS-PROVISIONS,OTHER NONDURABLE GOODS,GPC
WALSALL COUNCIL,HTTP://OPENDATACOMMUNITIES.ORG/ID/METROPOLITAN-DISTRICT-COUNCIL/WALSALL,30/09/2017,CHANGE & GOVERNANCE,JOHAL DAIRIES LTD,10/07/2017,H59620170711TWESWLRIG-1,6.43,CA MEADOW VIEW JMI PRIMARY SCH-MISC DAIRY PRODUCTS-PROVISIONS,OTHER NONDURABLE GOODS,GPC
WALSALL COUNCIL,HTTP://OPENDATACOMMUNITIES.ORG/ID/METROPOLITAN-DISTRICT-COUNCIL/WALSALL,30/09/2017,CHILDRENS SERVICES,AMAZON.CO.UK,10/07/2017,H59620170711TXHMUMGCN-1,4.99,GENERAL RESOURCES & MISC-GENERAL MATERIALS,MISCELLANEOUS AND SPECIALTY RETAIL STORES,GPC
WALSALL COUNCIL,HTTP://OPENDATACOMMUNITIES.ORG/ID/METROPOLITAN-DISTRICT-COUNCIL/WALSALL,30/09/2017,CHANGE & GOVERNANCE,TESCO STORES 6161,10/07/2017,H59620170711TYKONXZXR-1,76.30,WALSALL CRISIS SUPPORT SCHEME-CRISIS SUPPORT PAYMENTS,GROCERY STORES AND SUPERMARKETS,GPC
WALSALL COUNCIL,HTTP://OPENDATACOMMUNITIES.ORG/ID/METROPOLITAN-DISTRICT-COUNCIL/WALSALL,30/09/2017,CHANGE & GOVERNANCE,SPORTSDIRECT 153,10/07/2017,H59620170711UXKKSKQJF-1,20.47,ACCOMMODATION SERVICES MANAGEM-FURNITURE & EQUIPMENT,SPORTING GOODS STORES,GPC
WALSALL COUNCIL,HTTP://OPENDATACOMMUNITIES.ORG/ID/METROPOLITAN-DISTRICT-COUNCIL/WALSALL,30/09/2017,CHANGE & GOVERNANCE,JOHAL DAIRIES LTD,10/07/2017,H59620170711UZDBAMAJI-1,19.78,CA WATLING STREET PRIMARY SCHO-MISC DAIRY PRODUCTS-PROVISIONS,OTHER NONDURABLE GOODS,GPC
WALSALL COUNCIL,HTTP://OPENDATACOMMUNITIES.ORG/ID/METROPOLITAN-DISTRICT-COUNCIL/WALSALL,30/09/2017,CHILDRENS SERVICES,AMAZON.CO.UK,10/07/2017,H59620170711VGQTYHISQ-1,3.00,BLAKENALL CHILDCARE SERVICES-FURNITURE & EQUIPMENT,MISCELLANEOUS AND SPECIALTY RETAIL STORES,GPC
WALSALL COUNCIL,HTTP://OPENDATACOMMUNITIES.ORG/ID/METROPOLITAN-DISTRICT-COUNCIL/WALSALL,30/09/2017,CHILDRENS SERVICES,AMAZON.CO.UK,10/07/2017,H59620170711VGQTYHISQ-2,14.98,BLAKENALL CHILDCARE SERVICES-FURNITURE & EQUIPMENT,MISCELLANEOUS AND SPECIALTY RETAIL STORES,GPC
WALSALL COUNCIL,HTTP://OPENDATACOMMUNITIES.ORG/ID/METROPOLITAN-DISTRICT-COUNCIL/WALSALL,30/09/2017,CHANGE & GOVERNANCE,JOHAL DAIRIES LTD,10/07/2017,H59620170711VIUXQBHXT-1,33.84,CA BROWNHILLS WEST PRIMARY SCH-MISC DAIRY PRODUCTS-PROVISIONS,OTHER NONDURABLE GOODS,GPC
WALSALL COUNCIL,HTTP://OPENDATACOMMUNITIES.ORG/ID/METROPOLITAN-DISTRICT-COUNCIL/WALSALL,30/09/2017,CHILDRENS SERVICES,WALSALL COUNCIL,10/07/2017,H59620170711VKUTVQYBP-1,22.00,SAFEGUARDING & FAMILY SUPPORT-REGISTRAR OF BIRTHS/DEATHS/MAR,GOVERNMENT SERVICES,GPC
WALSALL COUNCIL,HTTP://OPENDATACOMMUNITIES.ORG/ID/METROPOLITAN-DISTRICT-COUNCIL/WALSALL,30/09/2017,CHANGE & GOVERNANCE,BULL DOG APPLIANCES LT,10/07/2017,H59620170711VRPOUJXSJ-1,357.00,WALSALL CRISIS SUPPORT SCHEME-FURNITURE & EQUIPMENT,HOUSEHOLD APPLIANCE STORES,GPC
WALSALL COUNCIL,HTTP://OPENDATACOMMUNITIES.ORG/ID/METROPOLITAN-DISTRICT-COUNCIL/WALSALL,30/09/2017,CHILDRENS SERVICES,W M MORRISONS,10/07/2017,H59620170711VSBPEIFYW-1,1.47,BIRCHILLS CHILDCARE SERVICES-FOOD AND BEVERAGES-PROVISIONS,GROCERY STORES AND SUPERMARKETS,GPC
WALSALL COUNCIL,HTTP://OPENDATACOMMUNITIES.ORG/ID/METROPOLITAN-DISTRICT-COUNCIL/WALSALL,30/09/2017,CHILDRENS SERVICES,W M MORRISONS,10/07/2017,H59620170711VSBPEIFYW-2,7.97,BIRCHILLS CHILDCARE SERVICES-FOOD AND BEVERAGES-PROVISIONS,GROCERY STORES AND SUPERMARKETS,GPC
WALSALL COUNCIL,HTTP://OPENDATACOMMUNITIES.ORG/ID/METROPOLITAN-DISTRICT-COUNCIL/WALSALL,30/09/2017,CHANGE & GOVERNANCE,123-REG.CO.UK,10/07/2017,H59620170711VTELTOVTW-1,9.59,NETWORKS-RECHARGE FOR MAINTENANCE/APPLI,COMPUTER NETWORK/INFORMATION SERVICES,GPC
WALSALL COUNCIL,HTTP://OPENDATACOMMUNITIES.ORG/ID/METROPOLITAN-DISTRICT-COUNCIL/WALSALL,30/09/2017,CHILDRENS SERVICES,ARGOS RETAIL GROUP,10/07/2017,H59620170711VYBGYYMJF-1,99.99,SAFEGUARDING & FAMILY SUPPORT-SECTION 1/17CHILD CARE ACT 198,DISCOUNT STORES,GPC
WALSALL COUNCIL,HTTP://OPENDATACOMMUNITIES.ORG/ID/METROPOLITAN-DISTRICT-COUNCIL/WALSALL,30/09/2017,CHILDRENS SERVICES,ARGOS WALSALL CROW,10/07/2017,H59620170711VZQXDSBFN-1,89.99,SPINDLETREE-RESIDENTS PERSONAL EXPENSES-AL,DISCOUNT STORES,GPC
WALSALL COUNCIL,HTTP://OPENDATACOMMUNITIES.ORG/ID/METROPOLITAN-DISTRICT-COUNCIL/WALSALL,30/09/2017,CHANGE & GOVERNANCE,VIRGIN TRAINS,10/07/2017,H59620170711WKXDZJBWO-1,48.55,ACCOMMODATION SERVICES MANAGEM-OFFICER/STAFF-PUBLIC TRANSPORT,PASSENGER RAILWAYS,GPC
WALSALL COUNCIL,HTTP://OPENDATACOMMUNITIES.ORG/ID/METROPOLITAN-DISTRICT-COUNCIL/WALSALL,30/09/2017,ECONOMY & ENVIRONMENT,WILKO RETAIL LIMIT,10/07/2017,H59620170711XCSWIFUNY-1,10.00,LEATHER MUSEUM-GENERAL MATERIALS,HOUSEHOLD APPLIANCE STORES,GPC
WALSALL COUNCIL,HTTP://OPENDATACOMMUNITIES.ORG/ID/METROPOLITAN-DISTRICT-COUNCIL/WALSALL,30/09/2017,CHANGE & GOVERNANCE,JOHAL DAIRIES LTD,10/07/2017,H59620170711XDXMENHTT-1,27.10,CA FIBBERSLEY PARK PRIMARY SCH-MISC DAIRY PRODUCTS-PROVISIONS,OTHER NONDURABLE GOODS,GPC
WALSALL COUNCIL,HTTP://OPENDATACOMMUNITIES.ORG/ID/METROPOLITAN-DISTRICT-COUNCIL/WALSALL,30/09/2017,CHANGE & GOVERNANCE,JOHAL DAIRIES LTD,10/07/2017,H59620170711XJXNOBBYC-1,11.35,CA JANE LANE SPECIAL SCHOOL-MISC DAIRY PRODUCTS-PROVISIONS,OTHER NONDURABLE GOODS,GPC
WALSALL COUNCIL,HTTP://OPENDATACOMMUNITIES.ORG/ID/METROPOLITAN-DISTRICT-COUNCIL/WALSALL,30/09/2017,CHANGE & GOVERNANCE,PREMIER INN44533745,10/07/2017,H59620170711XYKOMPBWB-1,-91.98,WALSALL CRISIS SUPPORT SCHEME-CRISIS SUPPORT PAYMENTS,PREMIER INN,GPC
WALSALL COUNCIL,HTTP://OPENDATACOMMUNITIES.ORG/ID/METROPOLITAN-DISTRICT-COUNCIL/WALSALL,30/09/2017,CHANGE & GOVERNANCE,NOBISCO LTD,10/07/2017,H59620170711XZHQNPXOD-1,40.25,CA BARCROFT D/C-DISPOSABLES-PROVISIONS,"CLEANING AND MAINTENANCE, JANITORIAL SERVICES",GPC
WALSALL COUNCIL,HTTP://OPENDATACOMMUNITIES.ORG/ID/METROPOLITAN-DISTRICT-COUNCIL/WALSALL,30/09/2017,ECONOMY & ENVIRONMENT,AMAZON.CO.UK,10/07/2017,H59620170711YBBFYTILX-1,4.38,"ARBORETUM HLF-REPAIRS,ALTERATIONS & MAINTENA",MISCELLANEOUS AND SPECIALTY RETAIL STORES,GPC
WALSALL COUNCIL,HTTP://OPENDATACOMMUNITIES.ORG/ID/METROPOLITAN-DISTRICT-COUNCIL/WALSALL,30/09/2017,CHANGE & GOVERNANCE,W M MORRISON PLC,10/07/2017,H59620170711YHPGDKFKX-1,10.50,CA LEAMORE PRIMARY SCHOOL-FRUIT & VEGETABLES OTHER-PROVI,GROCERY STORES AND SUPERMARKETS,GPC
WALSALL COUNCIL,HTTP://OPENDATACOMMUNITIES.ORG/ID/METROPOLITAN-DISTRICT-COUNCIL/WALSALL,30/09/2017,CHANGE & GOVERNANCE,W M MORRISON PLC,10/07/2017,H59620170711YHPGDKFKX-2,45.00,CA LEIGHSWOOD PRIMARY SCHOOL-FRUIT & VEGETABLES OTHER-PROVI,GROCERY STORES AND SUPERMARKETS,GPC
WALSALL COUNCIL,HTTP://OPENDATACOMMUNITIES.ORG/ID/METROPOLITAN-DISTRICT-COUNCIL/WALSALL,30/09/2017,CHANGE & GOVERNANCE,W M MORRISON PLC,10/07/2017,H59620170711YHPGDKFKX-3,7.50,CA LITTLE BLOXWICH CE PRIMARY -FRUIT & VEGETABLES OTHER-PROVI,GROCERY STORES AND SUPERMARKETS,GPC
WALSALL COUNCIL,HTTP://OPENDATACOMMUNITIES.ORG/ID/METROPOLITAN-DISTRICT-COUNCIL/WALSALL,30/09/2017,CHANGE & GOVERNANCE,W M MORRISON PLC,10/07/2017,H59620170711YHPGDKFKX-4,15.00,CA POOL HAYES PRIMARY SCHOOL-FRUIT & VEGETABLES OTHER-PROVI,GROCERY STORES AND SUPERMARKETS,GPC
WALSALL COUNCIL,HTTP://OPENDATACOMMUNITIES.ORG/ID/METROPOLITAN-DISTRICT-COUNCIL/WALSALL,30/09/2017,CHANGE & GOVERNANCE,W M MORRISON PLC,10/07/2017,H59620170711YHPGDKFKX-5,7.50,CA RADLEYS PRIMARY SCHOOL-FRUIT & VEGETABLES OTHER-PROVI,GROCERY STORES AND SUPERMARKETS,GPC
WALSALL COUNCIL,HTTP://OPENDATACOMMUNITIES.ORG/ID/METROPOLITAN-DISTRICT-COUNCIL/WALSALL,30/09/2017,CHANGE & GOVERNANCE,W M MORRISON PLC,10/07/2017,H59620170711YHPGDKFKX-6,22.50,CA RUSHALL JMI SCHOOL-FRUIT & VEGETABLES OTHER-PROVI,GROCERY STORES AND SUPERMARKETS,GPC
WALSALL COUNCIL,HTTP://OPENDATACOMMUNITIES.ORG/ID/METROPOLITAN-DISTRICT-COUNCIL/WALSALL,30/09/2017,CHANGE & GOVERNANCE,W M MORRISON PLC,10/07/2017,H59620170711YHPGDKFKX-7,9.00,CA ST GILES C.E. PRIMARY SCHOO-FRUIT & VEGETABLES OTHER-PROVI,GROCERY STORES AND SUPERMARKETS,GPC
WALSALL COUNCIL,HTTP://OPENDATACOMMUNITIES.ORG/ID/METROPOLITAN-DISTRICT-COUNCIL/WALSALL,30/09/2017,CHANGE & GOVERNANCE,W M MORRISON PLC,10/07/2017,H59620170711YHPGDKFKX-8,15.00,CA ST MICHAELS C.E. PRIMARY SC-FRUIT & VEGETABLES OTHER-PROVI,GROCERY STORES AND SUPERMARKETS,GPC
WALSALL COUNCIL,HTTP://OPENDATACOMMUNITIES.ORG/ID/METROPOLITAN-DISTRICT-COUNCIL/WALSALL,30/09/2017,CHANGE & GOVERNANCE,W M MORRISON PLC,10/07/2017,H59620170711YHPGDKFKX-9,12.00,CA MEADOW VIEW JMI PRIMARY SCH-FRUIT & VEGETABLES OTHER-PROVI,GROCERY STORES AND SUPERMARKETS,GPC
WALSALL COUNCIL,HTTP://OPENDATACOMMUNITIES.ORG/ID/METROPOLITAN-DISTRICT-COUNCIL/WALSALL,30/09/2017,ECONOMY & ENVIRONMENT,GOV.UK/PHE,10/07/2017,H59620170711YQGRXWHHB-1,230.00,PUBLIC HEALTH BUSINESS SUPPORT-EXTERNAL TRAINING,"HEALTH PRACTITIONERS, MEDICAL SERVICES",GPC
WALSALL COUNCIL,HTTP://OPENDATACOMMUNITIES.ORG/ID/METROPOLITAN-DISTRICT-COUNCIL/WALSALL,30/09/2017,CHANGE & GOVERNANCE,JOHAL DAIRIES LTD,10/07/2017,H59620170711YQSHRQFRM-1,-4.30,CA COOPER JORDAN CE PRIMARY SC-MISC DAIRY PRODUCTS-PROVISIONS,OTHER NONDURABLE GOODS,GPC
WALSALL COUNCIL,HTTP://OPENDATACOMMUNITIES.ORG/ID/METROPOLITAN-DISTRICT-COUNCIL/WALSALL,30/09/2017,CHANGE & GOVERNANCE,ARTHUR BRETT CATER,10/07/2017,H59620170711ZIZSETWKZ-1,34.41,TOWN HALL RESTAURANT BISTRO-FRUIT & VEGETABLES OTHER-PROVI,MISCELLANEOUS FOOD STORES & CONVENIENCE STORES,GPC
WALSALL COUNCIL,HTTP://OPENDATACOMMUNITIES.ORG/ID/METROPOLITAN-DISTRICT-COUNCIL/WALSALL,30/09/2017,CHILDRENS SERVICES,ARGOS RETAIL GROUP,11/07/2017,H59620170712ALKXBWAGT-1,24.99,INITIAL RESPONSE SERVICE-FURNITURE & EQUIPMENT,DISCOUNT STORES,GPC
WALSALL COUNCIL,HTTP://OPENDATACOMMUNITIES.ORG/ID/METROPOLITAN-DISTRICT-COUNCIL/WALSALL,30/09/2017,CHILDRENS SERVICES,W M MORRISONS.COM,11/07/2017,H59620170712AMKFQNXMH-1,25.56,BIRCHILLS CHILDCARE SERVICES-FOOD AND BEVERAGES-PROVISIONS,GROCERY STORES AND SUPERMARKETS,GPC
WALSALL COUNCIL,HTTP://OPENDATACOMMUNITIES.ORG/ID/METROPOLITAN-DISTRICT-COUNCIL/WALSALL,30/09/2017,CHILDRENS SERVICES,W M MORRISONS.COM,11/07/2017,H59620170712AMKFQNXMH-2,141.29,BIRCHILLS CHILDCARE SERVICES-FOOD AND BEVERAGES-PROVISIONS,GROCERY STORES AND SUPERMARKETS,GPC
WALSALL COUNCIL,HTTP://OPENDATACOMMUNITIES.ORG/ID/METROPOLITAN-DISTRICT-COUNCIL/WALSALL,30/09/2017,CHANGE & GOVERNANCE,BURGER KING,11/07/2017,H59620170712BDUUTRHHE-1,5.57,YOUNG PERSONS HOMELESS SERVICE-SUBSISTENCE OFFICERS-EXPENSES,"EATING PLACES, RESTAURANTS",GPC
WALSALL COUNCIL,HTTP://OPENDATACOMMUNITIES.ORG/ID/METROPOLITAN-DISTRICT-COUNCIL/WALSALL,30/09/2017,CHANGE & GOVERNANCE,BLAKEMORE FOODSERVICE,11/07/2017,H59620170712BFLMSQHAT-1,16.01,CA BIRCHILLS CE PRIMARY COMMUN-FROZEN FOODS-PROVISIONS,CATERERS,GPC
WALSALL COUNCIL,HTTP://OPENDATACOMMUNITIES.ORG/ID/METROPOLITAN-DISTRICT-COUNCIL/WALSALL,30/09/2017,CHANGE & GOVERNANCE,BLAKEMORE FOODSERVICE,11/07/2017,H59620170712BFLMSQHAT-2,267.89,CA BIRCHILLS CE PRIMARY COMMUN-FROZEN FOODS-PROVISIONS,CATERERS,GPC
WALSALL COUNCIL,HTTP://OPENDATACOMMUNITIES.ORG/ID/METROPOLITAN-DISTRICT-COUNCIL/WALSALL,30/09/2017,ECONOMY & ENVIRONMENT,WWW.TOOLSTATION.COM,11/07/2017,H59620170712BFQFWFRQW-1,72.44,YEI ESF FUNDING-PROFESSIONAL FEES AND SERVICES,HARDWARE STORES,GPC
WALSALL COUNCIL,HTTP://OPENDATACOMMUNITIES.ORG/ID/METROPOLITAN-DISTRICT-COUNCIL/WALSALL,30/09/2017,ECONOMY & ENVIRONMENT,WWW.TOOLSTATION.COM,11/07/2017,H59620170712BFQFWFRQW-2,72.45,YEI (IMPACT) PROGRAMME-PROFESSIONAL FEES AND SERVICES,HARDWARE STORES,GPC
WALSALL COUNCIL,HTTP://OPENDATACOMMUNITIES.ORG/ID/METROPOLITAN-DISTRICT-COUNCIL/WALSALL,30/09/2017,ECONOMY & ENVIRONMENT,WWW.TOOLSTATION.COM,11/07/2017,H59620170712BFQFWFRQW-3,4.99,YEI (IMPACT) PROGRAMME-PROFESSIONAL FEES AND SERVICES,HARDWARE STORES,GPC
WALSALL COUNCIL,HTTP://OPENDATACOMMUNITIES.ORG/ID/METROPOLITAN-DISTRICT-COUNCIL/WALSALL,30/09/2017,ECONOMY & ENVIRONMENT,WWW.TOOLSTATION.COM,11/07/2017,H59620170712BFQFWFRQW-4,4.99,YEI ESF FUNDING-PROFESSIONAL FEES AND SERVICES,HARDWARE STORES,GPC
WALSALL COUNCIL,HTTP://OPENDATACOMMUNITIES.ORG/ID/METROPOLITAN-DISTRICT-COUNCIL/WALSALL,30/09/2017,CHILDRENS SERVICES,SYMBOLS WORLDWIDE LTD,11/07/2017,H59620170712BKFEACVQY-1,460.79,SEN-STATIONERY & GENERAL SUPPLIES-,COMPUTER SOFTWARE STORES,GPC
WALSALL COUNCIL,HTTP://OPENDATACOMMUNITIES.ORG/ID/METROPOLITAN-DISTRICT-COUNCIL/WALSALL,30/09/2017,CHANGE & GOVERNANCE,NOBISCO LTD,11/07/2017,H59620170712BOGLZZWCH-1,39.85,CA LEIGHSWOOD PRIMARY SCHOOL-DISPOSABLES-PROVISIONS,"CLEANING AND MAINTENANCE, JANITORIAL SERVICES",GPC
WALSALL COUNCIL,HTTP://OPENDATACOMMUNITIES.ORG/ID/METROPOLITAN-DISTRICT-COUNCIL/WALSALL,30/09/2017,ECONOMY & ENVIRONMENT,DARLASTON BUILDERS MER,11/07/2017,H59620170712BPCNXEOLH-1,21.95,INFRASTRUCTURE MAINTENANCE-GENERAL MATERIALS,LUMBER & BUILDING MATERIALS STORES,GPC
WALSALL COUNCIL,HTTP://OPENDATACOMMUNITIES.ORG/ID/METROPOLITAN-DISTRICT-COUNCIL/WALSALL,30/09/2017,CHANGE & GOVERNANCE,BLAKEMORE FOODSERVICE,11/07/2017,H59620170712BPOGWYSSI-1,16.01,CA CROFT COMMUNITY PRIMARY SCH-FROZEN FOODS-PROVISIONS,CATERERS,GPC
WALSALL COUNCIL,HTTP://OPENDATACOMMUNITIES.ORG/ID/METROPOLITAN-DISTRICT-COUNCIL/WALSALL,30/09/2017,CHANGE & GOVERNANCE,JOHAL DAIRIES LTD,11/07/2017,H59620170712BQHIVSYNW-1,2.63,CA LEAMORE PRIMARY SCHOOL-MISC DAIRY PRODUCTS-PROVISIONS,OTHER NONDURABLE GOODS,GPC
WALSALL COUNCIL,HTTP://OPENDATACOMMUNITIES.ORG/ID/METROPOLITAN-DISTRICT-COUNCIL/WALSALL,30/09/2017,CHANGE & GOVERNANCE,JOHAL DAIRIES LTD,11/07/2017,H59620170712BZZGBLEQX-1,8.60,CA ST FRANCIS CATHOLIC PRIMARY-MISC DAIRY PRODUCTS-PROVISIONS,OTHER NONDURABLE GOODS,GPC
WALSALL COUNCIL,HTTP://OPENDATACOMMUNITIES.ORG/ID/METROPOLITAN-DISTRICT-COUNCIL/WALSALL,30/09/2017,CHANGE & GOVERNANCE,BLAKEMORE FOODSERVICE,11/07/2017,H59620170712CEISMBZHR-1,108.39,CA BROWNHILLS WEST PRIMARY SCH-DRY FOODS-PROVISIONS,CATERERS,GPC
WALSALL COUNCIL,HTTP://OPENDATACOMMUNITIES.ORG/ID/METROPOLITAN-DISTRICT-COUNCIL/WALSALL,30/09/2017,CHANGE & GOVERNANCE,123-REG.CO.UK,11/07/2017,H59620170712CGHSLLDRR-1,9.59,NETWORKS-RECHARGE FOR MAINTENANCE/APPLI,COMPUTER NETWORK/INFORMATION SERVICES,GPC
WALSALL COUNCIL,HTTP://OPENDATACOMMUNITIES.ORG/ID/METROPOLITAN-DISTRICT-COUNCIL/WALSALL,30/09/2017,CHANGE & GOVERNANCE,BLAKEMORE FOODSERVICE,11/07/2017,H59620170712CKHVABWBY-1,334.38,TOWN HALL RESTAURANT BISTRO-DRY FOODS-PROVISIONS,CATERERS,GPC
WALSALL COUNCIL,HTTP://OPENDATACOMMUNITIES.ORG/ID/METROPOLITAN-DISTRICT-COUNCIL/WALSALL,30/09/2017,CHANGE & GOVERNANCE,BLAKEMORE FOODSERVICE,11/07/2017,H59620170712CKHVABWBY-2,240.63,TOWN HALL RESTAURANT BISTRO-DRY FOODS-PROVISIONS,CATERERS,GPC
WALSALL COUNCIL,HTTP://OPENDATACOMMUNITIES.ORG/ID/METROPOLITAN-DISTRICT-COUNCIL/WALSALL,30/09/2017,CHANGE & GOVERNANCE,WELSH BROS FOODS LTD,11/07/2017,H59620170712CNZXFLKJG-1,19.50,TOWN HALL RESTAURANT BISTRO-MEAT-PROVISIONS,FREEZER AND LOCKER MEAT PROVISIONERS,GPC
WALSALL COUNCIL,HTTP://OPENDATACOMMUNITIES.ORG/ID/METROPOLITAN-DISTRICT-COUNCIL/WALSALL,30/09/2017,CHANGE & GOVERNANCE,BLAKEMORE FOODSERVICE,11/07/2017,H59620170712CPKDKLVAJ-1,-33.19,CA BUSILL JONES PRIMARY SCHOOL-DRY FOODS-PROVISIONS,CATERERS,GPC
WALSALL COUNCIL,HTTP://OPENDATACOMMUNITIES.ORG/ID/METROPOLITAN-DISTRICT-COUNCIL/WALSALL,30/09/2017,CHANGE & GOVERNANCE,NOBISCO LTD,11/07/2017,H59620170712DCYGRXQQP-1,20.20,CA BEACON PRIMARY SCHOOL-DISPOSABLES-PROVISIONS,"CLEANING AND MAINTENANCE, JANITORIAL SERVICES",GPC
WALSALL COUNCIL,HTTP://OPENDATACOMMUNITIES.ORG/ID/METROPOLITAN-DISTRICT-COUNCIL/WALSALL,30/09/2017,CHANGE & GOVERNANCE,JOHAL DAIRIES LTD,11/07/2017,H59620170712DEJYJIBJR-1,3.64,CA CROFT COMMUNITY PRIMARY SCH-MISC DAIRY PRODUCTS-PROVISIONS,OTHER NONDURABLE GOODS,GPC
WALSALL COUNCIL,HTTP://OPENDATACOMMUNITIES.ORG/ID/METROPOLITAN-DISTRICT-COUNCIL/WALSALL,30/09/2017,CHILDRENS SERVICES,WWW.COWLINGANDWILCOX.C,11/07/2017,H59620170712DRVTVTNGB-1,17.90,EDUCATIONAL PSYCHOLOGISTS-STATIONERY & GENERAL SUPPLIES-,"ARTIST SUPPLY STORES, CRAFT SHOPS",GPC
WALSALL COUNCIL,HTTP://OPENDATACOMMUNITIES.ORG/ID/METROPOLITAN-DISTRICT-COUNCIL/WALSALL,30/09/2017,CHANGE & GOVERNANCE,WELSH BROS FOODS LTD,11/07/2017,H59620170712DXBHXIVKG-1,162.90,CA TOWN HALL RESTAURANT - CATE-MEAT-PROVISIONS,FREEZER AND LOCKER MEAT PROVISIONERS,GPC
WALSALL COUNCIL,HTTP://OPENDATACOMMUNITIES.ORG/ID/METROPOLITAN-DISTRICT-COUNCIL/WALSALL,30/09/2017,CHANGE & GOVERNANCE,JOHAL DAIRIES LTD,11/07/2017,H59620170712DYPJWCXLY-1,19.24,CA JANE LANE SPECIAL SCHOOL-MISC DAIRY PRODUCTS-PROVISIONS,OTHER NONDURABLE GOODS,GPC
WALSALL COUNCIL,HTTP://OPENDATACOMMUNITIES.ORG/ID/METROPOLITAN-DISTRICT-COUNCIL/WALSALL,30/09/2017,CHANGE & GOVERNANCE,JOHAL DAIRIES LTD,11/07/2017,H59620170712DYRNIOBLE-1,41.87,CA BARCROFT D/C-MISC DAIRY PRODUCTS-PROVISIONS,OTHER NONDURABLE GOODS,GPC
WALSALL COUNCIL,HTTP://OPENDATACOMMUNITIES.ORG/ID/METROPOLITAN-DISTRICT-COUNCIL/WALSALL,30/09/2017,CHANGE & GOVERNANCE,WWW.WMEMPLOYERS.ORG.UK,11/07/2017,H59620170712ETESPQZJQ-1,268.80,SCHOOL HR TRANSACTIONAL TEAM-ADVERTISING STAFF VACANCIES,"CONSULTING, MANAGEMENT, AND PR SERVICES",GPC
WALSALL COUNCIL,HTTP://OPENDATACOMMUNITIES.ORG/ID/METROPOLITAN-DISTRICT-COUNCIL/WALSALL,30/09/2017,CHILDRENS SERVICES,POST OFFICE COUNTER,11/07/2017,H59620170712EUCUPLHKJ-1,2.48,BLAKENALL CHILDCARE SERVICES-POSTAGES AND COURIER SERVICES,POSTAL SERVICES - GOVERNMENT ONLY,GPC
WALSALL COUNCIL,HTTP://OPENDATACOMMUNITIES.ORG/ID/METROPOLITAN-DISTRICT-COUNCIL/WALSALL,30/09/2017,ECONOMY & ENVIRONMENT,LUL TICKET MACHINE,11/07/2017,H59620170712EXZWHPOIV-1,10.00,NEW ART GALLERY - ADMIN-OFFICER/STAFF-PUBLIC TRANSPORT,PASSENGER RAILWAYS,GPC
WALSALL COUNCIL,HTTP://OPENDATACOMMUNITIES.ORG/ID/METROPOLITAN-DISTRICT-COUNCIL/WALSALL,30/09/2017,CHILDRENS SERVICES,MATALAN,11/07/2017,H59620170712FBGVYXTVU-1,6.00,SPINDLETREE-CLOTHING & LAUNDRY,MENS AND WOMENS CLOTHING STORES,GPC
WALSALL COUNCIL,HTTP://OPENDATACOMMUNITIES.ORG/ID/METROPOLITAN-DISTRICT-COUNCIL/WALSALL,30/09/2017,SOCIAL CARE & INCLUSION,JOHAL DAIRIES LTD,11/07/2017,H59620170712FJDAQMKSY-1,31.56,FALLINGS HEATH-FOOD AND BEVERAGES-PROVISIONS,OTHER NONDURABLE GOODS,GPC
WALSALL COUNCIL,HTTP://OPENDATACOMMUNITIES.ORG/ID/METROPOLITAN-DISTRICT-COUNCIL/WALSALL,30/09/2017,CHANGE & GOVERNANCE,JOHAL DAIRIES LTD,11/07/2017,H59620170712FLBJDUZER-1,18.50,CA FIBBERSLEY PARK PRIMARY SCH-MISC DAIRY PRODUCTS-PROVISIONS,OTHER NONDURABLE GOODS,GPC
WALSALL COUNCIL,HTTP://OPENDATACOMMUNITIES.ORG/ID/METROPOLITAN-DISTRICT-COUNCIL/WALSALL,30/09/2017,CHANGE & GOVERNANCE,BLAKEMORE FOODSERVICE,11/07/2017,H59620170712FLHRGPSZG-1,50.82,CA OLD HALL SPECIAL SCHOOL-FROZEN FOODS-PROVISIONS,CATERERS,GPC
WALSALL COUNCIL,HTTP://OPENDATACOMMUNITIES.ORG/ID/METROPOLITAN-DISTRICT-COUNCIL/WALSALL,30/09/2017,CHANGE & GOVERNANCE,BLAKEMORE FOODSERVICE,11/07/2017,H59620170712FUQAMERKI-1,107.45,CA RADLEYS PRIMARY SCHOOL-FROZEN FOODS-PROVISIONS,CATERERS,GPC
WALSALL COUNCIL,HTTP://OPENDATACOMMUNITIES.ORG/ID/METROPOLITAN-DISTRICT-COUNCIL/WALSALL,30/09/2017,CHANGE & GOVERNANCE,JOHAL DAIRIES LTD,11/07/2017,H59620170712FXYOCRQJX-1,34.40,CA COOPER JORDAN CE PRIMARY SC-MISC DAIRY PRODUCTS-PROVISIONS,OTHER NONDURABLE GOODS,GPC
WALSALL COUNCIL,HTTP://OPENDATACOMMUNITIES.ORG/ID/METROPOLITAN-DISTRICT-COUNCIL/WALSALL,30/09/2017,CHANGE & GOVERNANCE,WWW.RECOVERINGPOOLTABL,11/07/2017,H59620170712GCQBDTKFX-1,305.00,ACCOMMODATION SERVICES MANAGEM-FURNITURE & EQUIPMENT,SPORTING GOODS STORES,GPC
WALSALL COUNCIL,HTTP://OPENDATACOMMUNITIES.ORG/ID/METROPOLITAN-DISTRICT-COUNCIL/WALSALL,30/09/2017,CHANGE & GOVERNANCE,WELSH BROS FOODS LTD,11/07/2017,H59620170712GELRGPFOV-1,33.75,CA JANE LANE SPECIAL SCHOOL-MEAT-PROVISIONS,FREEZER AND LOCKER MEAT PROVISIONERS,GPC
WALSALL COUNCIL,HTTP://OPENDATACOMMUNITIES.ORG/ID/METROPOLITAN-DISTRICT-COUNCIL/WALSALL,30/09/2017,CHANGE & GOVERNANCE,BLAKEMORE FOODSERVICE,11/07/2017,H59620170712GFSLOCOXV-1,182.57,CA BROWNHILLS WEST PRIMARY SCH-DRY FOODS-PROVISIONS,CATERERS,GPC
WALSALL COUNCIL,HTTP://OPENDATACOMMUNITIES.ORG/ID/METROPOLITAN-DISTRICT-COUNCIL/WALSALL,30/09/2017,ECONOMY & ENVIRONMENT,WWW.TOOLSTATION.COM,11/07/2017,H59620170712GHWTOXQLV-1,72.44,YEI ESF FUNDING-PROFESSIONAL FEES AND SERVICES,HARDWARE STORES,GPC
WALSALL COUNCIL,HTTP://OPENDATACOMMUNITIES.ORG/ID/METROPOLITAN-DISTRICT-COUNCIL/WALSALL,30/09/2017,ECONOMY & ENVIRONMENT,WWW.TOOLSTATION.COM,11/07/2017,H59620170712GHWTOXQLV-2,72.45,YEI (IMPACT) PROGRAMME-PROFESSIONAL FEES AND SERVICES,HARDWARE STORES,GPC
WALSALL COUNCIL,HTTP://OPENDATACOMMUNITIES.ORG/ID/METROPOLITAN-DISTRICT-COUNCIL/WALSALL,30/09/2017,ECONOMY & ENVIRONMENT,WWW.TOOLSTATION.COM,11/07/2017,H59620170712GHWTOXQLV-3,4.99,YEI ESF FUNDING-PROFESSIONAL FEES AND SERVICES,HARDWARE STORES,GPC
WALSALL COUNCIL,HTTP://OPENDATACOMMUNITIES.ORG/ID/METROPOLITAN-DISTRICT-COUNCIL/WALSALL,30/09/2017,ECONOMY & ENVIRONMENT,WWW.TOOLSTATION.COM,11/07/2017,H59620170712GHWTOXQLV-4,4.99,YEI (IMPACT) PROGRAMME-PROFESSIONAL FEES AND SERVICES,HARDWARE STORES,GPC
WALSALL COUNCIL,HTTP://OPENDATACOMMUNITIES.ORG/ID/METROPOLITAN-DISTRICT-COUNCIL/WALSALL,30/09/2017,CHANGE & GOVERNANCE,JOHAL DAIRIES LTD,11/07/2017,H59620170712GOHEFCNRA-1,31.22,CA LINDENS PRIMARY SCHOOL-MISC DAIRY PRODUCTS-PROVISIONS,OTHER NONDURABLE GOODS,GPC
WALSALL COUNCIL,HTTP://OPENDATACOMMUNITIES.ORG/ID/METROPOLITAN-DISTRICT-COUNCIL/WALSALL,30/09/2017,CHANGE & GOVERNANCE,JOHAL DAIRIES LTD,11/07/2017,H59620170712GVVDHTTUR-1,18.12,CA TOWN HALL RESTAURANT - CATE-MISC DAIRY PRODUCTS-PROVISIONS,OTHER NONDURABLE GOODS,GPC
WALSALL COUNCIL,HTTP://OPENDATACOMMUNITIES.ORG/ID/METROPOLITAN-DISTRICT-COUNCIL/WALSALL,30/09/2017,CHANGE & GOVERNANCE,NOBISCO LTD,11/07/2017,H59620170712GYGTHBCWZ-1,86.94,CA ST JOHNS C.E. PRIMARY SCHOO-DISPOSABLES-PROVISIONS,"CLEANING AND MAINTENANCE, JANITORIAL SERVICES",GPC
WALSALL COUNCIL,HTTP://OPENDATACOMMUNITIES.ORG/ID/METROPOLITAN-DISTRICT-COUNCIL/WALSALL,30/09/2017,ECONOMY & ENVIRONMENT,AMAZON UK MARKETPLACE,11/07/2017,H59620170712HBJPRQHFJ-1,22.37,"ARBORETUM VISITOR CENTRE-REPAIRS,ALTERATIONS & MAINTENA",MISCELLANEOUS AND SPECIALTY RETAIL STORES,GPC
WALSALL COUNCIL,HTTP://OPENDATACOMMUNITIES.ORG/ID/METROPOLITAN-DISTRICT-COUNCIL/WALSALL,30/09/2017,CHANGE & GOVERNANCE,BLAKEMORE FOODSERVICE,11/07/2017,H59620170712HFUQFQUDC-1,74.23,CA LEIGHSWOOD PRIMARY SCHOOL-DRY FOODS-PROVISIONS,CATERERS,GPC
WALSALL COUNCIL,HTTP://OPENDATACOMMUNITIES.ORG/ID/METROPOLITAN-DISTRICT-COUNCIL/WALSALL,30/09/2017,CHANGE & GOVERNANCE,BLAKEMORE FOODSERVICE,11/07/2017,H59620170712HFUQFQUDC-2,87.66,CA LEIGHSWOOD PRIMARY SCHOOL-DRY FOODS-PROVISIONS,CATERERS,GPC
WALSALL COUNCIL,HTTP://OPENDATACOMMUNITIES.ORG/ID/METROPOLITAN-DISTRICT-COUNCIL/WALSALL,30/09/2017,CHANGE & GOVERNANCE,BLAKEMORE FOODSERVICE,11/07/2017,H59620170712IAQVELOKJ-1,24.01,CA MOORCROFT WOOD-FROZEN FOODS-PROVISIONS,CATERERS,GPC
WALSALL COUNCIL,HTTP://OPENDATACOMMUNITIES.ORG/ID/METROPOLITAN-DISTRICT-COUNCIL/WALSALL,30/09/2017,CHANGE & GOVERNANCE,BLAKEMORE FOODSERVICE,11/07/2017,H59620170712IAQVELOKJ-2,96.42,CA MOORCROFT WOOD-FROZEN FOODS-PROVISIONS,CATERERS,GPC
WALSALL COUNCIL,HTTP://OPENDATACOMMUNITIES.ORG/ID/METROPOLITAN-DISTRICT-COUNCIL/WALSALL,30/09/2017,CHANGE & GOVERNANCE,JOHAL DAIRIES LTD,11/07/2017,H59620170712IBCDLYQLC-1,7.10,CA OLD HALL SPECIAL SCHOOL-MISC DAIRY PRODUCTS-PROVISIONS,OTHER NONDURABLE GOODS,GPC
WALSALL COUNCIL,HTTP://OPENDATACOMMUNITIES.ORG/ID/METROPOLITAN-DISTRICT-COUNCIL/WALSALL,30/09/2017,ECONOMY & ENVIRONMENT,WWW.PORTICODESIGNS.COM,11/07/2017,H59620170712IJPUOBIJG-1,230.28,NAG - NEW ART GALLERY SHOP STO-SHOP STOCK-MATERIALS,"OFFICE, SCHOOL SUPPLY, AND STATIONERY STORES",GPC
WALSALL COUNCIL,HTTP://OPENDATACOMMUNITIES.ORG/ID/METROPOLITAN-DISTRICT-COUNCIL/WALSALL,30/09/2017,CHILDRENS SERVICES,PHONAK GROUP LTD,11/07/2017,H59620170712ILUJZSPYJ-1,318.00,SEN-MISCELLANEOUS SUPPLIES,OTHER BUSINESS SERVICES,GPC
WALSALL COUNCIL,HTTP://OPENDATACOMMUNITIES.ORG/ID/METROPOLITAN-DISTRICT-COUNCIL/WALSALL,30/09/2017,CHANGE & GOVERNANCE,JOHAL DAIRIES LTD,11/07/2017,H59620170712INXUGSQWS-1,38.13,CA ST GILES C.E. PRIMARY SCHOO-MISC DAIRY PRODUCTS-PROVISIONS,OTHER NONDURABLE GOODS,GPC
WALSALL COUNCIL,HTTP://OPENDATACOMMUNITIES.ORG/ID/METROPOLITAN-DISTRICT-COUNCIL/WALSALL,30/09/2017,CHANGE & GOVERNANCE,ARTHUR BRETT CATER,11/07/2017,H59620170712IUVTJXYEX-1,45.02,CA BLUE COAT C OF E PERFORMING-FRUIT & VEGETABLES OTHER-PROVI,MISCELLANEOUS FOOD STORES & CONVENIENCE STORES,GPC
WALSALL COUNCIL,HTTP://OPENDATACOMMUNITIES.ORG/ID/METROPOLITAN-DISTRICT-COUNCIL/WALSALL,30/09/2017,CHANGE & GOVERNANCE,WWW.SCC.COM,11/07/2017,H59620170712IVJVURMHV-1,203.26,RECHARGEABLE EQUIPMENT-COMPUTER EQUIPMENT AND SUPPLIE,"COMPUTERS, COMPUTER PERIPHERAL EQUIPMENT, SOFTWARE",GPC
WALSALL COUNCIL,HTTP://OPENDATACOMMUNITIES.ORG/ID/METROPOLITAN-DISTRICT-COUNCIL/WALSALL,30/09/2017,CHANGE & GOVERNANCE,JOHAL DAIRIES LTD,11/07/2017,H59620170712JQJVTYWUC-1,6.12,CA ELMWOOD SPECIAL SCHOOL-MISC DAIRY PRODUCTS-PROVISIONS,OTHER NONDURABLE GOODS,GPC
WALSALL COUNCIL,HTTP://OPENDATACOMMUNITIES.ORG/ID/METROPOLITAN-DISTRICT-COUNCIL/WALSALL,30/09/2017,CHILDRENS SERVICES,ASDA,11/07/2017,H59620170712JUNVLLIXF-1,4.00,CHUCKERY PRIMARY SCHOOL-BREAD-GENERAL-PROVISIONS,GROCERY STORES AND SUPERMARKETS,GPC
WALSALL COUNCIL,HTTP://OPENDATACOMMUNITIES.ORG/ID/METROPOLITAN-DISTRICT-COUNCIL/WALSALL,30/09/2017,CHILDRENS SERVICES,ASDA,11/07/2017,H59620170712JUNVLLIXF-2,3.72,CHUCKERY PRIMARY SCHOOL-BREAD-GENERAL-PROVISIONS,GROCERY STORES AND SUPERMARKETS,GPC
WALSALL COUNCIL,HTTP://OPENDATACOMMUNITIES.ORG/ID/METROPOLITAN-DISTRICT-COUNCIL/WALSALL,30/09/2017,CHILDRENS SERVICES,DFS.CO.UK,11/07/2017,H59620170712JXRTWZYTN-1,58.00,BLUEBELLS-NEW-FURNITURE & EQUIPMENT,"EQUIPMENT, FURNITURE, AND HOME FURNISHINGS STORES ",GPC
WALSALL COUNCIL,HTTP://OPENDATACOMMUNITIES.ORG/ID/METROPOLITAN-DISTRICT-COUNCIL/WALSALL,30/09/2017,CHANGE & GOVERNANCE,JOHAL DAIRIES LTD,11/07/2017,H59620170712KJTTKKDJL-1,19.32,CA RUSHALL JMI SCHOOL-MISC DAIRY PRODUCTS-PROVISIONS,OTHER NONDURABLE GOODS,GPC
WALSALL COUNCIL,HTTP://OPENDATACOMMUNITIES.ORG/ID/METROPOLITAN-DISTRICT-COUNCIL/WALSALL,30/09/2017,CHANGE & GOVERNANCE,BLAKEMORE FOODSERVICE,11/07/2017,H59620170712KTJJQGQLI-1,12.30,CA MOORCROFT WOOD-FROZEN FOODS-PROVISIONS,CATERERS,GPC
WALSALL COUNCIL,HTTP://OPENDATACOMMUNITIES.ORG/ID/METROPOLITAN-DISTRICT-COUNCIL/WALSALL,30/09/2017,CHANGE & GOVERNANCE,BLAKEMORE FOODSERVICE,11/07/2017,H59620170712KVYRKSCFV-1,128.40,CA RADLEYS PRIMARY SCHOOL-DRY FOODS-PROVISIONS,CATERERS,GPC
WALSALL COUNCIL,HTTP://OPENDATACOMMUNITIES.ORG/ID/METROPOLITAN-DISTRICT-COUNCIL/WALSALL,30/09/2017,CHANGE & GOVERNANCE,BLAKEMORE FOODSERVICE,11/07/2017,H59620170712KVYRKSCFV-2,295.94,CA RADLEYS PRIMARY SCHOOL-DRY FOODS-PROVISIONS,CATERERS,GPC
WALSALL COUNCIL,HTTP://OPENDATACOMMUNITIES.ORG/ID/METROPOLITAN-DISTRICT-COUNCIL/WALSALL,30/09/2017,CHANGE & GOVERNANCE,BLAKEMORE FOODSERVICE,11/07/2017,H59620170712KYUINSVXI-1,5.29,CA ST MICHAELS C.E. PRIMARY SC-DRY FOODS-PROVISIONS,CATERERS,GPC
WALSALL COUNCIL,HTTP://OPENDATACOMMUNITIES.ORG/ID/METROPOLITAN-DISTRICT-COUNCIL/WALSALL,30/09/2017,CHANGE & GOVERNANCE,JOHAL DAIRIES LTD,11/07/2017,H59620170712LCUSZEHNX-1,33.84,CA BROWNHILLS WEST PRIMARY SCH-MISC DAIRY PRODUCTS-PROVISIONS,OTHER NONDURABLE GOODS,GPC
WALSALL COUNCIL,HTTP://OPENDATACOMMUNITIES.ORG/ID/METROPOLITAN-DISTRICT-COUNCIL/WALSALL,30/09/2017,CHANGE & GOVERNANCE,JOHAL DAIRIES LTD,11/07/2017,H59620170712LQSWVBEUY-1,24.26,CA ST BERNADETTES CATHOLIC PRI-MISC DAIRY PRODUCTS-PROVISIONS,OTHER NONDURABLE GOODS,GPC
WALSALL COUNCIL,HTTP://OPENDATACOMMUNITIES.ORG/ID/METROPOLITAN-DISTRICT-COUNCIL/WALSALL,30/09/2017,CHANGE & GOVERNANCE,JOHAL DAIRIES LTD,11/07/2017,H59620170712LSYKXGDLZ-1,33.76,CA MOORCROFT WOOD-MISC DAIRY PRODUCTS-PROVISIONS,OTHER NONDURABLE GOODS,GPC
WALSALL COUNCIL,HTTP://OPENDATACOMMUNITIES.ORG/ID/METROPOLITAN-DISTRICT-COUNCIL/WALSALL,30/09/2017,CHANGE & GOVERNANCE,JOHAL DAIRIES LTD,11/07/2017,H59620170712MCCORQHYD-1,86.00,CA RADLEYS PRIMARY SCHOOL-MISC DAIRY PRODUCTS-PROVISIONS,OTHER NONDURABLE GOODS,GPC
WALSALL COUNCIL,HTTP://OPENDATACOMMUNITIES.ORG/ID/METROPOLITAN-DISTRICT-COUNCIL/WALSALL,30/09/2017,CHANGE & GOVERNANCE,BLAKEMORE FOODSERVICE,11/07/2017,H59620170712MGTQDYGCJ-1,54.17,CA ST JOHNS C.E. PRIMARY SCHOO-DRY FOODS-PROVISIONS,CATERERS,GPC
WALSALL COUNCIL,HTTP://OPENDATACOMMUNITIES.ORG/ID/METROPOLITAN-DISTRICT-COUNCIL/WALSALL,30/09/2017,CHANGE & GOVERNANCE,BLAKEMORE FOODSERVICE,11/07/2017,H59620170712MGTQDYGCJ-2,448.36,CA ST JOHNS C.E. PRIMARY SCHOO-DRY FOODS-PROVISIONS,CATERERS,GPC
WALSALL COUNCIL,HTTP://OPENDATACOMMUNITIES.ORG/ID/METROPOLITAN-DISTRICT-COUNCIL/WALSALL,30/09/2017,ECONOMY & ENVIRONMENT,BANNER GROUP LTD,11/07/2017,H59620170712MHTJHAXYO-1,23.14,CENTRALISED STATIONARY-STATIONERY & GENERAL SUPPLIES-,"OFFICE, SCHOOL SUPPLY, AND STATIONERY STORES",GPC
WALSALL COUNCIL,HTTP://OPENDATACOMMUNITIES.ORG/ID/METROPOLITAN-DISTRICT-COUNCIL/WALSALL,30/09/2017,CHANGE & GOVERNANCE,BLAKEMORE FOODSERVICE,11/07/2017,H59620170712MQMDPWTVM-1,32.02,CA RADLEYS PRIMARY SCHOOL-FROZEN FOODS-PROVISIONS,CATERERS,GPC
WALSALL COUNCIL,HTTP://OPENDATACOMMUNITIES.ORG/ID/METROPOLITAN-DISTRICT-COUNCIL/WALSALL,30/09/2017,CHANGE & GOVERNANCE,JOHAL DAIRIES LTD,11/07/2017,H59620170712MRXISJLVO-1,8.53,CA BIRCHILLS CE PRIMARY COMMUN-MISC DAIRY PRODUCTS-PROVISIONS,OTHER NONDURABLE GOODS,GPC
WALSALL COUNCIL,HTTP://OPENDATACOMMUNITIES.ORG/ID/METROPOLITAN-DISTRICT-COUNCIL/WALSALL,30/09/2017,CHANGE & GOVERNANCE,JOHAL DAIRIES LTD,11/07/2017,H59620170712MRXISJLVO-2,108.75,CA BIRCHILLS CE PRIMARY COMMUN-MISC DAIRY PRODUCTS-PROVISIONS,OTHER NONDURABLE GOODS,GPC
WALSALL COUNCIL,HTTP://OPENDATACOMMUNITIES.ORG/ID/METROPOLITAN-DISTRICT-COUNCIL/WALSALL,30/09/2017,SOCIAL CARE & INCLUSION,JOHAL DAIRIES LTD,11/07/2017,H59620170712MVBSOBKTD-1,111.71,REABLEMENT TEAM - HOLLY BANK-DAIRY PRODUCTS-PROVISIONS,OTHER NONDURABLE GOODS,GPC
WALSALL COUNCIL,HTTP://OPENDATACOMMUNITIES.ORG/ID/METROPOLITAN-DISTRICT-COUNCIL/WALSALL,30/09/2017,CHANGE & GOVERNANCE,JOHAL DAIRIES LTD,11/07/2017,H59620170712NCAYBXWIT-1,7.16,CA POOL HAYES PRIMARY SCHOOL-MISC DAIRY PRODUCTS-PROVISIONS,OTHER NONDURABLE GOODS,GPC
WALSALL COUNCIL,HTTP://OPENDATACOMMUNITIES.ORG/ID/METROPOLITAN-DISTRICT-COUNCIL/WALSALL,30/09/2017,CHILDRENS SERVICES,JOHAL DAIRIES LTD,11/07/2017,H59620170712NCKAXZAXC-1,5.58,57 LICHFIELD ROAD-FOOD AND BEVERAGES-PROVISIONS,OTHER NONDURABLE GOODS,GPC
WALSALL COUNCIL,HTTP://OPENDATACOMMUNITIES.ORG/ID/METROPOLITAN-DISTRICT-COUNCIL/WALSALL,30/09/2017,CHANGE & GOVERNANCE,BLAKEMORE FOODSERVICE,11/07/2017,H59620170712NFQQKCMUH-1,125.72,CA TOWN HALL RESTAURANT - CATE-DRY FOODS-PROVISIONS,CATERERS,GPC
WALSALL COUNCIL,HTTP://OPENDATACOMMUNITIES.ORG/ID/METROPOLITAN-DISTRICT-COUNCIL/WALSALL,30/09/2017,CHANGE & GOVERNANCE,JOHAL DAIRIES LTD,11/07/2017,H59620170712NIBYROIDR-1,5.16,CA WALSALL WOOD PRIMARY SCHOOL-MISC DAIRY PRODUCTS-PROVISIONS,OTHER NONDURABLE GOODS,GPC
WALSALL COUNCIL,HTTP://OPENDATACOMMUNITIES.ORG/ID/METROPOLITAN-DISTRICT-COUNCIL/WALSALL,30/09/2017,CHANGE & GOVERNANCE,TESCO STORES 6161,11/07/2017,H59620170712NIXHQYUUS-1,50.00,YOUNG PERSONS HOMELESS SERVICE-FOOD AND BEVERAGES-PROVISIONS,GROCERY STORES AND SUPERMARKETS,GPC
WALSALL COUNCIL,HTTP://OPENDATACOMMUNITIES.ORG/ID/METROPOLITAN-DISTRICT-COUNCIL/WALSALL,30/09/2017,CHANGE & GOVERNANCE,JOHAL DAIRIES LTD,11/07/2017,H59620170712NPURUWDNN-1,-7.70,CA ABBEY PRIMARY SCHOOL-MISC DAIRY PRODUCTS-PROVISIONS,OTHER NONDURABLE GOODS,GPC
WALSALL COUNCIL,HTTP://OPENDATACOMMUNITIES.ORG/ID/METROPOLITAN-DISTRICT-COUNCIL/WALSALL,30/09/2017,CHANGE & GOVERNANCE,BLAKEMORE FOODSERVICE,11/07/2017,H59620170712NYHFFJQNU-1,194.53,CA BEACON PRIMARY SCHOOL-FROZEN FOODS-PROVISIONS,CATERERS,GPC
WALSALL COUNCIL,HTTP://OPENDATACOMMUNITIES.ORG/ID/METROPOLITAN-DISTRICT-COUNCIL/WALSALL,30/09/2017,CHANGE & GOVERNANCE,BLAKEMORE FOODSERVICE,11/07/2017,H59620170712OCGQLATSB-1,39.46,CA ST MICHAELS C.E. PRIMARY SC-DRY FOODS-PROVISIONS,CATERERS,GPC
WALSALL COUNCIL,HTTP://OPENDATACOMMUNITIES.ORG/ID/METROPOLITAN-DISTRICT-COUNCIL/WALSALL,30/09/2017,CHANGE & GOVERNANCE,BLAKEMORE FOODSERVICE,11/07/2017,H59620170712OCGQLATSB-2,220.06,CA ST MICHAELS C.E. PRIMARY SC-DRY FOODS-PROVISIONS,CATERERS,GPC
WALSALL COUNCIL,HTTP://OPENDATACOMMUNITIES.ORG/ID/METROPOLITAN-DISTRICT-COUNCIL/WALSALL,30/09/2017,CHANGE & GOVERNANCE,JOHAL DAIRIES LTD,11/07/2017,H59620170712ONGSYMOYA-1,12.90,CA LITTLE BLOXWICH CE PRIMARY -MISC DAIRY PRODUCTS-PROVISIONS,OTHER NONDURABLE GOODS,GPC
WALSALL COUNCIL,HTTP://OPENDATACOMMUNITIES.ORG/ID/METROPOLITAN-DISTRICT-COUNCIL/WALSALL,30/09/2017,CHILDRENS SERVICES,AMAZON UK MARKETPLACE,11/07/2017,H59620170712OQQXASJEK-1,25.90,CONTINGENCY-GENERAL MATERIALS,MISCELLANEOUS AND SPECIALTY RETAIL STORES,GPC
WALSALL COUNCIL,HTTP://OPENDATACOMMUNITIES.ORG/ID/METROPOLITAN-DISTRICT-COUNCIL/WALSALL,30/09/2017,CHANGE & GOVERNANCE,JOHAL DAIRIES LTD,11/07/2017,H59620170712OTCEDWADN-1,49.21,TOWN HALL RESTAURANT BISTRO-MISC DAIRY PRODUCTS-PROVISIONS,OTHER NONDURABLE GOODS,GPC
WALSALL COUNCIL,HTTP://OPENDATACOMMUNITIES.ORG/ID/METROPOLITAN-DISTRICT-COUNCIL/WALSALL,30/09/2017,CHANGE & GOVERNANCE,BLAKEMORE FOODSERVICE,11/07/2017,H59620170712OTEOPLTRQ-1,-6.54,CA ELMWOOD SPECIAL SCHOOL-DRY FOODS-PROVISIONS,CATERERS,GPC
WALSALL COUNCIL,HTTP://OPENDATACOMMUNITIES.ORG/ID/METROPOLITAN-DISTRICT-COUNCIL/WALSALL,30/09/2017,CHANGE & GOVERNANCE,BLAKEMORE FOODSERVICE,11/07/2017,H59620170712OVBBDHOOH-1,391.42,CA ST JOHNS C.E. PRIMARY SCHOO-FROZEN FOODS-PROVISIONS,CATERERS,GPC
